Workbook

Sheet About
E3: EN 52022-1:2007
E5: Solar protection devices combined with glazing -
E6: Calculation of solar and light transmittance -
E7: Part 1: Simplified method
E9: Ontwikkeld door / Développé par
E20: in het kader van de Normen-Antenne
E21: "Thermische Isolatie en Installaties in Gebouwen"
E23: dans le cadre de l'Antenne-Normes
E24: "Isolation et Installations Thermiques du Bâtiment"
B26: Read our discaimer on www.buildwise.be
E29: Version 8.1

Sheet Intro
B2: EUROPEAN STANDARD EN ISO 52022-1:2017
B3: Solar protection devices combined with glazing - Calculation of solar and light transmittance - Part 1 : Simplified method
B4: The standard EN ISO 52022-1 gives a simplified method based on the usually known data of the glazing, the U- and g-value, and the solar transmittance and reflectance of the solar protection device to estimate the total solar energy transmittance of a solar protection device combined with a glazing.
B5: The results of this simplified method are approximate and generally tend to lie on the safe side for cooling load estimations.
B6: The text of the standard EN ISO 52022-1 must be consulted to know the exact application of this method. When the simplified method is not applicable, the detailled method described in EN ISO 52022-3 must be applied.
B7: This Excel sheet allows to carry out the calculations given in this standard in order to be able to estimate the total solar energy transmittance (g-value), the direct solar transmittance, the secondary internal heat transfer factor and the light transmittance of a solar protection device combined with glazing.
B8: It contains the following sheets:
B9: · Some definitions are given in the sheet "Definitions". | C9: Definitions
B10: · Typical data for glazing are indicated in the sheet "Glazing". | C10: Glazing
B11: · Typical data for solar protection devices are indicated in the sheet "Solar prot device". | C11: Solar prot device
B12: · Data for solar protection devices have to be entered in the sheet "Solar prot device - Data". | C12: Solar prot device - data
B13: · The worksheet "Results-1" gives the calculation of the total solar energy transmittance, the direct solar transmittance, the secondary internal heat transfer factor and the light transmittance of the specified solar protection devices combined with one specified glazing. | C13: Results-1
B14: · The worksheet "Results-2" allows to see the effect of the g- and U-values of the glazing on the total solar energy transmittance of the combination solar protection device - glazing. | C14: Results-2
B15: · The worksheet "Results-3" gives the calculation of the total solar energy transmittance (g-value), the direct solar transmittance and the secondary internal heat transfer factor of the combination of the specified solar protection devices with the 5 reference glazing defined in the standard EN 14501:2021. | C15: Results-3
B16: · The worksheet "Update" gives an explanation of the update of this version of the Excel tool compared to the previous one. | C16: Update

Sheet Definitions
B2: Definitions
B3: τe | C3: The direct solar transmittance is the fraction of the incident solar radiation that is directly transmitted by the component (component can be : glazing, solar protection device, combination solar protection device-glazing, …)
B4: ρe | C4: The direct solar reflectance is the fraction of the incident solar radiation that is directly reflected by the component.
B5: g | C5: The total solar energy transmittance (solar factor) is the sum of the direct solar transmittance te and the indirect solar transmittance (fraction of the absorbed radiation that is reemitted to inside).This is the fraction of the total transmitted energy to the total incident solar radiation.
B6: U | C6: The thermal transmittance is the density of heat flow rate through a component in the steady state divided by the temperature difference between the surroundings on each side of the component (in W/m² K)
B7: Fc | C7: The Shading factor is the ratio of the solar factor of the combined glazing and solar protection device gtot to that of the glazing alone g
B9: Characteristic data
B10: Glazing
B11: The glazing is characterised by its thermal transmittance Ug, its total solar energy transmittance g and its transmittance and reflectance values.
B12: Ug | C12: Thermal transmittance of the glazing [W/m²K]
B13: g | C13: Total solar energy transmittance [-]
B14: τe | C14: Direct solar transmittance of the glazing [-]
B15: ρe | C15: Solar reflectance of the glazing (side facing the incident radiation) [-]
B16: ρ'e | C16: Solar reflectance of the glazing (opposite side from incident radiation) [-]
B17: τv | C17: Light transmittance of the glazing [-]
B18: ρv | C18: Light reflectance of the glazing (side facing the incident radiation) [-]
B19: ρ'v | C19: Light reflectance of the glazing (opposite side from incident radiation) [-]
B20: qi | C20: Secondary internal heat transfer factor [-] (qi=g - te)
B35: Solar protection device
B36: Solar protection devices are characterised by the following factors :
B37: τe,B | C37: (Direct) Solar transmittance of the solar protection device [-]
B38: ρe,B | C38: Solar reflectance of the side of the solar protection device facing the incident radiation [-]
B39: ρ'e,B | C39: Solar reflectance of the side of the solar protection device opposite from the incident radiation [-]
B40: αe,B | C40: Solar absorptance of the side of the solar protection device facing the incident radiation [-]
B41: τv,B | C41: Light transmittance of the solar protection device [-]
B42: ρv,B | C42: Light reflectance of the side of the solar protection device facing the incident radiation [-]
B43: ρ'v,B | C43: Light reflectance of the side of the solar protection device opposite from the incident radiation [-]
B48: g tot | C48: Total solar energy transmittance [-]
B49: τe,tot | C49: Direct solar transmittance [-]
B50: qi,tot | C50: Secondary internal heat transfer factor [-] (qi,tot=g,tot - te,tot)
B51: τv,tot | C51: Light transmittance [-]
B52: Fc | C52: Shading factor [-]

Sheet Glazing
B2: Data for typical glazing
B3: As defined in Annex A of EN 14501:2021
B5: Reference | C5: Product | D5: Ug W/(m².K) | E5: g | F5: τe | G5: ρe | H5: ρ'e | I5: τv | J5: ρv | K5: ρ'v
B6: Glazing A | C6: Clear single glazing (4 mm) | D6: 5.8 | E6: 0.85 | F6: 0.83 | G6: 0.08 | H6: 0.08 | I6: 0.9 | J6: 0.08 | K6: 0.08
B7: Glazing B | C7: Clear double glazing (4-12-4) | D7: 2.9 | E7: 0.76 | F7: 0.69 | G7: 0.14 | H7: 0.14 | I7: 0.82 | J7: 0.15 | K7: 0.15
B8: Glazing C | C8: Double glazing (4-16-4) | D8: 1.2 | E8: 0.59 | F8: 0.49 | G8: 0.29 | H8: 0.27 | I8: 0.8 | J8: 0.15 | K8: 0.1
B9: Glazing D | C9: Solar control glazing (4-16-4) | D9: 1.1 | E9: 0.32 | F9: 0.27 | G9: 0.29 | H9: 0.38 | I9: 0.44 | J9: 0.43 | K9: 0.38
B10: Glazing E | C10: Triple glazing (4-14-4-14-4) | D10: 0.8 | E10: 0.55 | F10: 0.5 | G10: 0.22 | H10: 0.23 | I10: 0.73 | J10: 0.16 | K10: 0.16
B12: According to EN 14501, for product comparison glazing C shall be used.
B13: EN 14501 also defines reference glazing F, G and H. Those glazing must be used when the detailled method of EN ISO 52022-3 is used.
B14: The real data (U-value, g-value, light and solar transmittance and reflectance) for the glazing with which you want to combine the solar protection devices have to be introduced in the worsheet "Results-1".

Sheet Solar prot device
B2: Typical data for solar protection devices
B3: As defined in Annex E of ISO/TR 52022-2:2017
B5: The next table gives typical values of transmittance and reflectance of solar protection device materials. These are indicative values given for information.
C7: τe,B | D7: ρe,B
D8: White | E8: Pastel | F8: Dark | G8: Black
B9: Opaque (e.g. closed roller shutter) | C9: 0 | D9: 0.7 | E9: 0.5 | F9: 0.3 | G9: 0.1
B10: Closed venetian blind with opque slats | C10: 0.1 | D10: 0.7 | E10: 0.5 | F10: 0.3 | G10: 0.1
B11: Medium translucent | C11: 0.2 | D11: 0.6 | E11: 0.4 | F11: 0.2 | G11: 0.1
B12: High translucent | C12: 0.4 | D12: 0.4 | E12: 0.3 | F12: 0.2 | G12: 0.1
B14: The absorptance, αe,B, is equal to 1 - τe,B - ρe,B.

Sheet Solar prot device - data
B2: Data for solar protection device
B4: Please enter the characteristic data of your solar protection devices in the following table :
B5: Where:
B6: τe,B * | C6: (Direct) Solar transmittance of the solar protection device [-] | J6: * Required for the calculation of the g-value
B7: ρe,B * | C7: Solar reflectance of the side of the solar protection device facing the incident radiation [-] | J7: * Required for the calculation of the g-value
B8: ρ'e,B | C8: Solar reflectance of the side of the solar protection device opposite from the incident radiation [-]
B9: αe,B | C9: Solar absorptance of the side of the solar protection device facing the incident radiation [-]
B10: τv,B | C10: Light transmittance of the solar protection device [-]
B11: ρv,B | C11: Light reflectance of the side of the solar protection device facing the incident radiation [-]
B12: ρ'v,B | C12: Light reflectance of the side of the solar protection device opposite from the incident radiation [-]
B14: Prot. Nr | C14: Name of the solar protection device | D14: τe,B | E14: ρe,B | F14: ρ'e,B | G14: αe,B | H14: τv,B | I14: ρv,B | J14: ρ'v,B
B15: 1 | C15: Opaque - White | D15: 0 | E15: 0.7 | F15: 0.7 | G15: =IF(OR(D15="",E15=""),"",1-D15-E15) -> 0.3 | H15: 0 | I15: 0.7 | J15: 0.7
B16: 2 | C16: Opaque - Pastel | D16: 0 | E16: 0.5 | F16: 0.5 | G16: =IF(OR(D16="",E16=""),"",1-D16-E16) -> 0.5 | H16: 0 | I16: 0.5 | J16: 0.5
B17: 3 | C17: Opaque - Dark | D17: 0 | E17: 0.3 | F17: 0.3 | G17: 0.7 | H17: 0 | I17: 0.3 | J17: 0.3
B18: 4 | C18: Opaque - Black | D18: 0 | E18: 0.1 | F18: 0.1 | G18: 0.9 | H18: 0 | I18: 0.1 | J18: 0.1
B19: 5 | C19: Medium translucent - White | D19: 0.2 | E19: 0.6 | F19: 0.6 | G19: 0.2 | H19: 0.2 | I19: 0.6 | J19: 0.6
B20: 6 | C20: Medium translucent - Pastel | D20: 0.2 | E20: 0.4 | F20: 0.4 | G20: 0.4 | H20: 0.2 | I20: 0.4 | J20: 0.4
B21: 7 | C21: Medium translucent - Dark | D21: 0.2 | E21: 0.2 | F21: 0.2 | G21: 0.6 | H21: 0.2 | I21: 0.2 | J21: 0.2
B22: 8 | C22: Medium translucent - Black | D22: 0.2 | E22: 0.1 | F22: 0.1 | G22: 0.7 | H22: 0.2 | I22: 0.1 | J22: 0.1
B23: 9 | C23: High translucent - White | D23: 0.4 | E23: 0.4 | F23: 0.4 | G23: 0.2 | H23: 0.4 | I23: 0.4 | J23: 0.4
B24: 10 | C24: High translucent - Pastel | D24: 0.4 | E24: 0.3 | F24: 0.3 | G24: 0.3 | H24: 0.4 | I24: 0.3 | J24: 0.3
B25: 11 | C25: High translucent - Dark | D25: 0.4 | E25: 0.2 | F25: 0.2 | G25: 0.4 | H25: 0.4 | I25: 0.2 | J25: 0.2
B26: 12 | C26: High translucent - Black | D26: 0.4 | E26: 0.1 | F26: 0.1 | G26: 0.5 | H26: 0.4 | I26: 0.1 | J26: 0.1
B27: 13
B28: 14
B29: 15
B30: 16
B31: 17
B32: 18
B33: 19 | G33: =IF(OR(D33="",E33=""),"",1-D33-E33) -> 
B34: 20 | G34: =IF(OR(D34="",E34=""),"",1-D34-E34) -> 
B35: 21 | G35: =IF(OR(D35="",E35=""),"",1-D35-E35) -> 
B36: 22 | G36: =IF(OR(D36="",E36=""),"",1-D36-E36) -> 
B37: 23 | G37: =IF(OR(D37="",E37=""),"",1-D37-E37) -> 
B38: 24
B39: 25
B40: 26
B41: 27
B42: 28
B43: 29
B44: 30
B45: 31
B46: 32
B47: 33
B48: 34
B49: 35 | G49: =IF(OR(D49="",E49=""),"",1-D49-E49) -> 
B50: 36
B51: 37
B52: 38
B53: 39
B54: 40
B55: 41
B56: 42
B57: 43
B58: 44
B59: 45
B60: 46
B61: 47
B62: 48
B63: 49
B64: 50
B65: 51
B66: 52
B67: 53
B68: 54
B69: 55
B70: 56
B71: 57
B72: 58
B73: 59
B74: 60
B75: 61
B76: 62
B77: 63
B78: 64
B79: 65
B80: 66
B81: 67
B82: 68
B83: 69
B84: 70
B85: 71
B86: 72
B87: 73
B88: 74
B89: 75
B90: 76
B91: 77
B92: 78
B93: 79
B94: 80
B95: 81
B96: 82
B97: 83
B98: 84
B99: 85
B100: 86
B101: 87
B102: 88
B103: 89
B104: 90
B105: 91
B106: 92
B107: 93
B108: 94
B109: 95
B110: 96
B111: 97
B112: 98
B113: 99 | G113: =IF(OR(D113="",E113=""),"",1-D113-E113) -> 
B114: 100 | G114: =IF(OR(D114="",E114=""),"",1-D114-E114) -> 

Sheet Results-1
B2: Please enter the characteristic data of the glazing with which you want to combine the solar protection device : | AA2: G1 | AB2: 5
B3: * Required for the calculation of the g-value | AA3: G2 ext | AB3: 10
AA4: G2 int | AB4: 30
C5: Name of the glazing | D5: Ug * | E5: g * | F5: τe | G5: ρe | H5: ρ'e | I5: τv | J5: ρv | K5: ρ'v | AA5: G3 | AB5: 3
C6: Your glazing | D6: 1.2 | E6: 0.59 | F6: 0.49 | G6: 0.23 | H6: 0.29 | I6: 0.8 | J6: 0.15 | K6: 0.1 | AA6: G ext | AB6: =1/(1/$D$6+1/$AB$2+1/$AB$3) -> 0.8823529412
AA7: G int | AB7: =1/(1/$D$6+1/$AB$4) -> 1.153846154
B8: The following table gives the total solar energy transmittance gtot, the direct solar transmittance τe,tot, the secondary internal heat transfer factor qi,tot and the light transmittance τv,tot for the combination of the specified glazing (see characteristics above) and solar protection devices (see characteristics in sheet "Solar prot. device-data") according to the standard EN ISO 52022-1. Three cases are distinguished : external solar protection device, internal solar protection device and integrated solar protection device (between glass panes). The calculations are done for the 3 cases, independently of the intended use of the protection device. | AA8: G between | AB8: =1/(1/$D$6+1/$AB$5) -> 0.8571428571
K13: gtot | N13: τe, tot | P13: qi,tot | R13: τv, tot | U13: Fc
B14: Comb. Nr | C14: Name of the combination glazing + blind | D14: τe,B | E14: ρe,B | F14: ρ'e,B | G14: αe,B | H14: τv,B | I14: ρv,B | J14: ρ'v,B | K14: External prot. dev. | L14: Internal prot. dev. | M14: Integrated prot. dev. | N14: External prot. dev. | O14: Internal prot. dev. | P14: External prot. dev. | Q14: Internal prot. dev. | R14: External prot. dev. | S14: Internal prot. dev. | U14: External prot. dev. | V14: Internal prot. dev. | W14: Integrated prot. dev.
B15: ='Solar prot device - data'!B15 -> 1 | C15: =IF('Solar prot device - data'!C15<>"",C$6&" + "&'Solar prot device - data'!C15,"") -> Your glazing + Opaque - White | D15: =IF('Solar prot device - data'!D15<>"",'Solar prot device - data'!D15,"") -> 0 | E15: =IF('Solar prot device - data'!E15<>"",'Solar prot device - data'!E15,"") -> 0.7 | F15: =IF('Solar prot device - data'!F15<>"",'Solar prot device - data'!F15,"") -> 0.7 | G15: =IF('Solar prot device - data'!G15<>"",'Solar prot device - data'!G15,"") -> 0.3 | H15: =IF('Solar prot device - data'!H15<>"",'Solar prot device - data'!H15,"") -> 0 | I15: =IF('Solar prot device - data'!I15<>"",'Solar prot device - data'!I15,"") -> 0.7 | J15: =IF('Solar prot device - data'!J15<>"",'Solar prot device - data'!J15,"") -> 0.7 | K15: =IF(AND(D15<>"",E15<>"",$D$6<>"",$E$6<>""),D15*$E$6+G15*$AB$6/$AB$3+D15*(1-$E$6)*$AB$6/$AB$2,"") -> 0.02647058824 | L15: =IF(AND(D15<>"",E15<>"",$D$6<>"",$E$6<>""),$E$6*(1-$E$6*E15-G15*$AB$7/$AB$4),"") -> 0.3395223077 | M15: =IF(AND(D15<>"",E15<>"",$D$6<>"",$E$6<>""),$E$6*D15+$E$6*(G15+(1-$E$6)*E15)*$AB$8/$AB$5,"") -> 0.09895142857 | N15: =IF(AND(D15<>"",F15<>"",$F$6<>"",$G$6<>""),$F$6*D15/(1-$G$6*F15),"") -> 0 | O15: =IF(AND(D15<>"",E15<>"",$F$6<>"",$H$6<>""),$F$6*D15/(1-$H$6*E15),"") -> 0 | P15: =IF(AND(K15<>"", N15<>""),K15-N15,"") -> 0.02647058824 | Q15: =IF(AND(L15<>"", O15<>""),L15-O15,"") -> 0.3395223077 | R15: =IF(AND(H15<>"",J15<>"",$I$6<>"",$J$6<>""),$I$6*H15/(1-$J$6*J15),"") -> 0 | S15: =IF(AND(H15<>"",I15<>"",$I$6<>"",$K$6<>""),$I$6*H15/(1-$K$6*I15),"") -> 0 | U15: =IF(AND(K15<>"",$E$6<>""),K15/$E$6,"") -> 0.04486540379 | V15: =IF(AND(L15<>"",$E$6<>""),L15/$E$6,"") -> 0.5754615385 | W15: =IF(AND(M15<>"",$E$6<>""),M15/$E$6,"") -> 0.1677142857
B16: ='Solar prot device - data'!B16 -> 2 | C16: =IF('Solar prot device - data'!C16<>"",C$6&" + "&'Solar prot device - data'!C16,"") -> Your glazing + Opaque - Pastel | D16: =IF('Solar prot device - data'!D16<>"",'Solar prot device - data'!D16,"") -> 0 | E16: =IF('Solar prot device - data'!E16<>"",'Solar prot device - data'!E16,"") -> 0.5 | F16: =IF('Solar prot device - data'!F16<>"",'Solar prot device - data'!F16,"") -> 0.5 | G16: =IF('Solar prot device - data'!G16<>"",'Solar prot device - data'!G16,"") -> 0.5 | H16: =IF('Solar prot device - data'!H16<>"",'Solar prot device - data'!H16,"") -> 0 | I16: =IF('Solar prot device - data'!I16<>"",'Solar prot device - data'!I16,"") -> 0.5 | J16: =IF('Solar prot device - data'!J16<>"",'Solar prot device - data'!J16,"") -> 0.5 | K16: 0.04411764706 | L16: 0.4046038462 | M16: 0.1188428571 | N16: 0 | O16: 0 | P16: =IF(AND(K16<>"", N16<>""),K16-N16,"") -> 0.04411764706 | Q16: =IF(AND(L16<>"", O16<>""),L16-O16,"") -> 0.4046038462 | R16: 0 | S16: 0 | U16: 0.07477567298 | V16: 0.6857692308 | W16: 0.2014285714
B17: ='Solar prot device - data'!B17 -> 3 | C17: =IF('Solar prot device - data'!C17<>"",C$6&" + "&'Solar prot device - data'!C17,"") -> Your glazing + Opaque - Dark | D17: =IF('Solar prot device - data'!D17<>"",'Solar prot device - data'!D17,"") -> 0 | E17: =IF('Solar prot device - data'!E17<>"",'Solar prot device - data'!E17,"") -> 0.3 | F17: =IF('Solar prot device - data'!F17<>"",'Solar prot device - data'!F17,"") -> 0.3 | G17: =IF('Solar prot device - data'!G17<>"",'Solar prot device - data'!G17,"") -> 0.7 | H17: =IF('Solar prot device - data'!H17<>"",'Solar prot device - data'!H17,"") -> 0 | I17: =IF('Solar prot device - data'!I17<>"",'Solar prot device - data'!I17,"") -> 0.3 | J17: =IF('Solar prot device - data'!J17<>"",'Solar prot device - data'!J17,"") -> 0.3 | K17: 0.06176470588 | L17: 0.4696853846 | M17: 0.1387342857 | N17: 0 | O17: 0 | P17: 0.06176470588 | Q17: 0.4696853846 | R17: 0 | S17: 0 | U17: 0.1046859422 | V17: 0.7960769231 | W17: 0.2351428571
B18: ='Solar prot device - data'!B18 -> 4 | C18: =IF('Solar prot device - data'!C18<>"",C$6&" + "&'Solar prot device - data'!C18,"") -> Your glazing + Opaque - Black | D18: =IF('Solar prot device - data'!D18<>"",'Solar prot device - data'!D18,"") -> 0 | E18: =IF('Solar prot device - data'!E18<>"",'Solar prot device - data'!E18,"") -> 0.1 | F18: =IF('Solar prot device - data'!F18<>"",'Solar prot device - data'!F18,"") -> 0.1 | G18: =IF('Solar prot device - data'!G18<>"",'Solar prot device - data'!G18,"") -> 0.9 | H18: =IF('Solar prot device - data'!H18<>"",'Solar prot device - data'!H18,"") -> 0 | I18: =IF('Solar prot device - data'!I18<>"",'Solar prot device - data'!I18,"") -> 0.1 | J18: =IF('Solar prot device - data'!J18<>"",'Solar prot device - data'!J18,"") -> 0.1 | K18: 0.07941176471 | L18: 0.5347669231 | M18: 0.1586257143 | N18: 0 | O18: 0 | P18: 0.07941176471 | Q18: 0.5347669231 | R18: 0 | S18: 0 | U18: 0.1345962114 | V18: 0.9063846154 | W18: 0.2688571429
B19: ='Solar prot device - data'!B19 -> 5 | C19: =IF('Solar prot device - data'!C19<>"",C$6&" + "&'Solar prot device - data'!C19,"") -> Your glazing + Medium translucent - White | D19: =IF('Solar prot device - data'!D19<>"",'Solar prot device - data'!D19,"") -> 0.2 | E19: =IF('Solar prot device - data'!E19<>"",'Solar prot device - data'!E19,"") -> 0.6 | F19: =IF('Solar prot device - data'!F19<>"",'Solar prot device - data'!F19,"") -> 0.6 | G19: =IF('Solar prot device - data'!G19<>"",'Solar prot device - data'!G19,"") -> 0.2 | H19: =IF('Solar prot device - data'!H19<>"",'Solar prot device - data'!H19,"") -> 0.2 | I19: =IF('Solar prot device - data'!I19<>"",'Solar prot device - data'!I19,"") -> 0.6 | J19: =IF('Solar prot device - data'!J19<>"",'Solar prot device - data'!J19,"") -> 0.6 | K19: 0.1501176471 | L19: 0.3766015385 | M19: 0.1931828571 | N19: 0.1136890951 | O19: 0.1186440678 | P19: 0.03642855193 | Q19: 0.2579574707 | R19: 0.1758241758 | S19: 0.170212766 | U19: 0.2544366899 | V19: 0.6383076923 | W19: 0.3274285714
B20: ='Solar prot device - data'!B20 -> 6 | C20: =IF('Solar prot device - data'!C20<>"",C$6&" + "&'Solar prot device - data'!C20,"") -> Your glazing + Medium translucent - Pastel | D20: =IF('Solar prot device - data'!D20<>"",'Solar prot device - data'!D20,"") -> 0.2 | E20: =IF('Solar prot device - data'!E20<>"",'Solar prot device - data'!E20,"") -> 0.4 | F20: =IF('Solar prot device - data'!F20<>"",'Solar prot device - data'!F20,"") -> 0.4 | G20: =IF('Solar prot device - data'!G20<>"",'Solar prot device - data'!G20,"") -> 0.4 | H20: =IF('Solar prot device - data'!H20<>"",'Solar prot device - data'!H20,"") -> 0.2 | I20: =IF('Solar prot device - data'!I20<>"",'Solar prot device - data'!I20,"") -> 0.4 | J20: =IF('Solar prot device - data'!J20<>"",'Solar prot device - data'!J20,"") -> 0.4 | K20: 0.1677647059 | L20: 0.4416830769 | M20: 0.2130742857 | N20: 0.1079295154 | O20: 0.1108597285 | P20: 0.05983519046 | Q20: 0.3308233484 | R20: 0.170212766 | S20: 0.1666666667 | U20: 0.2843469591 | V20: 0.7486153846 | W20: 0.3611428571
B21: ='Solar prot device - data'!B21 -> 7 | C21: =IF('Solar prot device - data'!C21<>"",C$6&" + "&'Solar prot device - data'!C21,"") -> Your glazing + Medium translucent - Dark | D21: =IF('Solar prot device - data'!D21<>"",'Solar prot device - data'!D21,"") -> 0.2 | E21: =IF('Solar prot device - data'!E21<>"",'Solar prot device - data'!E21,"") -> 0.2 | F21: =IF('Solar prot device - data'!F21<>"",'Solar prot device - data'!F21,"") -> 0.2 | G21: =IF('Solar prot device - data'!G21<>"",'Solar prot device - data'!G21,"") -> 0.6 | H21: =IF('Solar prot device - data'!H21<>"",'Solar prot device - data'!H21,"") -> 0.2 | I21: =IF('Solar prot device - data'!I21<>"",'Solar prot device - data'!I21,"") -> 0.2 | J21: =IF('Solar prot device - data'!J21<>"",'Solar prot device - data'!J21,"") -> 0.2 | K21: 0.1854117647 | L21: 0.5067646154 | M21: 0.2329657143 | N21: 0.1027253669 | O21: 0.1040339703 | P21: 0.08268639783 | Q21: 0.4027306451 | R21: 0.1649484536 | S21: 0.1632653061 | U21: 0.3142572283 | V21: 0.8589230769 | W21: 0.3948571429
B22: ='Solar prot device - data'!B22 -> 8 | C22: =IF('Solar prot device - data'!C22<>"",C$6&" + "&'Solar prot device - data'!C22,"") -> Your glazing + Medium translucent - Black | D22: =IF('Solar prot device - data'!D22<>"",'Solar prot device - data'!D22,"") -> 0.2 | E22: =IF('Solar prot device - data'!E22<>"",'Solar prot device - data'!E22,"") -> 0.1 | F22: =IF('Solar prot device - data'!F22<>"",'Solar prot device - data'!F22,"") -> 0.1 | G22: =IF('Solar prot device - data'!G22<>"",'Solar prot device - data'!G22,"") -> 0.7 | H22: =IF('Solar prot device - data'!H22<>"",'Solar prot device - data'!H22,"") -> 0.2 | I22: =IF('Solar prot device - data'!I22<>"",'Solar prot device - data'!I22,"") -> 0.1 | J22: =IF('Solar prot device - data'!J22<>"",'Solar prot device - data'!J22,"") -> 0.1 | K22: 0.1942352941 | L22: 0.5393053846 | M22: 0.2429114286 | N22: 0.1003070624 | O22: 0.1009268795 | P22: 0.09392823168 | Q22: 0.4383785051 | R22: 0.1624365482 | S22: 0.1616161616 | U22: 0.3292123629 | V22: 0.9140769231 | W22: 0.4117142857
B23: ='Solar prot device - data'!B23 -> 9 | C23: =IF('Solar prot device - data'!C23<>"",C$6&" + "&'Solar prot device - data'!C23,"") -> Your glazing + High translucent - White | D23: =IF('Solar prot device - data'!D23<>"",'Solar prot device - data'!D23,"") -> 0.4 | E23: =IF('Solar prot device - data'!E23<>"",'Solar prot device - data'!E23,"") -> 0.4 | F23: =IF('Solar prot device - data'!F23<>"",'Solar prot device - data'!F23,"") -> 0.4 | G23: =IF('Solar prot device - data'!G23<>"",'Solar prot device - data'!G23,"") -> 0.2 | H23: =IF('Solar prot device - data'!H23<>"",'Solar prot device - data'!H23,"") -> 0.4 | I23: =IF('Solar prot device - data'!I23<>"",'Solar prot device - data'!I23,"") -> 0.4 | J23: =IF('Solar prot device - data'!J23<>"",'Solar prot device - data'!J23,"") -> 0.4 | K23: 0.2825882353 | L23: 0.4462215385 | M23: 0.29736 | N23: 0.2158590308 | O23: 0.221719457 | P23: 0.06672920446 | Q23: 0.2245020814 | R23: 0.3404255319 | S23: 0.3333333333 | U23: 0.4789631107 | V23: 0.7563076923 | W23: 0.504
B24: ='Solar prot device - data'!B24 -> 10 | C24: =IF('Solar prot device - data'!C24<>"",C$6&" + "&'Solar prot device - data'!C24,"") -> Your glazing + High translucent - Pastel | D24: =IF('Solar prot device - data'!D24<>"",'Solar prot device - data'!D24,"") -> 0.4 | E24: =IF('Solar prot device - data'!E24<>"",'Solar prot device - data'!E24,"") -> 0.3 | F24: =IF('Solar prot device - data'!F24<>"",'Solar prot device - data'!F24,"") -> 0.3 | G24: =IF('Solar prot device - data'!G24<>"",'Solar prot device - data'!G24,"") -> 0.3 | H24: =IF('Solar prot device - data'!H24<>"",'Solar prot device - data'!H24,"") -> 0.4 | I24: =IF('Solar prot device - data'!I24<>"",'Solar prot device - data'!I24,"") -> 0.3 | J24: =IF('Solar prot device - data'!J24<>"",'Solar prot device - data'!J24,"") -> 0.3 | K24: 0.2914117647 | L24: 0.4787623077 | M24: 0.3073057143 | N24: 0.2105263158 | O24: 0.2146768894 | P24: 0.08088544892 | Q24: 0.2640854183 | R24: 0.335078534 | S24: 0.3298969072 | U24: 0.4939182453 | V24: 0.8114615385 | W24: 0.5208571429
B25: ='Solar prot device - data'!B25 -> 11 | C25: =IF('Solar prot device - data'!C25<>"",C$6&" + "&'Solar prot device - data'!C25,"") -> Your glazing + High translucent - Dark | D25: =IF('Solar prot device - data'!D25<>"",'Solar prot device - data'!D25,"") -> 0.4 | E25: =IF('Solar prot device - data'!E25<>"",'Solar prot device - data'!E25,"") -> 0.2 | F25: =IF('Solar prot device - data'!F25<>"",'Solar prot device - data'!F25,"") -> 0.2 | G25: =IF('Solar prot device - data'!G25<>"",'Solar prot device - data'!G25,"") -> 0.4 | H25: =IF('Solar prot device - data'!H25<>"",'Solar prot device - data'!H25,"") -> 0.4 | I25: =IF('Solar prot device - data'!I25<>"",'Solar prot device - data'!I25,"") -> 0.2 | J25: =IF('Solar prot device - data'!J25<>"",'Solar prot device - data'!J25,"") -> 0.2 | K25: 0.3002352941 | L25: 0.5113030769 | M25: 0.3172514286 | N25: 0.2054507338 | O25: 0.2080679406 | P25: 0.09478456037 | Q25: 0.3032351364 | R25: 0.3298969072 | S25: 0.3265306122 | U25: 0.5088733799 | V25: 0.8666153846 | W25: 0.5377142857
B26: ='Solar prot device - data'!B26 -> 12 | C26: =IF('Solar prot device - data'!C26<>"",C$6&" + "&'Solar prot device - data'!C26,"") -> Your glazing + High translucent - Black | D26: =IF('Solar prot device - data'!D26<>"",'Solar prot device - data'!D26,"") -> 0.4 | E26: =IF('Solar prot device - data'!E26<>"",'Solar prot device - data'!E26,"") -> 0.1 | F26: =IF('Solar prot device - data'!F26<>"",'Solar prot device - data'!F26,"") -> 0.1 | G26: =IF('Solar prot device - data'!G26<>"",'Solar prot device - data'!G26,"") -> 0.5 | H26: =IF('Solar prot device - data'!H26<>"",'Solar prot device - data'!H26,"") -> 0.4 | I26: =IF('Solar prot device - data'!I26<>"",'Solar prot device - data'!I26,"") -> 0.1 | J26: =IF('Solar prot device - data'!J26<>"",'Solar prot device - data'!J26,"") -> 0.1 | K26: 0.3090588235 | L26: 0.5438438462 | M26: 0.3271971429 | N26: 0.2006141249 | O26: 0.201853759 | P26: 0.1084446987 | Q26: 0.3419900871 | R26: 0.3248730964 | S26: 0.3232323232 | U26: 0.5238285145 | V26: 0.9217692308 | W26: 0.5545714286
B27: ='Solar prot device - data'!B27 -> 13 | C27: =IF('Solar prot device - data'!C27<>"",C$6&" + "&'Solar prot device - data'!C27,"") ->  | D27: =IF('Solar prot device - data'!D27<>"",'Solar prot device - data'!D27,"") ->  | E27: =IF('Solar prot device - data'!E27<>"",'Solar prot device - data'!E27,"") ->  | F27: =IF('Solar prot device - data'!F27<>"",'Solar prot device - data'!F27,"") ->  | G27: =IF('Solar prot device - data'!G27<>"",'Solar prot device - data'!G27,"") ->  | H27: =IF('Solar prot device - data'!H27<>"",'Solar prot device - data'!H27,"") ->  | I27: =IF('Solar prot device - data'!I27<>"",'Solar prot device - data'!I27,"") ->  | J27: =IF('Solar prot device - data'!J27<>"",'Solar prot device - data'!J27,"") -> 
B28: ='Solar prot device - data'!B28 -> 14 | C28: =IF('Solar prot device - data'!C28<>"",C$6&" + "&'Solar prot device - data'!C28,"") ->  | D28: =IF('Solar prot device - data'!D28<>"",'Solar prot device - data'!D28,"") ->  | E28: =IF('Solar prot device - data'!E28<>"",'Solar prot device - data'!E28,"") ->  | F28: =IF('Solar prot device - data'!F28<>"",'Solar prot device - data'!F28,"") ->  | G28: =IF('Solar prot device - data'!G28<>"",'Solar prot device - data'!G28,"") ->  | H28: =IF('Solar prot device - data'!H28<>"",'Solar prot device - data'!H28,"") ->  | I28: =IF('Solar prot device - data'!I28<>"",'Solar prot device - data'!I28,"") ->  | J28: =IF('Solar prot device - data'!J28<>"",'Solar prot device - data'!J28,"") -> 
B29: ='Solar prot device - data'!B29 -> 15 | C29: =IF('Solar prot device - data'!C29<>"",C$6&" + "&'Solar prot device - data'!C29,"") ->  | D29: =IF('Solar prot device - data'!D29<>"",'Solar prot device - data'!D29,"") ->  | E29: =IF('Solar prot device - data'!E29<>"",'Solar prot device - data'!E29,"") ->  | F29: =IF('Solar prot device - data'!F29<>"",'Solar prot device - data'!F29,"") ->  | G29: =IF('Solar prot device - data'!G29<>"",'Solar prot device - data'!G29,"") ->  | H29: =IF('Solar prot device - data'!H29<>"",'Solar prot device - data'!H29,"") ->  | I29: =IF('Solar prot device - data'!I29<>"",'Solar prot device - data'!I29,"") ->  | J29: =IF('Solar prot device - data'!J29<>"",'Solar prot device - data'!J29,"") -> 
B30: ='Solar prot device - data'!B30 -> 16 | C30: =IF('Solar prot device - data'!C30<>"",C$6&" + "&'Solar prot device - data'!C30,"") ->  | D30: =IF('Solar prot device - data'!D30<>"",'Solar prot device - data'!D30,"") ->  | E30: =IF('Solar prot device - data'!E30<>"",'Solar prot device - data'!E30,"") ->  | F30: =IF('Solar prot device - data'!F30<>"",'Solar prot device - data'!F30,"") ->  | G30: =IF('Solar prot device - data'!G30<>"",'Solar prot device - data'!G30,"") ->  | H30: =IF('Solar prot device - data'!H30<>"",'Solar prot device - data'!H30,"") ->  | I30: =IF('Solar prot device - data'!I30<>"",'Solar prot device - data'!I30,"") ->  | J30: =IF('Solar prot device - data'!J30<>"",'Solar prot device - data'!J30,"") -> 
B31: ='Solar prot device - data'!B31 -> 17 | C31: =IF('Solar prot device - data'!C31<>"",C$6&" + "&'Solar prot device - data'!C31,"") ->  | D31: =IF('Solar prot device - data'!D31<>"",'Solar prot device - data'!D31,"") ->  | E31: =IF('Solar prot device - data'!E31<>"",'Solar prot device - data'!E31,"") ->  | F31: =IF('Solar prot device - data'!F31<>"",'Solar prot device - data'!F31,"") ->  | G31: =IF('Solar prot device - data'!G31<>"",'Solar prot device - data'!G31,"") ->  | H31: =IF('Solar prot device - data'!H31<>"",'Solar prot device - data'!H31,"") ->  | I31: =IF('Solar prot device - data'!I31<>"",'Solar prot device - data'!I31,"") ->  | J31: =IF('Solar prot device - data'!J31<>"",'Solar prot device - data'!J31,"") -> 
B32: ='Solar prot device - data'!B32 -> 18 | C32: =IF('Solar prot device - data'!C32<>"",C$6&" + "&'Solar prot device - data'!C32,"") ->  | D32: =IF('Solar prot device - data'!D32<>"",'Solar prot device - data'!D32,"") ->  | E32: =IF('Solar prot device - data'!E32<>"",'Solar prot device - data'!E32,"") ->  | F32: =IF('Solar prot device - data'!F32<>"",'Solar prot device - data'!F32,"") ->  | G32: =IF('Solar prot device - data'!G32<>"",'Solar prot device - data'!G32,"") ->  | H32: =IF('Solar prot device - data'!H32<>"",'Solar prot device - data'!H32,"") ->  | I32: =IF('Solar prot device - data'!I32<>"",'Solar prot device - data'!I32,"") ->  | J32: =IF('Solar prot device - data'!J32<>"",'Solar prot device - data'!J32,"") -> 
B33: ='Solar prot device - data'!B33 -> 19 | C33: =IF('Solar prot device - data'!C33<>"",C$6&" + "&'Solar prot device - data'!C33,"") ->  | D33: =IF('Solar prot device - data'!D33<>"",'Solar prot device - data'!D33,"") ->  | E33: =IF('Solar prot device - data'!E33<>"",'Solar prot device - data'!E33,"") ->  | F33: =IF('Solar prot device - data'!F33<>"",'Solar prot device - data'!F33,"") ->  | G33: =IF('Solar prot device - data'!G33<>"",'Solar prot device - data'!G33,"") ->  | H33: =IF('Solar prot device - data'!H33<>"",'Solar prot device - data'!H33,"") ->  | I33: =IF('Solar prot device - data'!I33<>"",'Solar prot device - data'!I33,"") ->  | J33: =IF('Solar prot device - data'!J33<>"",'Solar prot device - data'!J33,"") -> 
B34: ='Solar prot device - data'!B34 -> 20 | C34: =IF('Solar prot device - data'!C34<>"",C$6&" + "&'Solar prot device - data'!C34,"") ->  | D34: =IF('Solar prot device - data'!D34<>"",'Solar prot device - data'!D34,"") ->  | E34: =IF('Solar prot device - data'!E34<>"",'Solar prot device - data'!E34,"") ->  | F34: =IF('Solar prot device - data'!F34<>"",'Solar prot device - data'!F34,"") ->  | G34: =IF('Solar prot device - data'!G34<>"",'Solar prot device - data'!G34,"") ->  | H34: =IF('Solar prot device - data'!H34<>"",'Solar prot device - data'!H34,"") ->  | I34: =IF('Solar prot device - data'!I34<>"",'Solar prot device - data'!I34,"") ->  | J34: =IF('Solar prot device - data'!J34<>"",'Solar prot device - data'!J34,"") -> 
B35: ='Solar prot device - data'!B35 -> 21 | C35: =IF('Solar prot device - data'!C35<>"",C$6&" + "&'Solar prot device - data'!C35,"") ->  | D35: =IF('Solar prot device - data'!D35<>"",'Solar prot device - data'!D35,"") ->  | E35: =IF('Solar prot device - data'!E35<>"",'Solar prot device - data'!E35,"") ->  | F35: =IF('Solar prot device - data'!F35<>"",'Solar prot device - data'!F35,"") ->  | G35: =IF('Solar prot device - data'!G35<>"",'Solar prot device - data'!G35,"") ->  | H35: =IF('Solar prot device - data'!H35<>"",'Solar prot device - data'!H35,"") ->  | I35: =IF('Solar prot device - data'!I35<>"",'Solar prot device - data'!I35,"") ->  | J35: =IF('Solar prot device - data'!J35<>"",'Solar prot device - data'!J35,"") -> 
B36: ='Solar prot device - data'!B36 -> 22 | C36: =IF('Solar prot device - data'!C36<>"",C$6&" + "&'Solar prot device - data'!C36,"") ->  | D36: =IF('Solar prot device - data'!D36<>"",'Solar prot device - data'!D36,"") ->  | E36: =IF('Solar prot device - data'!E36<>"",'Solar prot device - data'!E36,"") ->  | F36: =IF('Solar prot device - data'!F36<>"",'Solar prot device - data'!F36,"") ->  | G36: =IF('Solar prot device - data'!G36<>"",'Solar prot device - data'!G36,"") ->  | H36: =IF('Solar prot device - data'!H36<>"",'Solar prot device - data'!H36,"") ->  | I36: =IF('Solar prot device - data'!I36<>"",'Solar prot device - data'!I36,"") ->  | J36: =IF('Solar prot device - data'!J36<>"",'Solar prot device - data'!J36,"") -> 
B37: ='Solar prot device - data'!B37 -> 23 | C37: =IF('Solar prot device - data'!C37<>"",C$6&" + "&'Solar prot device - data'!C37,"") ->  | D37: =IF('Solar prot device - data'!D37<>"",'Solar prot device - data'!D37,"") ->  | E37: =IF('Solar prot device - data'!E37<>"",'Solar prot device - data'!E37,"") ->  | F37: =IF('Solar prot device - data'!F37<>"",'Solar prot device - data'!F37,"") ->  | G37: =IF('Solar prot device - data'!G37<>"",'Solar prot device - data'!G37,"") ->  | H37: =IF('Solar prot device - data'!H37<>"",'Solar prot device - data'!H37,"") ->  | I37: =IF('Solar prot device - data'!I37<>"",'Solar prot device - data'!I37,"") ->  | J37: =IF('Solar prot device - data'!J37<>"",'Solar prot device - data'!J37,"") -> 
B38: ='Solar prot device - data'!B38 -> 24 | C38: =IF('Solar prot device - data'!C38<>"",C$6&" + "&'Solar prot device - data'!C38,"") ->  | D38: =IF('Solar prot device - data'!D38<>"",'Solar prot device - data'!D38,"") ->  | E38: =IF('Solar prot device - data'!E38<>"",'Solar prot device - data'!E38,"") ->  | F38: =IF('Solar prot device - data'!F38<>"",'Solar prot device - data'!F38,"") ->  | G38: =IF('Solar prot device - data'!G38<>"",'Solar prot device - data'!G38,"") ->  | H38: =IF('Solar prot device - data'!H38<>"",'Solar prot device - data'!H38,"") ->  | I38: =IF('Solar prot device - data'!I38<>"",'Solar prot device - data'!I38,"") ->  | J38: =IF('Solar prot device - data'!J38<>"",'Solar prot device - data'!J38,"") -> 
B39: ='Solar prot device - data'!B39 -> 25 | C39: =IF('Solar prot device - data'!C39<>"",C$6&" + "&'Solar prot device - data'!C39,"") ->  | D39: =IF('Solar prot device - data'!D39<>"",'Solar prot device - data'!D39,"") ->  | E39: =IF('Solar prot device - data'!E39<>"",'Solar prot device - data'!E39,"") ->  | F39: =IF('Solar prot device - data'!F39<>"",'Solar prot device - data'!F39,"") ->  | G39: =IF('Solar prot device - data'!G39<>"",'Solar prot device - data'!G39,"") ->  | H39: =IF('Solar prot device - data'!H39<>"",'Solar prot device - data'!H39,"") ->  | I39: =IF('Solar prot device - data'!I39<>"",'Solar prot device - data'!I39,"") ->  | J39: =IF('Solar prot device - data'!J39<>"",'Solar prot device - data'!J39,"") -> 
B40: ='Solar prot device - data'!B40 -> 26 | C40: =IF('Solar prot device - data'!C40<>"",C$6&" + "&'Solar prot device - data'!C40,"") ->  | D40: =IF('Solar prot device - data'!D40<>"",'Solar prot device - data'!D40,"") ->  | E40: =IF('Solar prot device - data'!E40<>"",'Solar prot device - data'!E40,"") ->  | F40: =IF('Solar prot device - data'!F40<>"",'Solar prot device - data'!F40,"") ->  | G40: =IF('Solar prot device - data'!G40<>"",'Solar prot device - data'!G40,"") ->  | H40: =IF('Solar prot device - data'!H40<>"",'Solar prot device - data'!H40,"") ->  | I40: =IF('Solar prot device - data'!I40<>"",'Solar prot device - data'!I40,"") ->  | J40: =IF('Solar prot device - data'!J40<>"",'Solar prot device - data'!J40,"") -> 
B41: ='Solar prot device - data'!B41 -> 27 | C41: =IF('Solar prot device - data'!C41<>"",C$6&" + "&'Solar prot device - data'!C41,"") ->  | D41: =IF('Solar prot device - data'!D41<>"",'Solar prot device - data'!D41,"") ->  | E41: =IF('Solar prot device - data'!E41<>"",'Solar prot device - data'!E41,"") ->  | F41: =IF('Solar prot device - data'!F41<>"",'Solar prot device - data'!F41,"") ->  | G41: =IF('Solar prot device - data'!G41<>"",'Solar prot device - data'!G41,"") ->  | H41: =IF('Solar prot device - data'!H41<>"",'Solar prot device - data'!H41,"") ->  | I41: =IF('Solar prot device - data'!I41<>"",'Solar prot device - data'!I41,"") ->  | J41: =IF('Solar prot device - data'!J41<>"",'Solar prot device - data'!J41,"") -> 
B42: ='Solar prot device - data'!B42 -> 28 | C42: =IF('Solar prot device - data'!C42<>"",C$6&" + "&'Solar prot device - data'!C42,"") ->  | D42: =IF('Solar prot device - data'!D42<>"",'Solar prot device - data'!D42,"") ->  | E42: =IF('Solar prot device - data'!E42<>"",'Solar prot device - data'!E42,"") ->  | F42: =IF('Solar prot device - data'!F42<>"",'Solar prot device - data'!F42,"") ->  | G42: =IF('Solar prot device - data'!G42<>"",'Solar prot device - data'!G42,"") ->  | H42: =IF('Solar prot device - data'!H42<>"",'Solar prot device - data'!H42,"") ->  | I42: =IF('Solar prot device - data'!I42<>"",'Solar prot device - data'!I42,"") ->  | J42: =IF('Solar prot device - data'!J42<>"",'Solar prot device - data'!J42,"") -> 
B43: ='Solar prot device - data'!B43 -> 29 | C43: =IF('Solar prot device - data'!C43<>"",C$6&" + "&'Solar prot device - data'!C43,"") ->  | D43: =IF('Solar prot device - data'!D43<>"",'Solar prot device - data'!D43,"") ->  | E43: =IF('Solar prot device - data'!E43<>"",'Solar prot device - data'!E43,"") ->  | F43: =IF('Solar prot device - data'!F43<>"",'Solar prot device - data'!F43,"") ->  | G43: =IF('Solar prot device - data'!G43<>"",'Solar prot device - data'!G43,"") ->  | H43: =IF('Solar prot device - data'!H43<>"",'Solar prot device - data'!H43,"") ->  | I43: =IF('Solar prot device - data'!I43<>"",'Solar prot device - data'!I43,"") ->  | J43: =IF('Solar prot device - data'!J43<>"",'Solar prot device - data'!J43,"") -> 
B44: ='Solar prot device - data'!B44 -> 30 | C44: =IF('Solar prot device - data'!C44<>"",C$6&" + "&'Solar prot device - data'!C44,"") ->  | D44: =IF('Solar prot device - data'!D44<>"",'Solar prot device - data'!D44,"") ->  | E44: =IF('Solar prot device - data'!E44<>"",'Solar prot device - data'!E44,"") ->  | F44: =IF('Solar prot device - data'!F44<>"",'Solar prot device - data'!F44,"") ->  | G44: =IF('Solar prot device - data'!G44<>"",'Solar prot device - data'!G44,"") ->  | H44: =IF('Solar prot device - data'!H44<>"",'Solar prot device - data'!H44,"") ->  | I44: =IF('Solar prot device - data'!I44<>"",'Solar prot device - data'!I44,"") ->  | J44: =IF('Solar prot device - data'!J44<>"",'Solar prot device - data'!J44,"") -> 
B45: ='Solar prot device - data'!B45 -> 31 | C45: =IF('Solar prot device - data'!C45<>"",C$6&" + "&'Solar prot device - data'!C45,"") ->  | D45: =IF('Solar prot device - data'!D45<>"",'Solar prot device - data'!D45,"") ->  | E45: =IF('Solar prot device - data'!E45<>"",'Solar prot device - data'!E45,"") ->  | F45: =IF('Solar prot device - data'!F45<>"",'Solar prot device - data'!F45,"") ->  | G45: =IF('Solar prot device - data'!G45<>"",'Solar prot device - data'!G45,"") ->  | H45: =IF('Solar prot device - data'!H45<>"",'Solar prot device - data'!H45,"") ->  | I45: =IF('Solar prot device - data'!I45<>"",'Solar prot device - data'!I45,"") ->  | J45: =IF('Solar prot device - data'!J45<>"",'Solar prot device - data'!J45,"") -> 
B46: ='Solar prot device - data'!B46 -> 32 | C46: =IF('Solar prot device - data'!C46<>"",C$6&" + "&'Solar prot device - data'!C46,"") ->  | D46: =IF('Solar prot device - data'!D46<>"",'Solar prot device - data'!D46,"") ->  | E46: =IF('Solar prot device - data'!E46<>"",'Solar prot device - data'!E46,"") ->  | F46: =IF('Solar prot device - data'!F46<>"",'Solar prot device - data'!F46,"") ->  | G46: =IF('Solar prot device - data'!G46<>"",'Solar prot device - data'!G46,"") ->  | H46: =IF('Solar prot device - data'!H46<>"",'Solar prot device - data'!H46,"") ->  | I46: =IF('Solar prot device - data'!I46<>"",'Solar prot device - data'!I46,"") ->  | J46: =IF('Solar prot device - data'!J46<>"",'Solar prot device - data'!J46,"") -> 
B47: ='Solar prot device - data'!B47 -> 33 | C47: =IF('Solar prot device - data'!C47<>"",C$6&" + "&'Solar prot device - data'!C47,"") ->  | D47: =IF('Solar prot device - data'!D47<>"",'Solar prot device - data'!D47,"") ->  | E47: =IF('Solar prot device - data'!E47<>"",'Solar prot device - data'!E47,"") ->  | F47: =IF('Solar prot device - data'!F47<>"",'Solar prot device - data'!F47,"") ->  | G47: =IF('Solar prot device - data'!G47<>"",'Solar prot device - data'!G47,"") ->  | H47: =IF('Solar prot device - data'!H47<>"",'Solar prot device - data'!H47,"") ->  | I47: =IF('Solar prot device - data'!I47<>"",'Solar prot device - data'!I47,"") ->  | J47: =IF('Solar prot device - data'!J47<>"",'Solar prot device - data'!J47,"") ->  | K47: =IF(AND(D47<>"",E47<>"",$D$6<>"",$E$6<>""),D47*$E$6+G47*$AB$6/$AB$3+D47*(1-$E$6)*$AB$6/$AB$2,"") ->  | L47: =IF(AND(D47<>"",E47<>"",$D$6<>"",$E$6<>""),$E$6*(1-$E$6*E47-G47*$AB$7/$AB$4),"") ->  | M47: =IF(AND(D47<>"",E47<>"",$D$6<>"",$E$6<>""),$E$6*D47+$E$6*(G47+(1-$E$6)*E47)*$AB$8/$AB$5,"") ->  | N47: =IF(AND(D47<>"",F47<>"",$F$6<>"",$G$6<>""),$F$6*D47/(1-$G$6*F47),"") ->  | O47: =IF(AND(D47<>"",E47<>"",$F$6<>"",$H$6<>""),$F$6*D47/(1-$H$6*E47),"") ->  | R47: =IF(AND(H47<>"",J47<>"",$I$6<>"",$J$6<>""),$I$6*H47/(1-$J$6*J47),"") ->  | S47: =IF(AND(H47<>"",I47<>"",$I$6<>"",$K$6<>""),$I$6*H47/(1-$K$6*I47),"") ->  | U47: =IF(AND(K47<>"",$E$6<>""),K47/$E$6,"") ->  | V47: =IF(AND(L47<>"",$E$6<>""),L47/$E$6,"") ->  | W47: =IF(AND(M47<>"",$E$6<>""),M47/$E$6,"") -> 
B48: ='Solar prot device - data'!B48 -> 34 | C48: =IF('Solar prot device - data'!C48<>"",C$6&" + "&'Solar prot device - data'!C48,"") ->  | D48: =IF('Solar prot device - data'!D48<>"",'Solar prot device - data'!D48,"") ->  | E48: =IF('Solar prot device - data'!E48<>"",'Solar prot device - data'!E48,"") ->  | F48: =IF('Solar prot device - data'!F48<>"",'Solar prot device - data'!F48,"") ->  | G48: =IF('Solar prot device - data'!G48<>"",'Solar prot device - data'!G48,"") ->  | H48: =IF('Solar prot device - data'!H48<>"",'Solar prot device - data'!H48,"") ->  | I48: =IF('Solar prot device - data'!I48<>"",'Solar prot device - data'!I48,"") ->  | J48: =IF('Solar prot device - data'!J48<>"",'Solar prot device - data'!J48,"") -> 
B49: ='Solar prot device - data'!B49 -> 35 | C49: =IF('Solar prot device - data'!C49<>"",C$6&" + "&'Solar prot device - data'!C49,"") ->  | D49: =IF('Solar prot device - data'!D49<>"",'Solar prot device - data'!D49,"") ->  | E49: =IF('Solar prot device - data'!E49<>"",'Solar prot device - data'!E49,"") ->  | F49: =IF('Solar prot device - data'!F49<>"",'Solar prot device - data'!F49,"") ->  | G49: =IF('Solar prot device - data'!G49<>"",'Solar prot device - data'!G49,"") ->  | H49: =IF('Solar prot device - data'!H49<>"",'Solar prot device - data'!H49,"") ->  | I49: =IF('Solar prot device - data'!I49<>"",'Solar prot device - data'!I49,"") ->  | J49: =IF('Solar prot device - data'!J49<>"",'Solar prot device - data'!J49,"") -> 
B50: ='Solar prot device - data'!B50 -> 36 | C50: =IF('Solar prot device - data'!C50<>"",C$6&" + "&'Solar prot device - data'!C50,"") ->  | D50: =IF('Solar prot device - data'!D50<>"",'Solar prot device - data'!D50,"") ->  | E50: =IF('Solar prot device - data'!E50<>"",'Solar prot device - data'!E50,"") ->  | F50: =IF('Solar prot device - data'!F50<>"",'Solar prot device - data'!F50,"") ->  | G50: =IF('Solar prot device - data'!G50<>"",'Solar prot device - data'!G50,"") ->  | H50: =IF('Solar prot device - data'!H50<>"",'Solar prot device - data'!H50,"") ->  | I50: =IF('Solar prot device - data'!I50<>"",'Solar prot device - data'!I50,"") ->  | J50: =IF('Solar prot device - data'!J50<>"",'Solar prot device - data'!J50,"") -> 
B51: ='Solar prot device - data'!B51 -> 37 | C51: =IF('Solar prot device - data'!C51<>"",C$6&" + "&'Solar prot device - data'!C51,"") ->  | D51: =IF('Solar prot device - data'!D51<>"",'Solar prot device - data'!D51,"") ->  | E51: =IF('Solar prot device - data'!E51<>"",'Solar prot device - data'!E51,"") ->  | F51: =IF('Solar prot device - data'!F51<>"",'Solar prot device - data'!F51,"") ->  | G51: =IF('Solar prot device - data'!G51<>"",'Solar prot device - data'!G51,"") ->  | H51: =IF('Solar prot device - data'!H51<>"",'Solar prot device - data'!H51,"") ->  | I51: =IF('Solar prot device - data'!I51<>"",'Solar prot device - data'!I51,"") ->  | J51: =IF('Solar prot device - data'!J51<>"",'Solar prot device - data'!J51,"") -> 
B52: ='Solar prot device - data'!B52 -> 38 | C52: =IF('Solar prot device - data'!C52<>"",C$6&" + "&'Solar prot device - data'!C52,"") ->  | D52: =IF('Solar prot device - data'!D52<>"",'Solar prot device - data'!D52,"") ->  | E52: =IF('Solar prot device - data'!E52<>"",'Solar prot device - data'!E52,"") ->  | F52: =IF('Solar prot device - data'!F52<>"",'Solar prot device - data'!F52,"") ->  | G52: =IF('Solar prot device - data'!G52<>"",'Solar prot device - data'!G52,"") ->  | H52: =IF('Solar prot device - data'!H52<>"",'Solar prot device - data'!H52,"") ->  | I52: =IF('Solar prot device - data'!I52<>"",'Solar prot device - data'!I52,"") ->  | J52: =IF('Solar prot device - data'!J52<>"",'Solar prot device - data'!J52,"") -> 
B53: ='Solar prot device - data'!B53 -> 39 | C53: =IF('Solar prot device - data'!C53<>"",C$6&" + "&'Solar prot device - data'!C53,"") ->  | D53: =IF('Solar prot device - data'!D53<>"",'Solar prot device - data'!D53,"") ->  | E53: =IF('Solar prot device - data'!E53<>"",'Solar prot device - data'!E53,"") ->  | F53: =IF('Solar prot device - data'!F53<>"",'Solar prot device - data'!F53,"") ->  | G53: =IF('Solar prot device - data'!G53<>"",'Solar prot device - data'!G53,"") ->  | H53: =IF('Solar prot device - data'!H53<>"",'Solar prot device - data'!H53,"") ->  | I53: =IF('Solar prot device - data'!I53<>"",'Solar prot device - data'!I53,"") ->  | J53: =IF('Solar prot device - data'!J53<>"",'Solar prot device - data'!J53,"") -> 
B54: ='Solar prot device - data'!B54 -> 40 | C54: =IF('Solar prot device - data'!C54<>"",C$6&" + "&'Solar prot device - data'!C54,"") ->  | D54: =IF('Solar prot device - data'!D54<>"",'Solar prot device - data'!D54,"") ->  | E54: =IF('Solar prot device - data'!E54<>"",'Solar prot device - data'!E54,"") ->  | F54: =IF('Solar prot device - data'!F54<>"",'Solar prot device - data'!F54,"") ->  | G54: =IF('Solar prot device - data'!G54<>"",'Solar prot device - data'!G54,"") ->  | H54: =IF('Solar prot device - data'!H54<>"",'Solar prot device - data'!H54,"") ->  | I54: =IF('Solar prot device - data'!I54<>"",'Solar prot device - data'!I54,"") ->  | J54: =IF('Solar prot device - data'!J54<>"",'Solar prot device - data'!J54,"") -> 
B55: ='Solar prot device - data'!B55 -> 41 | C55: =IF('Solar prot device - data'!C55<>"",C$6&" + "&'Solar prot device - data'!C55,"") ->  | D55: =IF('Solar prot device - data'!D55<>"",'Solar prot device - data'!D55,"") ->  | E55: =IF('Solar prot device - data'!E55<>"",'Solar prot device - data'!E55,"") ->  | F55: =IF('Solar prot device - data'!F55<>"",'Solar prot device - data'!F55,"") ->  | G55: =IF('Solar prot device - data'!G55<>"",'Solar prot device - data'!G55,"") ->  | H55: =IF('Solar prot device - data'!H55<>"",'Solar prot device - data'!H55,"") ->  | I55: =IF('Solar prot device - data'!I55<>"",'Solar prot device - data'!I55,"") ->  | J55: =IF('Solar prot device - data'!J55<>"",'Solar prot device - data'!J55,"") -> 
B56: ='Solar prot device - data'!B56 -> 42 | C56: =IF('Solar prot device - data'!C56<>"",C$6&" + "&'Solar prot device - data'!C56,"") ->  | D56: =IF('Solar prot device - data'!D56<>"",'Solar prot device - data'!D56,"") ->  | E56: =IF('Solar prot device - data'!E56<>"",'Solar prot device - data'!E56,"") ->  | F56: =IF('Solar prot device - data'!F56<>"",'Solar prot device - data'!F56,"") ->  | G56: =IF('Solar prot device - data'!G56<>"",'Solar prot device - data'!G56,"") ->  | H56: =IF('Solar prot device - data'!H56<>"",'Solar prot device - data'!H56,"") ->  | I56: =IF('Solar prot device - data'!I56<>"",'Solar prot device - data'!I56,"") ->  | J56: =IF('Solar prot device - data'!J56<>"",'Solar prot device - data'!J56,"") -> 
B57: ='Solar prot device - data'!B57 -> 43 | C57: =IF('Solar prot device - data'!C57<>"",C$6&" + "&'Solar prot device - data'!C57,"") ->  | D57: =IF('Solar prot device - data'!D57<>"",'Solar prot device - data'!D57,"") ->  | E57: =IF('Solar prot device - data'!E57<>"",'Solar prot device - data'!E57,"") ->  | F57: =IF('Solar prot device - data'!F57<>"",'Solar prot device - data'!F57,"") ->  | G57: =IF('Solar prot device - data'!G57<>"",'Solar prot device - data'!G57,"") ->  | H57: =IF('Solar prot device - data'!H57<>"",'Solar prot device - data'!H57,"") ->  | I57: =IF('Solar prot device - data'!I57<>"",'Solar prot device - data'!I57,"") ->  | J57: =IF('Solar prot device - data'!J57<>"",'Solar prot device - data'!J57,"") -> 
B58: ='Solar prot device - data'!B58 -> 44 | C58: =IF('Solar prot device - data'!C58<>"",C$6&" + "&'Solar prot device - data'!C58,"") ->  | D58: =IF('Solar prot device - data'!D58<>"",'Solar prot device - data'!D58,"") ->  | E58: =IF('Solar prot device - data'!E58<>"",'Solar prot device - data'!E58,"") ->  | F58: =IF('Solar prot device - data'!F58<>"",'Solar prot device - data'!F58,"") ->  | G58: =IF('Solar prot device - data'!G58<>"",'Solar prot device - data'!G58,"") ->  | H58: =IF('Solar prot device - data'!H58<>"",'Solar prot device - data'!H58,"") ->  | I58: =IF('Solar prot device - data'!I58<>"",'Solar prot device - data'!I58,"") ->  | J58: =IF('Solar prot device - data'!J58<>"",'Solar prot device - data'!J58,"") -> 
B59: ='Solar prot device - data'!B59 -> 45 | C59: =IF('Solar prot device - data'!C59<>"",C$6&" + "&'Solar prot device - data'!C59,"") ->  | D59: =IF('Solar prot device - data'!D59<>"",'Solar prot device - data'!D59,"") ->  | E59: =IF('Solar prot device - data'!E59<>"",'Solar prot device - data'!E59,"") ->  | F59: =IF('Solar prot device - data'!F59<>"",'Solar prot device - data'!F59,"") ->  | G59: =IF('Solar prot device - data'!G59<>"",'Solar prot device - data'!G59,"") ->  | H59: =IF('Solar prot device - data'!H59<>"",'Solar prot device - data'!H59,"") ->  | I59: =IF('Solar prot device - data'!I59<>"",'Solar prot device - data'!I59,"") ->  | J59: =IF('Solar prot device - data'!J59<>"",'Solar prot device - data'!J59,"") -> 
B60: ='Solar prot device - data'!B60 -> 46 | C60: =IF('Solar prot device - data'!C60<>"",C$6&" + "&'Solar prot device - data'!C60,"") ->  | D60: =IF('Solar prot device - data'!D60<>"",'Solar prot device - data'!D60,"") ->  | E60: =IF('Solar prot device - data'!E60<>"",'Solar prot device - data'!E60,"") ->  | F60: =IF('Solar prot device - data'!F60<>"",'Solar prot device - data'!F60,"") ->  | G60: =IF('Solar prot device - data'!G60<>"",'Solar prot device - data'!G60,"") ->  | H60: =IF('Solar prot device - data'!H60<>"",'Solar prot device - data'!H60,"") ->  | I60: =IF('Solar prot device - data'!I60<>"",'Solar prot device - data'!I60,"") ->  | J60: =IF('Solar prot device - data'!J60<>"",'Solar prot device - data'!J60,"") -> 
B61: ='Solar prot device - data'!B61 -> 47 | C61: =IF('Solar prot device - data'!C61<>"",C$6&" + "&'Solar prot device - data'!C61,"") ->  | D61: =IF('Solar prot device - data'!D61<>"",'Solar prot device - data'!D61,"") ->  | E61: =IF('Solar prot device - data'!E61<>"",'Solar prot device - data'!E61,"") ->  | F61: =IF('Solar prot device - data'!F61<>"",'Solar prot device - data'!F61,"") ->  | G61: =IF('Solar prot device - data'!G61<>"",'Solar prot device - data'!G61,"") ->  | H61: =IF('Solar prot device - data'!H61<>"",'Solar prot device - data'!H61,"") ->  | I61: =IF('Solar prot device - data'!I61<>"",'Solar prot device - data'!I61,"") ->  | J61: =IF('Solar prot device - data'!J61<>"",'Solar prot device - data'!J61,"") -> 
B62: ='Solar prot device - data'!B62 -> 48 | C62: =IF('Solar prot device - data'!C62<>"",C$6&" + "&'Solar prot device - data'!C62,"") ->  | D62: =IF('Solar prot device - data'!D62<>"",'Solar prot device - data'!D62,"") ->  | E62: =IF('Solar prot device - data'!E62<>"",'Solar prot device - data'!E62,"") ->  | F62: =IF('Solar prot device - data'!F62<>"",'Solar prot device - data'!F62,"") ->  | G62: =IF('Solar prot device - data'!G62<>"",'Solar prot device - data'!G62,"") ->  | H62: =IF('Solar prot device - data'!H62<>"",'Solar prot device - data'!H62,"") ->  | I62: =IF('Solar prot device - data'!I62<>"",'Solar prot device - data'!I62,"") ->  | J62: =IF('Solar prot device - data'!J62<>"",'Solar prot device - data'!J62,"") -> 
B63: ='Solar prot device - data'!B63 -> 49 | C63: =IF('Solar prot device - data'!C63<>"",C$6&" + "&'Solar prot device - data'!C63,"") ->  | D63: =IF('Solar prot device - data'!D63<>"",'Solar prot device - data'!D63,"") ->  | E63: =IF('Solar prot device - data'!E63<>"",'Solar prot device - data'!E63,"") ->  | F63: =IF('Solar prot device - data'!F63<>"",'Solar prot device - data'!F63,"") ->  | G63: =IF('Solar prot device - data'!G63<>"",'Solar prot device - data'!G63,"") ->  | H63: =IF('Solar prot device - data'!H63<>"",'Solar prot device - data'!H63,"") ->  | I63: =IF('Solar prot device - data'!I63<>"",'Solar prot device - data'!I63,"") ->  | J63: =IF('Solar prot device - data'!J63<>"",'Solar prot device - data'!J63,"") -> 
B64: ='Solar prot device - data'!B64 -> 50 | C64: =IF('Solar prot device - data'!C64<>"",C$6&" + "&'Solar prot device - data'!C64,"") ->  | D64: =IF('Solar prot device - data'!D64<>"",'Solar prot device - data'!D64,"") ->  | E64: =IF('Solar prot device - data'!E64<>"",'Solar prot device - data'!E64,"") ->  | F64: =IF('Solar prot device - data'!F64<>"",'Solar prot device - data'!F64,"") ->  | G64: =IF('Solar prot device - data'!G64<>"",'Solar prot device - data'!G64,"") ->  | H64: =IF('Solar prot device - data'!H64<>"",'Solar prot device - data'!H64,"") ->  | I64: =IF('Solar prot device - data'!I64<>"",'Solar prot device - data'!I64,"") ->  | J64: =IF('Solar prot device - data'!J64<>"",'Solar prot device - data'!J64,"") -> 
B65: ='Solar prot device - data'!B65 -> 51 | C65: =IF('Solar prot device - data'!C65<>"",C$6&" + "&'Solar prot device - data'!C65,"") ->  | D65: =IF('Solar prot device - data'!D65<>"",'Solar prot device - data'!D65,"") ->  | E65: =IF('Solar prot device - data'!E65<>"",'Solar prot device - data'!E65,"") ->  | F65: =IF('Solar prot device - data'!F65<>"",'Solar prot device - data'!F65,"") ->  | G65: =IF('Solar prot device - data'!G65<>"",'Solar prot device - data'!G65,"") ->  | H65: =IF('Solar prot device - data'!H65<>"",'Solar prot device - data'!H65,"") ->  | I65: =IF('Solar prot device - data'!I65<>"",'Solar prot device - data'!I65,"") ->  | J65: =IF('Solar prot device - data'!J65<>"",'Solar prot device - data'!J65,"") -> 
B66: ='Solar prot device - data'!B66 -> 52 | C66: =IF('Solar prot device - data'!C66<>"",C$6&" + "&'Solar prot device - data'!C66,"") ->  | D66: =IF('Solar prot device - data'!D66<>"",'Solar prot device - data'!D66,"") ->  | E66: =IF('Solar prot device - data'!E66<>"",'Solar prot device - data'!E66,"") ->  | F66: =IF('Solar prot device - data'!F66<>"",'Solar prot device - data'!F66,"") ->  | G66: =IF('Solar prot device - data'!G66<>"",'Solar prot device - data'!G66,"") ->  | H66: =IF('Solar prot device - data'!H66<>"",'Solar prot device - data'!H66,"") ->  | I66: =IF('Solar prot device - data'!I66<>"",'Solar prot device - data'!I66,"") ->  | J66: =IF('Solar prot device - data'!J66<>"",'Solar prot device - data'!J66,"") -> 
B67: ='Solar prot device - data'!B67 -> 53 | C67: =IF('Solar prot device - data'!C67<>"",C$6&" + "&'Solar prot device - data'!C67,"") ->  | D67: =IF('Solar prot device - data'!D67<>"",'Solar prot device - data'!D67,"") ->  | E67: =IF('Solar prot device - data'!E67<>"",'Solar prot device - data'!E67,"") ->  | F67: =IF('Solar prot device - data'!F67<>"",'Solar prot device - data'!F67,"") ->  | G67: =IF('Solar prot device - data'!G67<>"",'Solar prot device - data'!G67,"") ->  | H67: =IF('Solar prot device - data'!H67<>"",'Solar prot device - data'!H67,"") ->  | I67: =IF('Solar prot device - data'!I67<>"",'Solar prot device - data'!I67,"") ->  | J67: =IF('Solar prot device - data'!J67<>"",'Solar prot device - data'!J67,"") -> 
B68: ='Solar prot device - data'!B68 -> 54 | C68: =IF('Solar prot device - data'!C68<>"",C$6&" + "&'Solar prot device - data'!C68,"") ->  | D68: =IF('Solar prot device - data'!D68<>"",'Solar prot device - data'!D68,"") ->  | E68: =IF('Solar prot device - data'!E68<>"",'Solar prot device - data'!E68,"") ->  | F68: =IF('Solar prot device - data'!F68<>"",'Solar prot device - data'!F68,"") ->  | G68: =IF('Solar prot device - data'!G68<>"",'Solar prot device - data'!G68,"") ->  | H68: =IF('Solar prot device - data'!H68<>"",'Solar prot device - data'!H68,"") ->  | I68: =IF('Solar prot device - data'!I68<>"",'Solar prot device - data'!I68,"") ->  | J68: =IF('Solar prot device - data'!J68<>"",'Solar prot device - data'!J68,"") -> 
B69: ='Solar prot device - data'!B69 -> 55 | C69: =IF('Solar prot device - data'!C69<>"",C$6&" + "&'Solar prot device - data'!C69,"") ->  | D69: =IF('Solar prot device - data'!D69<>"",'Solar prot device - data'!D69,"") ->  | E69: =IF('Solar prot device - data'!E69<>"",'Solar prot device - data'!E69,"") ->  | F69: =IF('Solar prot device - data'!F69<>"",'Solar prot device - data'!F69,"") ->  | G69: =IF('Solar prot device - data'!G69<>"",'Solar prot device - data'!G69,"") ->  | H69: =IF('Solar prot device - data'!H69<>"",'Solar prot device - data'!H69,"") ->  | I69: =IF('Solar prot device - data'!I69<>"",'Solar prot device - data'!I69,"") ->  | J69: =IF('Solar prot device - data'!J69<>"",'Solar prot device - data'!J69,"") -> 
B70: ='Solar prot device - data'!B70 -> 56 | C70: =IF('Solar prot device - data'!C70<>"",C$6&" + "&'Solar prot device - data'!C70,"") ->  | D70: =IF('Solar prot device - data'!D70<>"",'Solar prot device - data'!D70,"") ->  | E70: =IF('Solar prot device - data'!E70<>"",'Solar prot device - data'!E70,"") ->  | F70: =IF('Solar prot device - data'!F70<>"",'Solar prot device - data'!F70,"") ->  | G70: =IF('Solar prot device - data'!G70<>"",'Solar prot device - data'!G70,"") ->  | H70: =IF('Solar prot device - data'!H70<>"",'Solar prot device - data'!H70,"") ->  | I70: =IF('Solar prot device - data'!I70<>"",'Solar prot device - data'!I70,"") ->  | J70: =IF('Solar prot device - data'!J70<>"",'Solar prot device - data'!J70,"") -> 
B71: ='Solar prot device - data'!B71 -> 57 | C71: =IF('Solar prot device - data'!C71<>"",C$6&" + "&'Solar prot device - data'!C71,"") ->  | D71: =IF('Solar prot device - data'!D71<>"",'Solar prot device - data'!D71,"") ->  | E71: =IF('Solar prot device - data'!E71<>"",'Solar prot device - data'!E71,"") ->  | F71: =IF('Solar prot device - data'!F71<>"",'Solar prot device - data'!F71,"") ->  | G71: =IF('Solar prot device - data'!G71<>"",'Solar prot device - data'!G71,"") ->  | H71: =IF('Solar prot device - data'!H71<>"",'Solar prot device - data'!H71,"") ->  | I71: =IF('Solar prot device - data'!I71<>"",'Solar prot device - data'!I71,"") ->  | J71: =IF('Solar prot device - data'!J71<>"",'Solar prot device - data'!J71,"") -> 
B72: ='Solar prot device - data'!B72 -> 58 | C72: =IF('Solar prot device - data'!C72<>"",C$6&" + "&'Solar prot device - data'!C72,"") ->  | D72: =IF('Solar prot device - data'!D72<>"",'Solar prot device - data'!D72,"") ->  | E72: =IF('Solar prot device - data'!E72<>"",'Solar prot device - data'!E72,"") ->  | F72: =IF('Solar prot device - data'!F72<>"",'Solar prot device - data'!F72,"") ->  | G72: =IF('Solar prot device - data'!G72<>"",'Solar prot device - data'!G72,"") ->  | H72: =IF('Solar prot device - data'!H72<>"",'Solar prot device - data'!H72,"") ->  | I72: =IF('Solar prot device - data'!I72<>"",'Solar prot device - data'!I72,"") ->  | J72: =IF('Solar prot device - data'!J72<>"",'Solar prot device - data'!J72,"") -> 
B73: ='Solar prot device - data'!B73 -> 59 | C73: =IF('Solar prot device - data'!C73<>"",C$6&" + "&'Solar prot device - data'!C73,"") ->  | D73: =IF('Solar prot device - data'!D73<>"",'Solar prot device - data'!D73,"") ->  | E73: =IF('Solar prot device - data'!E73<>"",'Solar prot device - data'!E73,"") ->  | F73: =IF('Solar prot device - data'!F73<>"",'Solar prot device - data'!F73,"") ->  | G73: =IF('Solar prot device - data'!G73<>"",'Solar prot device - data'!G73,"") ->  | H73: =IF('Solar prot device - data'!H73<>"",'Solar prot device - data'!H73,"") ->  | I73: =IF('Solar prot device - data'!I73<>"",'Solar prot device - data'!I73,"") ->  | J73: =IF('Solar prot device - data'!J73<>"",'Solar prot device - data'!J73,"") -> 
B74: ='Solar prot device - data'!B74 -> 60 | C74: =IF('Solar prot device - data'!C74<>"",C$6&" + "&'Solar prot device - data'!C74,"") ->  | D74: =IF('Solar prot device - data'!D74<>"",'Solar prot device - data'!D74,"") ->  | E74: =IF('Solar prot device - data'!E74<>"",'Solar prot device - data'!E74,"") ->  | F74: =IF('Solar prot device - data'!F74<>"",'Solar prot device - data'!F74,"") ->  | G74: =IF('Solar prot device - data'!G74<>"",'Solar prot device - data'!G74,"") ->  | H74: =IF('Solar prot device - data'!H74<>"",'Solar prot device - data'!H74,"") ->  | I74: =IF('Solar prot device - data'!I74<>"",'Solar prot device - data'!I74,"") ->  | J74: =IF('Solar prot device - data'!J74<>"",'Solar prot device - data'!J74,"") -> 
B75: ='Solar prot device - data'!B75 -> 61 | C75: =IF('Solar prot device - data'!C75<>"",C$6&" + "&'Solar prot device - data'!C75,"") ->  | D75: =IF('Solar prot device - data'!D75<>"",'Solar prot device - data'!D75,"") ->  | E75: =IF('Solar prot device - data'!E75<>"",'Solar prot device - data'!E75,"") ->  | F75: =IF('Solar prot device - data'!F75<>"",'Solar prot device - data'!F75,"") ->  | G75: =IF('Solar prot device - data'!G75<>"",'Solar prot device - data'!G75,"") ->  | H75: =IF('Solar prot device - data'!H75<>"",'Solar prot device - data'!H75,"") ->  | I75: =IF('Solar prot device - data'!I75<>"",'Solar prot device - data'!I75,"") ->  | J75: =IF('Solar prot device - data'!J75<>"",'Solar prot device - data'!J75,"") -> 
B76: ='Solar prot device - data'!B76 -> 62 | C76: =IF('Solar prot device - data'!C76<>"",C$6&" + "&'Solar prot device - data'!C76,"") ->  | D76: =IF('Solar prot device - data'!D76<>"",'Solar prot device - data'!D76,"") ->  | E76: =IF('Solar prot device - data'!E76<>"",'Solar prot device - data'!E76,"") ->  | F76: =IF('Solar prot device - data'!F76<>"",'Solar prot device - data'!F76,"") ->  | G76: =IF('Solar prot device - data'!G76<>"",'Solar prot device - data'!G76,"") ->  | H76: =IF('Solar prot device - data'!H76<>"",'Solar prot device - data'!H76,"") ->  | I76: =IF('Solar prot device - data'!I76<>"",'Solar prot device - data'!I76,"") ->  | J76: =IF('Solar prot device - data'!J76<>"",'Solar prot device - data'!J76,"") -> 
B77: ='Solar prot device - data'!B77 -> 63 | C77: =IF('Solar prot device - data'!C77<>"",C$6&" + "&'Solar prot device - data'!C77,"") ->  | D77: =IF('Solar prot device - data'!D77<>"",'Solar prot device - data'!D77,"") ->  | E77: =IF('Solar prot device - data'!E77<>"",'Solar prot device - data'!E77,"") ->  | F77: =IF('Solar prot device - data'!F77<>"",'Solar prot device - data'!F77,"") ->  | G77: =IF('Solar prot device - data'!G77<>"",'Solar prot device - data'!G77,"") ->  | H77: =IF('Solar prot device - data'!H77<>"",'Solar prot device - data'!H77,"") ->  | I77: =IF('Solar prot device - data'!I77<>"",'Solar prot device - data'!I77,"") ->  | J77: =IF('Solar prot device - data'!J77<>"",'Solar prot device - data'!J77,"") -> 
B78: ='Solar prot device - data'!B78 -> 64 | C78: =IF('Solar prot device - data'!C78<>"",C$6&" + "&'Solar prot device - data'!C78,"") ->  | D78: =IF('Solar prot device - data'!D78<>"",'Solar prot device - data'!D78,"") ->  | E78: =IF('Solar prot device - data'!E78<>"",'Solar prot device - data'!E78,"") ->  | F78: =IF('Solar prot device - data'!F78<>"",'Solar prot device - data'!F78,"") ->  | G78: =IF('Solar prot device - data'!G78<>"",'Solar prot device - data'!G78,"") ->  | H78: =IF('Solar prot device - data'!H78<>"",'Solar prot device - data'!H78,"") ->  | I78: =IF('Solar prot device - data'!I78<>"",'Solar prot device - data'!I78,"") ->  | J78: =IF('Solar prot device - data'!J78<>"",'Solar prot device - data'!J78,"") -> 
B79: ='Solar prot device - data'!B79 -> 65 | C79: =IF('Solar prot device - data'!C79<>"",C$6&" + "&'Solar prot device - data'!C79,"") ->  | D79: =IF('Solar prot device - data'!D79<>"",'Solar prot device - data'!D79,"") ->  | E79: =IF('Solar prot device - data'!E79<>"",'Solar prot device - data'!E79,"") ->  | F79: =IF('Solar prot device - data'!F79<>"",'Solar prot device - data'!F79,"") ->  | G79: =IF('Solar prot device - data'!G79<>"",'Solar prot device - data'!G79,"") ->  | H79: =IF('Solar prot device - data'!H79<>"",'Solar prot device - data'!H79,"") ->  | I79: =IF('Solar prot device - data'!I79<>"",'Solar prot device - data'!I79,"") ->  | J79: =IF('Solar prot device - data'!J79<>"",'Solar prot device - data'!J79,"") ->  | K79: =IF(AND(D79<>"",E79<>"",$D$6<>"",$E$6<>""),D79*$E$6+G79*$AB$6/$AB$3+D79*(1-$E$6)*$AB$6/$AB$2,"") ->  | L79: =IF(AND(D79<>"",E79<>"",$D$6<>"",$E$6<>""),$E$6*(1-$E$6*E79-G79*$AB$7/$AB$4),"") ->  | M79: =IF(AND(D79<>"",E79<>"",$D$6<>"",$E$6<>""),$E$6*D79+$E$6*(G79+(1-$E$6)*E79)*$AB$8/$AB$5,"") ->  | N79: =IF(AND(D79<>"",F79<>"",$F$6<>"",$G$6<>""),$F$6*D79/(1-$G$6*F79),"") ->  | O79: =IF(AND(D79<>"",E79<>"",$F$6<>"",$H$6<>""),$F$6*D79/(1-$H$6*E79),"") ->  | R79: =IF(AND(H79<>"",J79<>"",$I$6<>"",$J$6<>""),$I$6*H79/(1-$J$6*J79),"") ->  | S79: =IF(AND(H79<>"",I79<>"",$I$6<>"",$K$6<>""),$I$6*H79/(1-$K$6*I79),"") ->  | U79: =IF(AND(K79<>"",$E$6<>""),K79/$E$6,"") ->  | V79: =IF(AND(L79<>"",$E$6<>""),L79/$E$6,"") ->  | W79: =IF(AND(M79<>"",$E$6<>""),M79/$E$6,"") -> 
B80: ='Solar prot device - data'!B80 -> 66 | C80: =IF('Solar prot device - data'!C80<>"",C$6&" + "&'Solar prot device - data'!C80,"") ->  | D80: =IF('Solar prot device - data'!D80<>"",'Solar prot device - data'!D80,"") ->  | E80: =IF('Solar prot device - data'!E80<>"",'Solar prot device - data'!E80,"") ->  | F80: =IF('Solar prot device - data'!F80<>"",'Solar prot device - data'!F80,"") ->  | G80: =IF('Solar prot device - data'!G80<>"",'Solar prot device - data'!G80,"") ->  | H80: =IF('Solar prot device - data'!H80<>"",'Solar prot device - data'!H80,"") ->  | I80: =IF('Solar prot device - data'!I80<>"",'Solar prot device - data'!I80,"") ->  | J80: =IF('Solar prot device - data'!J80<>"",'Solar prot device - data'!J80,"") ->  | P80: =IF(AND(K80<>"", N80<>""),K80-N80,"") ->  | Q80: =IF(AND(L80<>"", O80<>""),L80-O80,"") -> 
B81: ='Solar prot device - data'!B81 -> 67 | C81: =IF('Solar prot device - data'!C81<>"",C$6&" + "&'Solar prot device - data'!C81,"") ->  | D81: =IF('Solar prot device - data'!D81<>"",'Solar prot device - data'!D81,"") ->  | E81: =IF('Solar prot device - data'!E81<>"",'Solar prot device - data'!E81,"") ->  | F81: =IF('Solar prot device - data'!F81<>"",'Solar prot device - data'!F81,"") ->  | G81: =IF('Solar prot device - data'!G81<>"",'Solar prot device - data'!G81,"") ->  | H81: =IF('Solar prot device - data'!H81<>"",'Solar prot device - data'!H81,"") ->  | I81: =IF('Solar prot device - data'!I81<>"",'Solar prot device - data'!I81,"") ->  | J81: =IF('Solar prot device - data'!J81<>"",'Solar prot device - data'!J81,"") -> 
B82: ='Solar prot device - data'!B82 -> 68 | C82: =IF('Solar prot device - data'!C82<>"",C$6&" + "&'Solar prot device - data'!C82,"") ->  | D82: =IF('Solar prot device - data'!D82<>"",'Solar prot device - data'!D82,"") ->  | E82: =IF('Solar prot device - data'!E82<>"",'Solar prot device - data'!E82,"") ->  | F82: =IF('Solar prot device - data'!F82<>"",'Solar prot device - data'!F82,"") ->  | G82: =IF('Solar prot device - data'!G82<>"",'Solar prot device - data'!G82,"") ->  | H82: =IF('Solar prot device - data'!H82<>"",'Solar prot device - data'!H82,"") ->  | I82: =IF('Solar prot device - data'!I82<>"",'Solar prot device - data'!I82,"") ->  | J82: =IF('Solar prot device - data'!J82<>"",'Solar prot device - data'!J82,"") -> 
B83: ='Solar prot device - data'!B83 -> 69 | C83: =IF('Solar prot device - data'!C83<>"",C$6&" + "&'Solar prot device - data'!C83,"") ->  | D83: =IF('Solar prot device - data'!D83<>"",'Solar prot device - data'!D83,"") ->  | E83: =IF('Solar prot device - data'!E83<>"",'Solar prot device - data'!E83,"") ->  | F83: =IF('Solar prot device - data'!F83<>"",'Solar prot device - data'!F83,"") ->  | G83: =IF('Solar prot device - data'!G83<>"",'Solar prot device - data'!G83,"") ->  | H83: =IF('Solar prot device - data'!H83<>"",'Solar prot device - data'!H83,"") ->  | I83: =IF('Solar prot device - data'!I83<>"",'Solar prot device - data'!I83,"") ->  | J83: =IF('Solar prot device - data'!J83<>"",'Solar prot device - data'!J83,"") -> 
B84: ='Solar prot device - data'!B84 -> 70 | C84: =IF('Solar prot device - data'!C84<>"",C$6&" + "&'Solar prot device - data'!C84,"") ->  | D84: =IF('Solar prot device - data'!D84<>"",'Solar prot device - data'!D84,"") ->  | E84: =IF('Solar prot device - data'!E84<>"",'Solar prot device - data'!E84,"") ->  | F84: =IF('Solar prot device - data'!F84<>"",'Solar prot device - data'!F84,"") ->  | G84: =IF('Solar prot device - data'!G84<>"",'Solar prot device - data'!G84,"") ->  | H84: =IF('Solar prot device - data'!H84<>"",'Solar prot device - data'!H84,"") ->  | I84: =IF('Solar prot device - data'!I84<>"",'Solar prot device - data'!I84,"") ->  | J84: =IF('Solar prot device - data'!J84<>"",'Solar prot device - data'!J84,"") -> 
B85: ='Solar prot device - data'!B85 -> 71 | C85: =IF('Solar prot device - data'!C85<>"",C$6&" + "&'Solar prot device - data'!C85,"") ->  | D85: =IF('Solar prot device - data'!D85<>"",'Solar prot device - data'!D85,"") ->  | E85: =IF('Solar prot device - data'!E85<>"",'Solar prot device - data'!E85,"") ->  | F85: =IF('Solar prot device - data'!F85<>"",'Solar prot device - data'!F85,"") ->  | G85: =IF('Solar prot device - data'!G85<>"",'Solar prot device - data'!G85,"") ->  | H85: =IF('Solar prot device - data'!H85<>"",'Solar prot device - data'!H85,"") ->  | I85: =IF('Solar prot device - data'!I85<>"",'Solar prot device - data'!I85,"") ->  | J85: =IF('Solar prot device - data'!J85<>"",'Solar prot device - data'!J85,"") -> 
B86: ='Solar prot device - data'!B86 -> 72 | C86: =IF('Solar prot device - data'!C86<>"",C$6&" + "&'Solar prot device - data'!C86,"") ->  | D86: =IF('Solar prot device - data'!D86<>"",'Solar prot device - data'!D86,"") ->  | E86: =IF('Solar prot device - data'!E86<>"",'Solar prot device - data'!E86,"") ->  | F86: =IF('Solar prot device - data'!F86<>"",'Solar prot device - data'!F86,"") ->  | G86: =IF('Solar prot device - data'!G86<>"",'Solar prot device - data'!G86,"") ->  | H86: =IF('Solar prot device - data'!H86<>"",'Solar prot device - data'!H86,"") ->  | I86: =IF('Solar prot device - data'!I86<>"",'Solar prot device - data'!I86,"") ->  | J86: =IF('Solar prot device - data'!J86<>"",'Solar prot device - data'!J86,"") -> 
B87: ='Solar prot device - data'!B87 -> 73 | C87: =IF('Solar prot device - data'!C87<>"",C$6&" + "&'Solar prot device - data'!C87,"") ->  | D87: =IF('Solar prot device - data'!D87<>"",'Solar prot device - data'!D87,"") ->  | E87: =IF('Solar prot device - data'!E87<>"",'Solar prot device - data'!E87,"") ->  | F87: =IF('Solar prot device - data'!F87<>"",'Solar prot device - data'!F87,"") ->  | G87: =IF('Solar prot device - data'!G87<>"",'Solar prot device - data'!G87,"") ->  | H87: =IF('Solar prot device - data'!H87<>"",'Solar prot device - data'!H87,"") ->  | I87: =IF('Solar prot device - data'!I87<>"",'Solar prot device - data'!I87,"") ->  | J87: =IF('Solar prot device - data'!J87<>"",'Solar prot device - data'!J87,"") -> 
B88: ='Solar prot device - data'!B88 -> 74 | C88: =IF('Solar prot device - data'!C88<>"",C$6&" + "&'Solar prot device - data'!C88,"") ->  | D88: =IF('Solar prot device - data'!D88<>"",'Solar prot device - data'!D88,"") ->  | E88: =IF('Solar prot device - data'!E88<>"",'Solar prot device - data'!E88,"") ->  | F88: =IF('Solar prot device - data'!F88<>"",'Solar prot device - data'!F88,"") ->  | G88: =IF('Solar prot device - data'!G88<>"",'Solar prot device - data'!G88,"") ->  | H88: =IF('Solar prot device - data'!H88<>"",'Solar prot device - data'!H88,"") ->  | I88: =IF('Solar prot device - data'!I88<>"",'Solar prot device - data'!I88,"") ->  | J88: =IF('Solar prot device - data'!J88<>"",'Solar prot device - data'!J88,"") -> 
B89: ='Solar prot device - data'!B89 -> 75 | C89: =IF('Solar prot device - data'!C89<>"",C$6&" + "&'Solar prot device - data'!C89,"") ->  | D89: =IF('Solar prot device - data'!D89<>"",'Solar prot device - data'!D89,"") ->  | E89: =IF('Solar prot device - data'!E89<>"",'Solar prot device - data'!E89,"") ->  | F89: =IF('Solar prot device - data'!F89<>"",'Solar prot device - data'!F89,"") ->  | G89: =IF('Solar prot device - data'!G89<>"",'Solar prot device - data'!G89,"") ->  | H89: =IF('Solar prot device - data'!H89<>"",'Solar prot device - data'!H89,"") ->  | I89: =IF('Solar prot device - data'!I89<>"",'Solar prot device - data'!I89,"") ->  | J89: =IF('Solar prot device - data'!J89<>"",'Solar prot device - data'!J89,"") -> 
B90: ='Solar prot device - data'!B90 -> 76 | C90: =IF('Solar prot device - data'!C90<>"",C$6&" + "&'Solar prot device - data'!C90,"") ->  | D90: =IF('Solar prot device - data'!D90<>"",'Solar prot device - data'!D90,"") ->  | E90: =IF('Solar prot device - data'!E90<>"",'Solar prot device - data'!E90,"") ->  | F90: =IF('Solar prot device - data'!F90<>"",'Solar prot device - data'!F90,"") ->  | G90: =IF('Solar prot device - data'!G90<>"",'Solar prot device - data'!G90,"") ->  | H90: =IF('Solar prot device - data'!H90<>"",'Solar prot device - data'!H90,"") ->  | I90: =IF('Solar prot device - data'!I90<>"",'Solar prot device - data'!I90,"") ->  | J90: =IF('Solar prot device - data'!J90<>"",'Solar prot device - data'!J90,"") -> 
B91: ='Solar prot device - data'!B91 -> 77 | C91: =IF('Solar prot device - data'!C91<>"",C$6&" + "&'Solar prot device - data'!C91,"") ->  | D91: =IF('Solar prot device - data'!D91<>"",'Solar prot device - data'!D91,"") ->  | E91: =IF('Solar prot device - data'!E91<>"",'Solar prot device - data'!E91,"") ->  | F91: =IF('Solar prot device - data'!F91<>"",'Solar prot device - data'!F91,"") ->  | G91: =IF('Solar prot device - data'!G91<>"",'Solar prot device - data'!G91,"") ->  | H91: =IF('Solar prot device - data'!H91<>"",'Solar prot device - data'!H91,"") ->  | I91: =IF('Solar prot device - data'!I91<>"",'Solar prot device - data'!I91,"") ->  | J91: =IF('Solar prot device - data'!J91<>"",'Solar prot device - data'!J91,"") -> 
B92: ='Solar prot device - data'!B92 -> 78 | C92: =IF('Solar prot device - data'!C92<>"",C$6&" + "&'Solar prot device - data'!C92,"") ->  | D92: =IF('Solar prot device - data'!D92<>"",'Solar prot device - data'!D92,"") ->  | E92: =IF('Solar prot device - data'!E92<>"",'Solar prot device - data'!E92,"") ->  | F92: =IF('Solar prot device - data'!F92<>"",'Solar prot device - data'!F92,"") ->  | G92: =IF('Solar prot device - data'!G92<>"",'Solar prot device - data'!G92,"") ->  | H92: =IF('Solar prot device - data'!H92<>"",'Solar prot device - data'!H92,"") ->  | I92: =IF('Solar prot device - data'!I92<>"",'Solar prot device - data'!I92,"") ->  | J92: =IF('Solar prot device - data'!J92<>"",'Solar prot device - data'!J92,"") -> 
B93: ='Solar prot device - data'!B93 -> 79 | C93: =IF('Solar prot device - data'!C93<>"",C$6&" + "&'Solar prot device - data'!C93,"") ->  | D93: =IF('Solar prot device - data'!D93<>"",'Solar prot device - data'!D93,"") ->  | E93: =IF('Solar prot device - data'!E93<>"",'Solar prot device - data'!E93,"") ->  | F93: =IF('Solar prot device - data'!F93<>"",'Solar prot device - data'!F93,"") ->  | G93: =IF('Solar prot device - data'!G93<>"",'Solar prot device - data'!G93,"") ->  | H93: =IF('Solar prot device - data'!H93<>"",'Solar prot device - data'!H93,"") ->  | I93: =IF('Solar prot device - data'!I93<>"",'Solar prot device - data'!I93,"") ->  | J93: =IF('Solar prot device - data'!J93<>"",'Solar prot device - data'!J93,"") -> 
B94: ='Solar prot device - data'!B94 -> 80 | C94: =IF('Solar prot device - data'!C94<>"",C$6&" + "&'Solar prot device - data'!C94,"") ->  | D94: =IF('Solar prot device - data'!D94<>"",'Solar prot device - data'!D94,"") ->  | E94: =IF('Solar prot device - data'!E94<>"",'Solar prot device - data'!E94,"") ->  | F94: =IF('Solar prot device - data'!F94<>"",'Solar prot device - data'!F94,"") ->  | G94: =IF('Solar prot device - data'!G94<>"",'Solar prot device - data'!G94,"") ->  | H94: =IF('Solar prot device - data'!H94<>"",'Solar prot device - data'!H94,"") ->  | I94: =IF('Solar prot device - data'!I94<>"",'Solar prot device - data'!I94,"") ->  | J94: =IF('Solar prot device - data'!J94<>"",'Solar prot device - data'!J94,"") -> 
B95: ='Solar prot device - data'!B95 -> 81 | C95: =IF('Solar prot device - data'!C95<>"",C$6&" + "&'Solar prot device - data'!C95,"") ->  | D95: =IF('Solar prot device - data'!D95<>"",'Solar prot device - data'!D95,"") ->  | E95: =IF('Solar prot device - data'!E95<>"",'Solar prot device - data'!E95,"") ->  | F95: =IF('Solar prot device - data'!F95<>"",'Solar prot device - data'!F95,"") ->  | G95: =IF('Solar prot device - data'!G95<>"",'Solar prot device - data'!G95,"") ->  | H95: =IF('Solar prot device - data'!H95<>"",'Solar prot device - data'!H95,"") ->  | I95: =IF('Solar prot device - data'!I95<>"",'Solar prot device - data'!I95,"") ->  | J95: =IF('Solar prot device - data'!J95<>"",'Solar prot device - data'!J95,"") -> 
B96: ='Solar prot device - data'!B96 -> 82 | C96: =IF('Solar prot device - data'!C96<>"",C$6&" + "&'Solar prot device - data'!C96,"") ->  | D96: =IF('Solar prot device - data'!D96<>"",'Solar prot device - data'!D96,"") ->  | E96: =IF('Solar prot device - data'!E96<>"",'Solar prot device - data'!E96,"") ->  | F96: =IF('Solar prot device - data'!F96<>"",'Solar prot device - data'!F96,"") ->  | G96: =IF('Solar prot device - data'!G96<>"",'Solar prot device - data'!G96,"") ->  | H96: =IF('Solar prot device - data'!H96<>"",'Solar prot device - data'!H96,"") ->  | I96: =IF('Solar prot device - data'!I96<>"",'Solar prot device - data'!I96,"") ->  | J96: =IF('Solar prot device - data'!J96<>"",'Solar prot device - data'!J96,"") -> 
B97: ='Solar prot device - data'!B97 -> 83 | C97: =IF('Solar prot device - data'!C97<>"",C$6&" + "&'Solar prot device - data'!C97,"") ->  | D97: =IF('Solar prot device - data'!D97<>"",'Solar prot device - data'!D97,"") ->  | E97: =IF('Solar prot device - data'!E97<>"",'Solar prot device - data'!E97,"") ->  | F97: =IF('Solar prot device - data'!F97<>"",'Solar prot device - data'!F97,"") ->  | G97: =IF('Solar prot device - data'!G97<>"",'Solar prot device - data'!G97,"") ->  | H97: =IF('Solar prot device - data'!H97<>"",'Solar prot device - data'!H97,"") ->  | I97: =IF('Solar prot device - data'!I97<>"",'Solar prot device - data'!I97,"") ->  | J97: =IF('Solar prot device - data'!J97<>"",'Solar prot device - data'!J97,"") -> 
B98: ='Solar prot device - data'!B98 -> 84 | C98: =IF('Solar prot device - data'!C98<>"",C$6&" + "&'Solar prot device - data'!C98,"") ->  | D98: =IF('Solar prot device - data'!D98<>"",'Solar prot device - data'!D98,"") ->  | E98: =IF('Solar prot device - data'!E98<>"",'Solar prot device - data'!E98,"") ->  | F98: =IF('Solar prot device - data'!F98<>"",'Solar prot device - data'!F98,"") ->  | G98: =IF('Solar prot device - data'!G98<>"",'Solar prot device - data'!G98,"") ->  | H98: =IF('Solar prot device - data'!H98<>"",'Solar prot device - data'!H98,"") ->  | I98: =IF('Solar prot device - data'!I98<>"",'Solar prot device - data'!I98,"") ->  | J98: =IF('Solar prot device - data'!J98<>"",'Solar prot device - data'!J98,"") -> 
B99: ='Solar prot device - data'!B99 -> 85 | C99: =IF('Solar prot device - data'!C99<>"",C$6&" + "&'Solar prot device - data'!C99,"") ->  | D99: =IF('Solar prot device - data'!D99<>"",'Solar prot device - data'!D99,"") ->  | E99: =IF('Solar prot device - data'!E99<>"",'Solar prot device - data'!E99,"") ->  | F99: =IF('Solar prot device - data'!F99<>"",'Solar prot device - data'!F99,"") ->  | G99: =IF('Solar prot device - data'!G99<>"",'Solar prot device - data'!G99,"") ->  | H99: =IF('Solar prot device - data'!H99<>"",'Solar prot device - data'!H99,"") ->  | I99: =IF('Solar prot device - data'!I99<>"",'Solar prot device - data'!I99,"") ->  | J99: =IF('Solar prot device - data'!J99<>"",'Solar prot device - data'!J99,"") -> 
B100: ='Solar prot device - data'!B100 -> 86 | C100: =IF('Solar prot device - data'!C100<>"",C$6&" + "&'Solar prot device - data'!C100,"") ->  | D100: =IF('Solar prot device - data'!D100<>"",'Solar prot device - data'!D100,"") ->  | E100: =IF('Solar prot device - data'!E100<>"",'Solar prot device - data'!E100,"") ->  | F100: =IF('Solar prot device - data'!F100<>"",'Solar prot device - data'!F100,"") ->  | G100: =IF('Solar prot device - data'!G100<>"",'Solar prot device - data'!G100,"") ->  | H100: =IF('Solar prot device - data'!H100<>"",'Solar prot device - data'!H100,"") ->  | I100: =IF('Solar prot device - data'!I100<>"",'Solar prot device - data'!I100,"") ->  | J100: =IF('Solar prot device - data'!J100<>"",'Solar prot device - data'!J100,"") -> 
B101: ='Solar prot device - data'!B101 -> 87 | C101: =IF('Solar prot device - data'!C101<>"",C$6&" + "&'Solar prot device - data'!C101,"") ->  | D101: =IF('Solar prot device - data'!D101<>"",'Solar prot device - data'!D101,"") ->  | E101: =IF('Solar prot device - data'!E101<>"",'Solar prot device - data'!E101,"") ->  | F101: =IF('Solar prot device - data'!F101<>"",'Solar prot device - data'!F101,"") ->  | G101: =IF('Solar prot device - data'!G101<>"",'Solar prot device - data'!G101,"") ->  | H101: =IF('Solar prot device - data'!H101<>"",'Solar prot device - data'!H101,"") ->  | I101: =IF('Solar prot device - data'!I101<>"",'Solar prot device - data'!I101,"") ->  | J101: =IF('Solar prot device - data'!J101<>"",'Solar prot device - data'!J101,"") -> 
B102: ='Solar prot device - data'!B102 -> 88 | C102: =IF('Solar prot device - data'!C102<>"",C$6&" + "&'Solar prot device - data'!C102,"") ->  | D102: =IF('Solar prot device - data'!D102<>"",'Solar prot device - data'!D102,"") ->  | E102: =IF('Solar prot device - data'!E102<>"",'Solar prot device - data'!E102,"") ->  | F102: =IF('Solar prot device - data'!F102<>"",'Solar prot device - data'!F102,"") ->  | G102: =IF('Solar prot device - data'!G102<>"",'Solar prot device - data'!G102,"") ->  | H102: =IF('Solar prot device - data'!H102<>"",'Solar prot device - data'!H102,"") ->  | I102: =IF('Solar prot device - data'!I102<>"",'Solar prot device - data'!I102,"") ->  | J102: =IF('Solar prot device - data'!J102<>"",'Solar prot device - data'!J102,"") -> 
B103: ='Solar prot device - data'!B103 -> 89 | C103: =IF('Solar prot device - data'!C103<>"",C$6&" + "&'Solar prot device - data'!C103,"") ->  | D103: =IF('Solar prot device - data'!D103<>"",'Solar prot device - data'!D103,"") ->  | E103: =IF('Solar prot device - data'!E103<>"",'Solar prot device - data'!E103,"") ->  | F103: =IF('Solar prot device - data'!F103<>"",'Solar prot device - data'!F103,"") ->  | G103: =IF('Solar prot device - data'!G103<>"",'Solar prot device - data'!G103,"") ->  | H103: =IF('Solar prot device - data'!H103<>"",'Solar prot device - data'!H103,"") ->  | I103: =IF('Solar prot device - data'!I103<>"",'Solar prot device - data'!I103,"") ->  | J103: =IF('Solar prot device - data'!J103<>"",'Solar prot device - data'!J103,"") -> 
B104: ='Solar prot device - data'!B104 -> 90 | C104: =IF('Solar prot device - data'!C104<>"",C$6&" + "&'Solar prot device - data'!C104,"") ->  | D104: =IF('Solar prot device - data'!D104<>"",'Solar prot device - data'!D104,"") ->  | E104: =IF('Solar prot device - data'!E104<>"",'Solar prot device - data'!E104,"") ->  | F104: =IF('Solar prot device - data'!F104<>"",'Solar prot device - data'!F104,"") ->  | G104: =IF('Solar prot device - data'!G104<>"",'Solar prot device - data'!G104,"") ->  | H104: =IF('Solar prot device - data'!H104<>"",'Solar prot device - data'!H104,"") ->  | I104: =IF('Solar prot device - data'!I104<>"",'Solar prot device - data'!I104,"") ->  | J104: =IF('Solar prot device - data'!J104<>"",'Solar prot device - data'!J104,"") -> 
B105: ='Solar prot device - data'!B105 -> 91 | C105: =IF('Solar prot device - data'!C105<>"",C$6&" + "&'Solar prot device - data'!C105,"") ->  | D105: =IF('Solar prot device - data'!D105<>"",'Solar prot device - data'!D105,"") ->  | E105: =IF('Solar prot device - data'!E105<>"",'Solar prot device - data'!E105,"") ->  | F105: =IF('Solar prot device - data'!F105<>"",'Solar prot device - data'!F105,"") ->  | G105: =IF('Solar prot device - data'!G105<>"",'Solar prot device - data'!G105,"") ->  | H105: =IF('Solar prot device - data'!H105<>"",'Solar prot device - data'!H105,"") ->  | I105: =IF('Solar prot device - data'!I105<>"",'Solar prot device - data'!I105,"") ->  | J105: =IF('Solar prot device - data'!J105<>"",'Solar prot device - data'!J105,"") -> 
B106: ='Solar prot device - data'!B106 -> 92 | C106: =IF('Solar prot device - data'!C106<>"",C$6&" + "&'Solar prot device - data'!C106,"") ->  | D106: =IF('Solar prot device - data'!D106<>"",'Solar prot device - data'!D106,"") ->  | E106: =IF('Solar prot device - data'!E106<>"",'Solar prot device - data'!E106,"") ->  | F106: =IF('Solar prot device - data'!F106<>"",'Solar prot device - data'!F106,"") ->  | G106: =IF('Solar prot device - data'!G106<>"",'Solar prot device - data'!G106,"") ->  | H106: =IF('Solar prot device - data'!H106<>"",'Solar prot device - data'!H106,"") ->  | I106: =IF('Solar prot device - data'!I106<>"",'Solar prot device - data'!I106,"") ->  | J106: =IF('Solar prot device - data'!J106<>"",'Solar prot device - data'!J106,"") -> 
B107: ='Solar prot device - data'!B107 -> 93 | C107: =IF('Solar prot device - data'!C107<>"",C$6&" + "&'Solar prot device - data'!C107,"") ->  | D107: =IF('Solar prot device - data'!D107<>"",'Solar prot device - data'!D107,"") ->  | E107: =IF('Solar prot device - data'!E107<>"",'Solar prot device - data'!E107,"") ->  | F107: =IF('Solar prot device - data'!F107<>"",'Solar prot device - data'!F107,"") ->  | G107: =IF('Solar prot device - data'!G107<>"",'Solar prot device - data'!G107,"") ->  | H107: =IF('Solar prot device - data'!H107<>"",'Solar prot device - data'!H107,"") ->  | I107: =IF('Solar prot device - data'!I107<>"",'Solar prot device - data'!I107,"") ->  | J107: =IF('Solar prot device - data'!J107<>"",'Solar prot device - data'!J107,"") -> 
B108: ='Solar prot device - data'!B108 -> 94 | C108: =IF('Solar prot device - data'!C108<>"",C$6&" + "&'Solar prot device - data'!C108,"") ->  | D108: =IF('Solar prot device - data'!D108<>"",'Solar prot device - data'!D108,"") ->  | E108: =IF('Solar prot device - data'!E108<>"",'Solar prot device - data'!E108,"") ->  | F108: =IF('Solar prot device - data'!F108<>"",'Solar prot device - data'!F108,"") ->  | G108: =IF('Solar prot device - data'!G108<>"",'Solar prot device - data'!G108,"") ->  | H108: =IF('Solar prot device - data'!H108<>"",'Solar prot device - data'!H108,"") ->  | I108: =IF('Solar prot device - data'!I108<>"",'Solar prot device - data'!I108,"") ->  | J108: =IF('Solar prot device - data'!J108<>"",'Solar prot device - data'!J108,"") -> 
B109: ='Solar prot device - data'!B109 -> 95 | C109: =IF('Solar prot device - data'!C109<>"",C$6&" + "&'Solar prot device - data'!C109,"") ->  | D109: =IF('Solar prot device - data'!D109<>"",'Solar prot device - data'!D109,"") ->  | E109: =IF('Solar prot device - data'!E109<>"",'Solar prot device - data'!E109,"") ->  | F109: =IF('Solar prot device - data'!F109<>"",'Solar prot device - data'!F109,"") ->  | G109: =IF('Solar prot device - data'!G109<>"",'Solar prot device - data'!G109,"") ->  | H109: =IF('Solar prot device - data'!H109<>"",'Solar prot device - data'!H109,"") ->  | I109: =IF('Solar prot device - data'!I109<>"",'Solar prot device - data'!I109,"") ->  | J109: =IF('Solar prot device - data'!J109<>"",'Solar prot device - data'!J109,"") -> 
B110: ='Solar prot device - data'!B110 -> 96 | C110: =IF('Solar prot device - data'!C110<>"",C$6&" + "&'Solar prot device - data'!C110,"") ->  | D110: =IF('Solar prot device - data'!D110<>"",'Solar prot device - data'!D110,"") ->  | E110: =IF('Solar prot device - data'!E110<>"",'Solar prot device - data'!E110,"") ->  | F110: =IF('Solar prot device - data'!F110<>"",'Solar prot device - data'!F110,"") ->  | G110: =IF('Solar prot device - data'!G110<>"",'Solar prot device - data'!G110,"") ->  | H110: =IF('Solar prot device - data'!H110<>"",'Solar prot device - data'!H110,"") ->  | I110: =IF('Solar prot device - data'!I110<>"",'Solar prot device - data'!I110,"") ->  | J110: =IF('Solar prot device - data'!J110<>"",'Solar prot device - data'!J110,"") -> 
B111: ='Solar prot device - data'!B111 -> 97 | C111: =IF('Solar prot device - data'!C111<>"",C$6&" + "&'Solar prot device - data'!C111,"") ->  | D111: =IF('Solar prot device - data'!D111<>"",'Solar prot device - data'!D111,"") ->  | E111: =IF('Solar prot device - data'!E111<>"",'Solar prot device - data'!E111,"") ->  | F111: =IF('Solar prot device - data'!F111<>"",'Solar prot device - data'!F111,"") ->  | G111: =IF('Solar prot device - data'!G111<>"",'Solar prot device - data'!G111,"") ->  | H111: =IF('Solar prot device - data'!H111<>"",'Solar prot device - data'!H111,"") ->  | I111: =IF('Solar prot device - data'!I111<>"",'Solar prot device - data'!I111,"") ->  | J111: =IF('Solar prot device - data'!J111<>"",'Solar prot device - data'!J111,"") -> 
B112: ='Solar prot device - data'!B112 -> 98 | C112: =IF('Solar prot device - data'!C112<>"",C$6&" + "&'Solar prot device - data'!C112,"") ->  | D112: =IF('Solar prot device - data'!D112<>"",'Solar prot device - data'!D112,"") ->  | E112: =IF('Solar prot device - data'!E112<>"",'Solar prot device - data'!E112,"") ->  | F112: =IF('Solar prot device - data'!F112<>"",'Solar prot device - data'!F112,"") ->  | G112: =IF('Solar prot device - data'!G112<>"",'Solar prot device - data'!G112,"") ->  | H112: =IF('Solar prot device - data'!H112<>"",'Solar prot device - data'!H112,"") ->  | I112: =IF('Solar prot device - data'!I112<>"",'Solar prot device - data'!I112,"") ->  | J112: =IF('Solar prot device - data'!J112<>"",'Solar prot device - data'!J112,"") -> 
B113: ='Solar prot device - data'!B113 -> 99 | C113: =IF('Solar prot device - data'!C113<>"",C$6&" + "&'Solar prot device - data'!C113,"") ->  | D113: =IF('Solar prot device - data'!D113<>"",'Solar prot device - data'!D113,"") ->  | E113: =IF('Solar prot device - data'!E113<>"",'Solar prot device - data'!E113,"") ->  | F113: =IF('Solar prot device - data'!F113<>"",'Solar prot device - data'!F113,"") ->  | G113: =IF('Solar prot device - data'!G113<>"",'Solar prot device - data'!G113,"") ->  | H113: =IF('Solar prot device - data'!H113<>"",'Solar prot device - data'!H113,"") ->  | I113: =IF('Solar prot device - data'!I113<>"",'Solar prot device - data'!I113,"") ->  | J113: =IF('Solar prot device - data'!J113<>"",'Solar prot device - data'!J113,"") -> 
B114: ='Solar prot device - data'!B114 -> 100 | C114: =IF('Solar prot device - data'!C114<>"",C$6&" + "&'Solar prot device - data'!C114,"") ->  | D114: =IF('Solar prot device - data'!D114<>"",'Solar prot device - data'!D114,"") ->  | E114: =IF('Solar prot device - data'!E114<>"",'Solar prot device - data'!E114,"") ->  | F114: =IF('Solar prot device - data'!F114<>"",'Solar prot device - data'!F114,"") ->  | G114: =IF('Solar prot device - data'!G114<>"",'Solar prot device - data'!G114,"") ->  | H114: =IF('Solar prot device - data'!H114<>"",'Solar prot device - data'!H114,"") ->  | I114: =IF('Solar prot device - data'!I114<>"",'Solar prot device - data'!I114,"") ->  | J114: =IF('Solar prot device - data'!J114<>"",'Solar prot device - data'!J114,"") -> 

Sheet Results-2
B2: The following chart gives the total solar energy transmittance gtotal for the combination glazing - solar protection device. The solar protection device can be external, internal or integrated between the panes. The effect of different U-values and g-values of the glazing on the total solar energy transmittance of the combination is shown. Please, note that the calculation are done for combination of Ug you specify, and all g-values between 0.18 and 0.85, independently of the fact that such glazing exist or not.
B3: Choose the solar protection device that you want to analyse :
G4: (See sheet "Solar prot device - data") | S4: Glazing | T4: U1 | U4: =D14 -> 2.9 | V4: (U=thermal transmittance in [W/(m²K)])
B5: 10 | T5: U2 | U5: =D15 -> 1.1
T6: U3 | U6: =D16 -> 0.8
B7: Blind | C7: Name: | D7: =VLOOKUP($U$7,'Solar prot device - data'!$B$15:$E$114,2) -> High translucent - Pastel | S7: Blind | T7: n° | U7: =B5*1 -> 10 | X7: G1 | Y7: 5 | Z7: W/m²K
C8: τe,B * | D8: =IF(VLOOKUP($U$7,'Solar prot device - data'!$B$15:$G$114,3)<>"",VLOOKUP($U$7,'Solar prot device - data'!$B$15:$G$114,3),"") -> 0.4 | T8: Name | U8: =VLOOKUP($U$7,'Solar prot device - data'!$B$15:$E$114,2) -> High translucent - Pastel | X8: G2 ext | Y8: 10 | Z8: W/m²K
C9: ρe,B * | D9: =IF(VLOOKUP($U$7,'Solar prot device - data'!$B$15:$G$114,4)<>"",VLOOKUP($U$7,'Solar prot device - data'!$B$15:$G$114,4),"") -> 0.3 | T9: te,B | U9: =D8 -> 0.4 | X9: G2 int | Y9: 30 | Z9: W/m²K
C10: αe,B | D10: =IF(VLOOKUP($U$7,'Solar prot device - data'!$B$15:$G$114,6)<>"",VLOOKUP($U$7,'Solar prot device - data'!$B$15:$G$114,6),"") -> 0.3 | T10: re,B | U10: =D9 -> 0.3 | X10: G3 | Y10: 3 | Z10: W/m²K
T11: a e,B | U11: =D10 -> 0.3
B12: Specify 3 Ug-values :
B14: Glazing | C14: Ug 1 | D14: 2.9 | E14: W/(m².K) | F14: Show | G14: Internal
C15: Ug 2 | D15: 1.1 | E15: W/(m².K) | G15: External | V15: External, | W15: External, | X15: External, | Z15: Internal, | AA15: Internal, | AB15: Internal, | AD15: Between, | AE15: Between, | AF15: Between,
C16: Ug 3 | D16: 0.8 | E16: W/(m².K) | G16: Between | V16: =CONCATENATE("Ug=",D14) -> Ug=2.9 | W16: =CONCATENATE("Ug=",D15) -> Ug=1.1 | X16: =CONCATENATE("Ug=",D16) -> Ug=0.8 | Z16: =CONCATENATE("Ug=",$D14) -> Ug=2.9 | AA16: =CONCATENATE("Ug=",$D15) -> Ug=1.1 | AB16: =CONCATENATE("Ug=",$D16) -> Ug=0.8 | AD16: =CONCATENATE("Ug=",$D14) -> Ug=2.9 | AE16: =CONCATENATE("Ug=",$D15) -> Ug=1.1 | AF16: =CONCATENATE("Ug=",$D16) -> Ug=0.8
T17: U glazing | V17: =$U$4 -> 2.9 | W17: =$U$5 -> 1.1 | X17: =$U$6 -> 0.8 | Z17: =$U$4 -> 2.9 | AA17: =$U$5 -> 1.1 | AB17: =$U$6 -> 0.8 | AD17: =$U$4 -> 2.9 | AE17: =$U$5 -> 1.1 | AF17: =$U$6 -> 0.8
T18: G | V18: =1/(1/V$17+1/$Y$7+1/$Y$8) -> 1.550802139 | W18: =1/(1/W$17+1/$Y$7+1/$Y$8) -> 0.8270676692 | X18: =1/(1/X$17+1/$Y$7+1/$Y$8) -> 0.6451612903 | Z18: =1/(1/Z$17+1/$Y$9) -> 2.6443769 | AA18: =1/(1/AA$17+1/$Y$9) -> 1.061093248 | AB18: =1/(1/AB$17+1/$Y$9) -> 0.7792207792 | AD18: =1/(1/$AD17+1/$Y10) -> 1.474576271 | AE18: =1/(1/$AE17+1/$Y10) -> 0.8048780488 | AF18: =1/(1/$AF17+1/$Y10) -> 0.6315789474
T21: g glazing
T23: 0.15 | V23: =$U$9*$T23+$U$11*V$18/$Y$8+$U$9*(1-$T23)*V$18/$Y$7 -> 0.2119786096 | W23: 0.1410526316 | X23: 0.1232258065 | Z23: =$T23*(1-$T23*$U$10-$U$11*Z$18/$Y$9) -> 0.1392834347 | AA23: 0.1416583601 | AB23: 0.1420811688 | AD23: =$T23*$U$9+$T23*($U$11+(1-$T23)*$U$10)*AD$18/$Y$10 -> 0.1009194915 | AE23: 0.08233536585 | AF23: 0.07752631579
T24: 0.2 | V24: 0.2257754011 | W24: 0.1577443609 | X24: 0.1406451613 | Z24: 0.1827112462 | AA24: 0.1858778135 | AB24: 0.1864415584 | AD24: 0.1330847458 | AE24: 0.1089756098 | AF24: 0.1027368421
T25: 0.25 | V25: 0.2395721925 | W25: 0.1744360902 | X25: 0.1580645161 | Z25: 0.2246390578 | AA25: 0.2285972669 | AB25: 0.2293019481 | AD25: 0.1645127119 | AE25: 0.1352134146 | AF25: 0.1276315789
T26: 0.3 | V26: 0.253368984 | W26: 0.1911278195 | X26: 0.175483871 | Z26: 0.2650668693 | AA26: 0.2698167203 | AB26: 0.2706623377 | AD26: 0.1952033898 | AE26: 0.1610487805 | AF26: 0.1522105263
T27: 0.35 | V27: 0.2671657754 | W27: 0.2078195489 | X27: 0.1929032258 | Z27: 0.3039946809 | AA27: 0.3095361736 | AB27: 0.3105227273 | AD27: 0.2251567797 | AE27: 0.1864817073 | AF27: 0.1764736842
T28: 0.4 | V28: 0.2809625668 | W28: 0.2245112782 | X28: 0.2103225806 | Z28: 0.3414224924 | AA28: 0.347755627 | AB28: 0.3488831169 | AD28: 0.2543728814 | AE28: 0.2115121951 | AF28: 0.2004210526
T29: 0.45 | V29: 0.2947593583 | W29: 0.2412030075 | X29: 0.2277419355 | Z29: 0.377350304 | AA29: 0.3844750804 | AB29: 0.3857435065 | AD29: 0.2828516949 | AE29: 0.2361402439 | AF29: 0.2240526316
T30: 0.5 | V30: 0.3085561497 | W30: 0.2578947368 | X30: 0.2451612903 | Z30: 0.4117781155 | AA30: 0.4196945338 | AB30: 0.4211038961 | AD30: 0.3105932203 | AE30: 0.2603658537 | AF30: 0.2473684211
T31: 0.55 | V31: 0.3223529412 | W31: 0.2745864662 | X31: 0.2625806452 | Z31: 0.4447059271 | AA31: 0.4534139871 | AB31: 0.4549642857 | AD31: 0.3375974576 | AE31: 0.2841890244 | AF31: 0.2703684211
T32: 0.6 | V32: 0.3361497326 | W32: 0.2912781955 | X32: 0.28 | Z32: 0.4761337386 | AA32: 0.4856334405 | AB32: 0.4873246753 | AD32: 0.3638644068 | AE32: 0.3076097561 | AF32: 0.2930526316
T33: 0.65 | V33: 0.3499465241 | W33: 0.3079699248 | X33: 0.2974193548 | Z33: 0.5060615502 | AA33: 0.5163528939 | AB33: 0.5181850649 | AD33: 0.3893940678 | AE33: 0.3306280488 | AF33: 0.3154210526
T34: 0.7 | V34: 0.3637433155 | W34: 0.3246616541 | X34: 0.3148387097 | Z34: 0.5344893617 | AA34: 0.5455723473 | AB34: 0.5475454545 | AD34: 0.4141864407 | AE34: 0.3532439024 | AF34: 0.3374736842
T35: 0.75 | V35: 0.377540107 | W35: 0.3413533835 | X35: 0.3322580645 | Z35: 0.5614171733 | AA35: 0.5732918006 | AB35: 0.5754058442 | AD35: 0.4382415254 | AE35: 0.3754573171 | AF35: 0.3592105263
T36: 0.8 | V36: 0.3913368984 | W36: 0.3580451128 | X36: 0.3496774194 | Z36: 0.5868449848 | AA36: 0.599511254 | AB36: 0.6017662338 | AD36: 0.461559322 | AE36: 0.3972682927 | AF36: 0.3806315789
T37: 0.85 | V37: 0.4051336898 | W37: 0.3747368421 | X37: 0.3670967742 | Z37: 0.6107727964 | AA37: 0.6242307074 | AB37: 0.6266266234 | AD37: 0.4841398305 | AE37: 0.4186768293 | AF37: 0.4017368421
V38: =IF($V39,V15&V16,"") -> External, Ug=2.9 | W38: =IF($V39,W15&W16,"") -> External, Ug=1.1 | X38: =IF($V39,X15&X16,"") -> External, Ug=0.8 | Z38: =IF($Z39,Z15&Z16,"") -> Internal, Ug=2.9 | AA38: =IF($Z39,AA15&AA16,"") -> Internal, Ug=1.1 | AB38: =IF($Z39,AB15&AB16,"") -> Internal, Ug=0.8 | AD38: =IF($AD39,AD15&AD16,"") -> Between, Ug=2.9 | AE38: =IF($AD39,AE15&AE16,"") -> Between, Ug=1.1 | AF38: =IF($AD39,AF15&AF16,"") -> Between, Ug=0.8
T39: Toont | V39: TRUE | Y39: g | Z39: TRUE | AC39: g | AD39: TRUE
T40: =IF(V$39,$T23,"") -> 0.15 | V40: =IF($V$39,V23,"") -> 0.2119786096 | W40: 0.1410526316 | X40: 0.1232258065 | Y40: =IF(Z$39,$T23,"") -> 0.15 | Z40: =IF($Z$39,Z23,"") -> 0.1392834347 | AA40: 0.1416583601 | AB40: 0.1420811688 | AC40: =IF(AD$39,$T23,"") -> 0.15 | AD40: =IF($AD$39,AD23,"") -> 0.1009194915 | AE40: 0.08233536585 | AF40: 0.07752631579
T41: 0.2 | V41: 0.2257754011 | W41: 0.1577443609 | X41: 0.1406451613 | Y41: 0.2 | Z41: 0.1827112462 | AA41: 0.1858778135 | AB41: 0.1864415584 | AC41: 0.2 | AD41: 0.1330847458 | AE41: 0.1089756098 | AF41: 0.1027368421
T42: 0.25 | V42: 0.2395721925 | W42: 0.1744360902 | X42: 0.1580645161 | Y42: 0.25 | Z42: 0.2246390578 | AA42: 0.2285972669 | AB42: 0.2293019481 | AC42: 0.25 | AD42: 0.1645127119 | AE42: 0.1352134146 | AF42: 0.1276315789
T43: 0.3 | V43: 0.253368984 | W43: 0.1911278195 | X43: 0.175483871 | Y43: 0.3 | Z43: 0.2650668693 | AA43: 0.2698167203 | AB43: 0.2706623377 | AC43: 0.3 | AD43: 0.1952033898 | AE43: 0.1610487805 | AF43: 0.1522105263
T44: 0.35 | V44: 0.2671657754 | W44: 0.2078195489 | X44: 0.1929032258 | Y44: 0.35 | Z44: 0.3039946809 | AA44: 0.3095361736 | AB44: 0.3105227273 | AC44: 0.35 | AD44: 0.2251567797 | AE44: 0.1864817073 | AF44: 0.1764736842
T45: 0.4 | V45: 0.2809625668 | W45: 0.2245112782 | X45: 0.2103225806 | Y45: 0.4 | Z45: 0.3414224924 | AA45: 0.347755627 | AB45: 0.3488831169 | AC45: 0.4 | AD45: 0.2543728814 | AE45: 0.2115121951 | AF45: 0.2004210526
T46: 0.45 | V46: 0.2947593583 | W46: 0.2412030075 | X46: 0.2277419355 | Y46: 0.45 | Z46: 0.377350304 | AA46: 0.3844750804 | AB46: 0.3857435065 | AC46: 0.45 | AD46: 0.2828516949 | AE46: 0.2361402439 | AF46: 0.2240526316
T47: 0.5 | V47: 0.3085561497 | W47: 0.2578947368 | X47: 0.2451612903 | Y47: 0.5 | Z47: 0.4117781155 | AA47: 0.4196945338 | AB47: 0.4211038961 | AC47: 0.5 | AD47: 0.3105932203 | AE47: 0.2603658537 | AF47: 0.2473684211
T48: 0.55 | V48: 0.3223529412 | W48: 0.2745864662 | X48: 0.2625806452 | Y48: 0.55 | Z48: 0.4447059271 | AA48: 0.4534139871 | AB48: 0.4549642857 | AC48: 0.55 | AD48: 0.3375974576 | AE48: 0.2841890244 | AF48: 0.2703684211
T49: 0.6 | V49: 0.3361497326 | W49: 0.2912781955 | X49: 0.28 | Y49: 0.6 | Z49: 0.4761337386 | AA49: 0.4856334405 | AB49: 0.4873246753 | AC49: 0.6 | AD49: 0.3638644068 | AE49: 0.3076097561 | AF49: 0.2930526316
T50: 0.65 | V50: 0.3499465241 | W50: 0.3079699248 | X50: 0.2974193548 | Y50: 0.65 | Z50: 0.5060615502 | AA50: 0.5163528939 | AB50: 0.5181850649 | AC50: 0.65 | AD50: 0.3893940678 | AE50: 0.3306280488 | AF50: 0.3154210526
T51: 0.7 | V51: 0.3637433155 | W51: 0.3246616541 | X51: 0.3148387097 | Y51: 0.7 | Z51: 0.5344893617 | AA51: 0.5455723473 | AB51: 0.5475454545 | AC51: 0.7 | AD51: 0.4141864407 | AE51: 0.3532439024 | AF51: 0.3374736842
T52: 0.75 | V52: 0.377540107 | W52: 0.3413533835 | X52: 0.3322580645 | Y52: 0.75 | Z52: 0.5614171733 | AA52: 0.5732918006 | AB52: 0.5754058442 | AC52: 0.75 | AD52: 0.4382415254 | AE52: 0.3754573171 | AF52: 0.3592105263
T53: 0.8 | V53: =IF($V$39,V36,"") -> 0.3913368984 | W53: 0.3580451128 | X53: 0.3496774194 | Y53: 0.8 | Z53: =IF($Z$39,Z36,"") -> 0.5868449848 | AA53: 0.599511254 | AB53: 0.6017662338 | AC53: 0.8 | AD53: =IF($AD$39,AD36,"") -> 0.461559322 | AE53: 0.3972682927 | AF53: 0.3806315789
T54: 0.85 | V54: 0.4051336898 | W54: 0.3747368421 | X54: 0.3670967742 | Y54: 0.85 | Z54: 0.6107727964 | AA54: 0.6242307074 | AB54: 0.6266266234 | AC54: 0.85 | AD54: 0.4841398305 | AE54: 0.4186768293 | AF54: 0.4017368421

Sheet Results-3
B2: Calculation of the total solar energy transmittance (gtot), the direct solar transmittance τe,tot and the secondary internal heat transfer factor qi,tot for the combination of the reference glazing indicated in the standard EN 14501:2021 and the specified solar protection devices (see characteristics in sheet "Solar prot. device-data"). | BM2: Glazing A | BN2: Glazing B | BO2: Glazing C | BP2: Glazing A | BQ2: Glazing B
BL3: U | BM3: =$D5 -> 5.8 | BN3: =$D6 -> 2.9 | BO3: =$D7 -> 1.2 | BP3: =$D8 -> 1.1 | BQ3: =$D9 -> 0.8
D4: Ug | E4: g | F4: τe,B | G4: ρe,B | H4: ρ'e,B | BL4: g | BM4: =$E5 -> 0.85 | BN4: =$E6 -> 0.76 | BO4: =$E7 -> 0.59 | BP4: =$E8 -> 0.32 | BQ4: =$E9 -> 0.55
C5: Glazing A | D5: 5.8 | E5: 0.85 | F5: 0.83 | G5: 0.08 | H5: 0.08 | BL5: G1 | BM5: 5 | BN5: 5 | BO5: 5 | BP5: 5 | BQ5: 5
C6: Glazing B | D6: 2.9 | E6: 0.76 | F6: 0.69 | G6: 0.14 | H6: 0.14 | BL6: G2 ext | BM6: 10 | BN6: 10 | BO6: 10 | BP6: 10 | BQ6: 10
C7: Glazing C | D7: 1.2 | E7: 0.59 | F7: 0.49 | G7: 0.29 | H7: 0.27 | BL7: G2 int | BM7: 30 | BN7: 30 | BO7: 30 | BP7: 30 | BQ7: 30
C8: Glazing D | D8: 1.1 | E8: 0.32 | F8: 0.27 | G8: 0.29 | H8: 0.38 | BL8: G3 | BM8: 3 | BN8: 3 | BO8: 3 | BP8: 3 | BQ8: 3
C9: Glazing E | D9: 0.8 | E9: 0.55 | F9: 0.5 | G9: 0.22 | H9: 0.23 | BL9: G ext | BM9: =1/(1/BM$3+1/BM$5+1/BM$6) -> 2.116788321 | BN9: =1/(1/BN$3+1/BN$5+1/BN$6) -> 1.550802139 | BO9: =1/(1/BO$3+1/BO$5+1/BO$6) -> 0.8823529412 | BP9: =1/(1/BP$3+1/BP$5+1/BP$6) -> 0.8270676692 | BQ9: =1/(1/BQ$3+1/BQ$5+1/BQ$6) -> 0.6451612903
BL10: G int | BM10: =1/(1/BM$3+1/BM$7) -> 4.860335196 | BN10: =1/(1/BN$3+1/BN$7) -> 2.6443769 | BO10: =1/(1/BO$3+1/BO$7) -> 1.153846154 | BP10: =1/(1/BP$3+1/BP$7) -> 1.061093248 | BQ10: =1/(1/BQ$3+1/BQ$7) -> 0.7792207792
BL11: G between | BM11: =1/(1/BM$3+1/BM$8) -> 1.977272727 | BN11: =1/(1/BN$3+1/BN$8) -> 1.474576271 | BO11: =1/(1/BO$3+1/BO$8) -> 0.8571428571 | BP11: =1/(1/BP$3+1/BP$8) -> 0.8048780488 | BQ11: =1/(1/BQ$3+1/BQ$8) -> 0.6315789474
J12: SOLAR FACTOR gtot | Z12: DIRECT SOLAR TRANSMITTANCE τe,tot | AK12: SECONDARY INTERNAL HEAT TRANSFER FACTOR qi,tot | AV12: SHADING FACTOR Fc
J13: External protection device | O13: Internal protection device | T13: Integrated protection device | Z13: External protection device | AE13: Internal protection device | AK13: External protection device | AP13: Internal protection device | AV13: External protection device | BA13: Internal protection device | BF13: Integrated protection device
B14: Comb. Nr | C14: Name of the combination glazing + blind | F14: τe,B | G14: ρe,B | H14: ρ'e,B | I14: αe,B | J14: Glazing A | K14: Glazing B | L14: Glazing C | M14: Glazing D | N14: Glazing E | O14: Glazing A | P14: Glazing B | Q14: Glazing C | R14: Glazing D | S14: Glazing E | T14: Glazing A | U14: Glazing B | V14: Glazing C | W14: Glazing D | X14: Glazing E | Z14: Glazing A | AA14: Glazing B | AB14: Glazing C | AC14: Glazing D | AD14: Glazing E | AE14: Glazing A | AF14: Glazing B | AG14: Glazing C | AH14: Glazing D | AI14: Glazing E | AK14: Glazing A | AL14: Glazing B | AM14: Glazing C | AN14: Glazing D | AO14: Glazing E | AP14: Glazing A | AQ14: Glazing B | AR14: Glazing C | AS14: Glazing D | AT14: Glazing E | AV14: Glazing A | AW14: Glazing B | AX14: Glazing C | AY14: Glazing D | AZ14: Glazing E | BA14: Glazing A | BB14: Glazing B | BC14: Glazing C | BD14: Glazing D | BE14: Glazing E | BF14: Glazing A | BG14: Glazing B | BH14: Glazing C | BI14: Glazing D | BJ14: Glazing E
B15: ='Solar prot device - data'!B15 -> 1 | C15: =IF('Solar prot device - data'!C15<>"","Glazing"&" + "&'Solar prot device - data'!C15,"") -> Glazing + Opaque - White | F15: =IF('Solar prot device - data'!D15<>"",'Solar prot device - data'!D15,"") -> 0 | G15: =IF('Solar prot device - data'!E15<>"",'Solar prot device - data'!E15,"") -> 0.7 | H15: =IF('Solar prot device - data'!F15<>"",'Solar prot device - data'!F15,"") -> 0.7 | I15: =IF('Solar prot device - data'!G15<>"",'Solar prot device - data'!G15,"") -> 0.3 | J15: =IF(AND($F15<>"",$G15<>""),$F15*BM$4+$I15*BM$9/BM$6+$F15*(1-BM$4)*BM$9/BM$5,"") -> 0.06350364964 | K15: =IF(AND($F15<>"",$G15<>""),$F15*BN$4+$I15*BN$9/BN$6+$F15*(1-BN$4)*BN$9/BN$5,"") -> 0.04652406417 | L15: =IF(AND($F15<>"",$G15<>""),$F15*BO$4+$I15*BO$9/BO$6+$F15*(1-BO$4)*BO$9/BO$5,"") -> 0.02647058824 | M15: =IF(AND($F15<>"",$G15<>""),$F15*BP$4+$I15*BP$9/BP$6+$F15*(1-BP$4)*BP$9/BP$5,"") -> 0.02481203008 | N15: =IF(AND($F15<>"",$G15<>""),$F15*BQ$4+$I15*BQ$9/BQ$6+$F15*(1-BQ$4)*BQ$9/BQ$5,"") -> 0.01935483871 | O15: =IF(AND($F15<>"",$G15<>""),BM$4*(1-BM$4*$G15-$I15*BM$10/BM$7),"") -> 0.3029371508 | P15: =IF(AND($F15<>"",$G15<>""),BN$4*(1-BN$4*$G15-$I15*BN$10/BN$7),"") -> 0.3355827356 | Q15: =IF(AND($F15<>"",$G15<>""),BO$4*(1-BO$4*$G15-$I15*BO$10/BO$7),"") -> 0.3395223077 | R15: =IF(AND($F15<>"",$G15<>""),BP$4*(1-BP$4*$G15-$I15*BP$10/BP$7),"") -> 0.2449245016 | S15: =IF(AND($F15<>"",$G15<>""),BQ$4*(1-BQ$4*$G15-$I15*BQ$10/BQ$7),"") -> 0.3339642857 | T15: =IF(AND($F15<>"",$G15<>""),BM$4*$F15+BM$4*($I15+(1-BM$4)*$G15)*BM$11/BM$8,"") -> 0.2268920455 | U15: =IF(AND($F15<>"",$G15<>""),BN$4*$F15+BN$4*($I15+(1-BN$4)*$G15)*BN$11/BN$8,"") -> 0.1748257627 | V15: =IF(AND($F15<>"",$G15<>""),BO$4*$F15+BO$4*($I15+(1-BO$4)*$G15)*BO$11/BO$8,"") -> 0.09895142857 | W15: =IF(AND($F15<>"",$G15<>""),BP$4*$F15+BP$4*($I15+(1-BP$4)*$G15)*BP$11/BP$8,"") -> 0.06662243902 | X15: =IF(AND($F15<>"",$G15<>""),BQ$4*$F15+BQ$4*($I15+(1-BQ$4)*$G15)*BQ$11/BQ$8,"") -> 0.07121052632 | Z15: =IF(AND($F15<>"",$H15<>""),$F$5*$F15/(1-$G$5*$H15),"") -> 0 | AA15: =IF(AND($F15<>"",$H15<>""),$F$6*$F15/(1-$G$6*$H15),"") -> 0 | AB15: =IF(AND($F15<>"",$H15<>""),$F$7*$F15/(1-$G$7*$H15),"") -> 0 | AC15: =IF(AND($F15<>"",$H15<>""),$F$8*$F15/(1-$G$8*$H15),"") -> 0 | AD15: =IF(AND($F15<>"",$H15<>""),$F$9*$F15/(1-$G$9*$H15),"") -> 0 | AE15: =IF(AND($F15<>"",$G15<>""),$F$5*$F15/(1-$H$5*$G15),"") -> 0 | AF15: =IF(AND($F15<>"",$G15<>""),$F$6*$F15/(1-$H$6*$G15),"") -> 0 | AG15: =IF(AND($F15<>"",$G15<>""),$F$7*$F15/(1-$H$7*$G15),"") -> 0 | AH15: =IF(AND($F15<>"",$G15<>""),$F$8*$F15/(1-$H$8*$G15),"") -> 0 | AI15: =IF(AND($F15<>"",$G15<>""),$F$9*$F15/(1-$H$9*$G15),"") -> 0 | AK15: =IF(AND(J15<>"",Z15<>""),J15-Z15,"") -> 0.06350364964 | AL15: =IF(AND(K15<>"",AA15<>""),K15-AA15,"") -> 0.04652406417 | AM15: 0.02647058824 | AN15: 0.02481203008 | AO15: 0.01935483871 | AP15: =IF(AND(O15<>"",AE15<>""),O15-AE15,"") -> 0.3029371508 | AQ15: =IF(AND(P15<>"",AF15<>""),P15-AF15,"") -> 0.3355827356 | AR15: 0.3395223077 | AS15: 0.2449245016 | AT15: 0.3339642857 | AV15: =IF(J15<>"", J15/$E$5,"") -> 0.07471017604 | AW15: =IF(K15<>"", K15/$E$6,"") -> 0.06121587391 | AX15: =IF(L15<>"", L15/$E$7,"") -> 0.04486540379 | AY15: =IF(M15<>"", M15/$E$8,"") -> 0.07753759398 | AZ15: =IF(N15<>"", N15/$E$9,"") -> 0.03519061584 | BA15: =IF(O15<>"", O15/$E$5,"") -> 0.356396648 | BB15: =IF(P15<>"", P15/$E$6,"") -> 0.441556231 | BC15: =IF(Q15<>"", Q15/$E$7,"") -> 0.5754615385 | BD15: =IF(R15<>"", R15/$E$8,"") -> 0.7653890675 | BE15: =IF(S15<>"", S15/$E$9,"") -> 0.6072077922 | BF15: =IF(T15<>"", T15/$E$5,"") -> 0.2669318182 | BG15: =IF(U15<>"", U15/$E$6,"") -> 0.2300338983 | BH15: =IF(V15<>"", V15/$E$7,"") -> 0.1677142857 | BI15: =IF(W15<>"", W15/$E$8,"") -> 0.208195122 | BJ15: =IF(X15<>"", X15/$E$9,"") -> 0.1294736842
B16: ='Solar prot device - data'!B16 -> 2 | C16: =IF('Solar prot device - data'!C16<>"","Glazing"&" + "&'Solar prot device - data'!C16,"") -> Glazing + Opaque - Pastel | F16: =IF('Solar prot device - data'!D16<>"",'Solar prot device - data'!D16,"") -> 0 | G16: =IF('Solar prot device - data'!E16<>"",'Solar prot device - data'!E16,"") -> 0.5 | H16: =IF('Solar prot device - data'!F16<>"",'Solar prot device - data'!F16,"") -> 0.5 | I16: =IF('Solar prot device - data'!G16<>"",'Solar prot device - data'!G16,"") -> 0.5 | J16: =IF(AND($F16<>"",$G16<>""),$F16*BM$4+$I16*BM$9/BM$6+$F16*(1-BM$4)*BM$9/BM$5,"") -> 0.1058394161 | K16: =IF(AND($F16<>"",$G16<>""),$F16*BN$4+$I16*BN$9/BN$6+$F16*(1-BN$4)*BN$9/BN$5,"") -> 0.07754010695 | L16: =IF(AND($F16<>"",$G16<>""),$F16*BO$4+$I16*BO$9/BO$6+$F16*(1-BO$4)*BO$9/BO$5,"") -> 0.04411764706 | M16: =IF(AND($F16<>"",$G16<>""),$F16*BP$4+$I16*BP$9/BP$6+$F16*(1-BP$4)*BP$9/BP$5,"") -> 0.04135338346 | N16: =IF(AND($F16<>"",$G16<>""),$F16*BQ$4+$I16*BQ$9/BQ$6+$F16*(1-BQ$4)*BQ$9/BQ$5,"") -> 0.03225806452 | O16: =IF(AND($F16<>"",$G16<>""),BM$4*(1-BM$4*$G16-$I16*BM$10/BM$7),"") -> 0.4198952514 | P16: =IF(AND($F16<>"",$G16<>""),BN$4*(1-BN$4*$G16-$I16*BN$10/BN$7),"") -> 0.4377045593 | Q16: =IF(AND($F16<>"",$G16<>""),BO$4*(1-BO$4*$G16-$I16*BO$10/BO$7),"") -> 0.4046038462 | R16: =IF(AND($F16<>"",$G16<>""),BP$4*(1-BP$4*$G16-$I16*BP$10/BP$7),"") -> 0.263140836 | S16: =IF(AND($F16<>"",$G16<>""),BQ$4*(1-BQ$4*$G16-$I16*BQ$10/BQ$7),"") -> 0.3916071429 | T16: =IF(AND($F16<>"",$G16<>""),BM$4*$F16+BM$4*($I16+(1-BM$4)*$G16)*BM$11/BM$8,"") -> 0.3221306818 | U16: =IF(AND($F16<>"",$G16<>""),BN$4*$F16+BN$4*($I16+(1-BN$4)*$G16)*BN$11/BN$8,"") -> 0.2316067797 | V16: =IF(AND($F16<>"",$G16<>""),BO$4*$F16+BO$4*($I16+(1-BO$4)*$G16)*BO$11/BO$8,"") -> 0.1188428571 | W16: =IF(AND($F16<>"",$G16<>""),BP$4*$F16+BP$4*($I16+(1-BP$4)*$G16)*BP$11/BP$8,"") -> 0.07211707317 | X16: =IF(AND($F16<>"",$G16<>""),BQ$4*$F16+BQ$4*($I16+(1-BQ$4)*$G16)*BQ$11/BQ$8,"") -> 0.08394736842 | Z16: =IF(AND($F16<>"",$H16<>""),$F$5*$F16/(1-$G$5*$H16),"") -> 0 | AA16: =IF(AND($F16<>"",$H16<>""),$F$6*$F16/(1-$G$6*$H16),"") -> 0 | AB16: =IF(AND($F16<>"",$H16<>""),$F$7*$F16/(1-$G$7*$H16),"") -> 0 | AC16: =IF(AND($F16<>"",$H16<>""),$F$8*$F16/(1-$G$8*$H16),"") -> 0 | AD16: =IF(AND($F16<>"",$H16<>""),$F$9*$F16/(1-$G$9*$H16),"") -> 0 | AE16: =IF(AND($F16<>"",$G16<>""),$F$5*$F16/(1-$H$5*$G16),"") -> 0 | AF16: =IF(AND($F16<>"",$G16<>""),$F$6*$F16/(1-$H$6*$G16),"") -> 0 | AG16: =IF(AND($F16<>"",$G16<>""),$F$7*$F16/(1-$H$7*$G16),"") -> 0 | AH16: =IF(AND($F16<>"",$G16<>""),$F$8*$F16/(1-$H$8*$G16),"") -> 0 | AI16: =IF(AND($F16<>"",$G16<>""),$F$9*$F16/(1-$H$9*$G16),"") -> 0 | AK16: =IF(AND(J16<>"",Z16<>""),J16-Z16,"") -> 0.1058394161 | AL16: =IF(AND(K16<>"",AA16<>""),K16-AA16,"") -> 0.07754010695 | AM16: =IF(AND(L16<>"",AB16<>""),L16-AB16,"") -> 0.04411764706 | AN16: =IF(AND(M16<>"",AC16<>""),M16-AC16,"") -> 0.04135338346 | AO16: =IF(AND(N16<>"",AD16<>""),N16-AD16,"") -> 0.03225806452 | AP16: =IF(AND(O16<>"",AE16<>""),O16-AE16,"") -> 0.4198952514 | AQ16: =IF(AND(P16<>"",AF16<>""),P16-AF16,"") -> 0.4377045593 | AR16: =IF(AND(Q16<>"",AG16<>""),Q16-AG16,"") -> 0.4046038462 | AS16: =IF(AND(R16<>"",AH16<>""),R16-AH16,"") -> 0.263140836 | AT16: =IF(AND(S16<>"",AI16<>""),S16-AI16,"") -> 0.3916071429 | AV16: =IF(J16<>"", J16/$E$5,"") -> 0.1245169601 | AW16: =IF(K16<>"", K16/$E$6,"") -> 0.1020264565 | AX16: =IF(L16<>"", L16/$E$7,"") -> 0.07477567298 | AY16: =IF(M16<>"", M16/$E$8,"") -> 0.1292293233 | AZ16: =IF(N16<>"", N16/$E$9,"") -> 0.05865102639 | BA16: =IF(O16<>"", O16/$E$5,"") -> 0.4939944134 | BB16: =IF(P16<>"", P16/$E$6,"") -> 0.5759270517 | BC16: =IF(Q16<>"", Q16/$E$7,"") -> 0.6857692308 | BD16: =IF(R16<>"", R16/$E$8,"") -> 0.8223151125 | BE16: =IF(S16<>"", S16/$E$9,"") -> 0.712012987 | BF16: =IF(T16<>"", T16/$E$5,"") -> 0.3789772727 | BG16: =IF(U16<>"", U16/$E$6,"") -> 0.3047457627 | BH16: =IF(V16<>"", V16/$E$7,"") -> 0.2014285714 | BI16: =IF(W16<>"", W16/$E$8,"") -> 0.2253658537 | BJ16: =IF(X16<>"", X16/$E$9,"") -> 0.1526315789
B17: ='Solar prot device - data'!B17 -> 3 | C17: =IF('Solar prot device - data'!C17<>"","Glazing"&" + "&'Solar prot device - data'!C17,"") -> Glazing + Opaque - Dark | F17: =IF('Solar prot device - data'!D17<>"",'Solar prot device - data'!D17,"") -> 0 | G17: =IF('Solar prot device - data'!E17<>"",'Solar prot device - data'!E17,"") -> 0.3 | H17: =IF('Solar prot device - data'!F17<>"",'Solar prot device - data'!F17,"") -> 0.3 | I17: =IF('Solar prot device - data'!G17<>"",'Solar prot device - data'!G17,"") -> 0.7 | J17: 0.1481751825 | K17: 0.1085561497 | L17: 0.06176470588 | M17: 0.05789473684 | N17: 0.04516129032 | O17: 0.536853352 | P17: 0.539826383 | Q17: 0.4696853846 | R17: 0.2813571704 | S17: 0.44925 | T17: 0.4173693182 | U17: 0.2883877966 | V17: 0.1387342857 | W17: 0.07761170732 | X17: 0.09668421053 | Z17: 0 | AA17: 0 | AB17: 0 | AC17: 0 | AD17: 0 | AE17: 0 | AF17: 0 | AG17: 0 | AH17: 0 | AI17: 0 | AK17: 0.1481751825 | AL17: 0.1085561497 | AM17: 0.06176470588 | AN17: 0.05789473684 | AO17: 0.04516129032 | AP17: 0.536853352 | AQ17: 0.539826383 | AR17: 0.4696853846 | AS17: 0.2813571704 | AT17: 0.44925 | AV17: 0.1743237441 | AW17: 0.1428370391 | AX17: 0.1046859422 | AY17: 0.1809210526 | AZ17: 0.08211143695 | BA17: 0.6315921788 | BB17: 0.7102978723 | BC17: 0.7960769231 | BD17: 0.8792411576 | BE17: 0.8168181818 | BF17: 0.4910227273 | BG17: 0.3794576271 | BH17: 0.2351428571 | BI17: 0.2425365854 | BJ17: 0.1757894737
B18: ='Solar prot device - data'!B18 -> 4 | C18: =IF('Solar prot device - data'!C18<>"","Glazing"&" + "&'Solar prot device - data'!C18,"") -> Glazing + Opaque - Black | F18: =IF('Solar prot device - data'!D18<>"",'Solar prot device - data'!D18,"") -> 0 | G18: =IF('Solar prot device - data'!E18<>"",'Solar prot device - data'!E18,"") -> 0.1 | H18: =IF('Solar prot device - data'!F18<>"",'Solar prot device - data'!F18,"") -> 0.1 | I18: =IF('Solar prot device - data'!G18<>"",'Solar prot device - data'!G18,"") -> 0.9 | J18: 0.1905109489 | K18: 0.1395721925 | L18: 0.07941176471 | M18: 0.07443609023 | N18: 0.05806451613 | O18: 0.6538114525 | P18: 0.6419482067 | Q18: 0.5347669231 | R18: 0.2995735048 | S18: 0.5068928571 | T18: 0.5126079545 | U18: 0.3451688136 | V18: 0.1586257143 | W18: 0.08310634146 | X18: 0.1094210526 | Z18: 0 | AA18: 0 | AB18: 0 | AC18: 0 | AD18: 0 | AE18: 0 | AF18: 0 | AG18: 0 | AH18: 0 | AI18: 0 | AK18: 0.1905109489 | AL18: 0.1395721925 | AM18: 0.07941176471 | AN18: 0.07443609023 | AO18: 0.05806451613 | AP18: 0.6538114525 | AQ18: 0.6419482067 | AR18: 0.5347669231 | AS18: 0.2995735048 | AT18: 0.5068928571 | AV18: 0.2241305281 | AW18: 0.1836476217 | AX18: 0.1345962114 | AY18: 0.232612782 | AZ18: 0.1055718475 | BA18: 0.7691899441 | BB18: 0.844668693 | BC18: 0.9063846154 | BD18: 0.9361672026 | BE18: 0.9216233766 | BF18: 0.6030681818 | BG18: 0.4541694915 | BH18: 0.2688571429 | BI18: 0.2597073171 | BJ18: 0.1989473684
B19: ='Solar prot device - data'!B19 -> 5 | C19: =IF('Solar prot device - data'!C19<>"","Glazing"&" + "&'Solar prot device - data'!C19,"") -> Glazing + Medium translucent - White | F19: =IF('Solar prot device - data'!D19<>"",'Solar prot device - data'!D19,"") -> 0.2 | G19: =IF('Solar prot device - data'!E19<>"",'Solar prot device - data'!E19,"") -> 0.6 | H19: =IF('Solar prot device - data'!F19<>"",'Solar prot device - data'!F19,"") -> 0.6 | I19: =IF('Solar prot device - data'!G19<>"",'Solar prot device - data'!G19,"") -> 0.2 | J19: 0.2250364964 | K19: 0.1979037433 | L19: 0.1501176471 | M19: 0.103037594 | N19: 0.134516129 | O19: 0.3889581006 | P19: 0.4000418237 | Q19: 0.3766015385 | R19: 0.2562963344 | S19: 0.3656428571 | T19: 0.3324659091 | U19: 0.2805044068 | V19: 0.1931828571 | W19: 0.1161990244 | X19: 0.1644210526 | Z19: 0.1743697479 | AA19: 0.1506550218 | AB19: 0.1186440678 | AC19: 0.06537530266 | AD19: 0.1152073733 | AE19: 0.1743697479 | AF19: 0.1506550218 | AG19: 0.1169451074 | AH19: 0.06994818653 | AI19: 0.1160092807 | AK19: 0.05066674845 | AL19: 0.04724872148 | AM19: 0.03147357926 | AN19: 0.03766229132 | AO19: 0.01930875576 | AP19: 0.2145883527 | AQ19: 0.2493868019 | AR19: 0.2596564311 | AS19: 0.1863481479 | AT19: 0.2496335764 | AV19: 0.2647488192 | AW19: 0.2603996623 | AX19: 0.2544366899 | AY19: 0.3219924812 | AZ19: 0.2445747801 | BA19: 0.4575977654 | BB19: 0.5263708207 | BC19: 0.6383076923 | BD19: 0.800926045 | BE19: 0.6648051948 | BF19: 0.3911363636 | BG19: 0.3690847458 | BH19: 0.3274285714 | BI19: 0.3631219512 | BJ19: 0.2989473684
B20: ='Solar prot device - data'!B20 -> 6 | C20: =IF('Solar prot device - data'!C20<>"","Glazing"&" + "&'Solar prot device - data'!C20,"") -> Glazing + Medium translucent - Pastel | F20: =IF('Solar prot device - data'!D20<>"",'Solar prot device - data'!D20,"") -> 0.2 | G20: =IF('Solar prot device - data'!E20<>"",'Solar prot device - data'!E20,"") -> 0.4 | H20: =IF('Solar prot device - data'!F20<>"",'Solar prot device - data'!F20,"") -> 0.4 | I20: =IF('Solar prot device - data'!G20<>"",'Solar prot device - data'!G20,"") -> 0.4 | J20: 0.2673722628 | K20: 0.2289197861 | L20: 0.1677647059 | M20: 0.1195789474 | N20: 0.1474193548 | O20: 0.5059162011 | P20: 0.5021636474 | Q20: 0.4416830769 | R20: 0.2745126688 | S20: 0.4232857143 | T20: 0.4277045455 | U20: 0.3372854237 | V20: 0.2130742857 | W20: 0.1216936585 | X20: 0.1771578947 | Z20: 0.1714876033 | AA20: 0.1461864407 | AB20: 0.1108597285 | AC20: 0.06108597285 | AD20: 0.1096491228 | AE20: 0.1714876033 | AF20: 0.1461864407 | AG20: 0.1098654709 | AH20: 0.06367924528 | AI20: 0.1101321586 | AK20: 0.09588465947 | AL20: 0.08273334542 | AM20: 0.05690497738 | AN20: 0.05849297452 | AO20: 0.03777023203 | AP20: 0.3344285978 | AQ20: 0.3559772067 | AR20: 0.3318176061 | AS20: 0.2108334235 | AT20: 0.3131535557 | AV20: 0.3145556033 | AW20: 0.3012102449 | AX20: 0.2843469591 | AY20: 0.3736842105 | AZ20: 0.2680351906 | BA20: 0.5951955307 | BB20: 0.6607416413 | BC20: 0.7486153846 | BD20: 0.85785209 | BE20: 0.7696103896 | BF20: 0.5031818182 | BG20: 0.4437966102 | BH20: 0.3611428571 | BI20: 0.3802926829 | BJ20: 0.3221052632
B21: ='Solar prot device - data'!B21 -> 7 | C21: =IF('Solar prot device - data'!C21<>"","Glazing"&" + "&'Solar prot device - data'!C21,"") -> Glazing + Medium translucent - Dark | F21: =IF('Solar prot device - data'!D21<>"",'Solar prot device - data'!D21,"") -> 0.2 | G21: =IF('Solar prot device - data'!E21<>"",'Solar prot device - data'!E21,"") -> 0.2 | H21: =IF('Solar prot device - data'!F21<>"",'Solar prot device - data'!F21,"") -> 0.2 | I21: =IF('Solar prot device - data'!G21<>"",'Solar prot device - data'!G21,"") -> 0.6 | J21: 0.3097080292 | K21: 0.2599358289 | L21: 0.1854117647 | M21: 0.1361203008 | N21: 0.1603225806 | O21: 0.6228743017 | P21: 0.6042854711 | Q21: 0.5067646154 | R21: 0.2927290032 | S21: 0.4809285714 | T21: 0.5229431818 | U21: 0.3940664407 | V21: 0.2329657143 | W21: 0.1271882927 | X21: 0.1898947368 | Z21: 0.168699187 | AA21: 0.1419753086 | AB21: 0.1040339703 | AC21: 0.05732484076 | AD21: 0.1046025105 | AE21: 0.168699187 | AF21: 0.1419753086 | AG21: 0.1035940803 | AH21: 0.05844155844 | AI21: 0.1048218029 | AK21: 0.1410088422 | AL21: 0.1179605202 | AM21: 0.08137779443 | AN21: 0.07879545999 | AO21: 0.05572007018 | AP21: 0.4541751147 | AQ21: 0.4623101625 | AR21: 0.403170535 | AS21: 0.2342874448 | AT21: 0.3761067685 | AV21: 0.3643623873 | AW21: 0.3420208275 | AX21: 0.3142572283 | AY21: 0.4253759398 | AZ21: 0.2914956012 | BA21: 0.7327932961 | BB21: 0.795112462 | BC21: 0.8589230769 | BD21: 0.914778135 | BE21: 0.8744155844 | BF21: 0.6152272727 | BG21: 0.5185084746 | BH21: 0.3948571429 | BI21: 0.3974634146 | BJ21: 0.3452631579
B22: ='Solar prot device - data'!B22 -> 8 | C22: =IF('Solar prot device - data'!C22<>"","Glazing"&" + "&'Solar prot device - data'!C22,"") -> Glazing + Medium translucent - Black | F22: =IF('Solar prot device - data'!D22<>"",'Solar prot device - data'!D22,"") -> 0.2 | G22: =IF('Solar prot device - data'!E22<>"",'Solar prot device - data'!E22,"") -> 0.1 | H22: =IF('Solar prot device - data'!F22<>"",'Solar prot device - data'!F22,"") -> 0.1 | I22: =IF('Solar prot device - data'!G22<>"",'Solar prot device - data'!G22,"") -> 0.7 | J22: 0.3308759124 | K22: 0.2754438503 | L22: 0.1942352941 | M22: 0.1443909774 | N22: 0.1667741935 | O22: 0.681353352 | P22: 0.655346383 | Q22: 0.5393053846 | R22: 0.3018371704 | S22: 0.50975 | T22: 0.5705625 | U22: 0.4224569492 | V22: 0.2429114286 | W22: 0.1299356098 | X22: 0.1962631579 | Z22: 0.1673387097 | AA22: 0.139959432 | AB22: 0.1009268795 | AC22: 0.05561277034 | AD22: 0.1022494888 | AE22: 0.1673387097 | AF22: 0.139959432 | AG22: 0.1007194245 | AH22: 0.05613305613 | AI22: 0.1023541453 | AK22: 0.1635372027 | AL22: 0.1354844182 | AM22: 0.09330841461 | AN22: 0.0887782071 | AO22: 0.0645247048 | AP22: 0.5140146423 | AQ22: 0.5153869509 | AR22: 0.4385859602 | AS22: 0.2457041143 | AT22: 0.4073958547 | AV22: 0.3892657793 | AW22: 0.3624261188 | AX22: 0.3292123629 | AY22: 0.4512218045 | AZ22: 0.3032258065 | BA22: 0.8015921788 | BB22: 0.8622978723 | BC22: 0.9140769231 | BD22: 0.9432411576 | BE22: 0.9268181818 | BF22: 0.67125 | BG22: 0.5558644068 | BH22: 0.4117142857 | BI22: 0.4060487805 | BJ22: 0.3568421053
B23: ='Solar prot device - data'!B23 -> 9 | C23: =IF('Solar prot device - data'!C23<>"","Glazing"&" + "&'Solar prot device - data'!C23,"") -> Glazing + High translucent - White | F23: =IF('Solar prot device - data'!D23<>"",'Solar prot device - data'!D23,"") -> 0.4 | G23: =IF('Solar prot device - data'!E23<>"",'Solar prot device - data'!E23,"") -> 0.4 | H23: =IF('Solar prot device - data'!F23<>"",'Solar prot device - data'!F23,"") -> 0.4 | I23: =IF('Solar prot device - data'!G23<>"",'Solar prot device - data'!G23,"") -> 0.2 | J23: 0.4077372263 | K23: 0.3647914439 | L23: 0.2825882353 | M23: 0.1895338346 | N23: 0.2561290323 | O23: 0.5334581006 | P23: 0.5155618237 | Q23: 0.4462215385 | R23: 0.2767763344 | S23: 0.4261428571 | T23: 0.4856590909 | U23: 0.4145735593 | V23: 0.29736 | W23: 0.1685229268 | X23: 0.264 | Z23: 0.3429752066 | AA23: 0.2923728814 | AB23: 0.221719457 | AC23: 0.1221719457 | AD23: 0.2192982456 | AE23: 0.3429752066 | AF23: 0.2923728814 | AG23: 0.2197309417 | AH23: 0.1273584906 | AI23: 0.2202643172 | AK23: 0.06476201967 | AL23: 0.07241856249 | AM23: 0.06086877828 | AN23: 0.06736188889 | AO23: 0.03683078664 | AP23: 0.1904828939 | AQ23: 0.2231889424 | AR23: 0.2264905968 | AS23: 0.1494178438 | AT23: 0.20587854 | AV23: 0.4796908544 | AW23: 0.4799887419 | AX23: 0.4789631107 | AY23: 0.5922932331 | AZ23: 0.4656891496 | BA23: 0.6275977654 | BB23: 0.6783708207 | BC23: 0.7563076923 | BD23: 0.864926045 | BE23: 0.7748051948 | BF23: 0.5713636364 | BG23: 0.5454915254 | BH23: 0.504 | BI23: 0.5266341463 | BJ23: 0.48
B24: ='Solar prot device - data'!B24 -> 10 | C24: =IF('Solar prot device - data'!C24<>"","Glazing"&" + "&'Solar prot device - data'!C24,"") -> Glazing + High translucent - Pastel | F24: =IF('Solar prot device - data'!D24<>"",'Solar prot device - data'!D24,"") -> 0.4 | G24: =IF('Solar prot device - data'!E24<>"",'Solar prot device - data'!E24,"") -> 0.3 | H24: =IF('Solar prot device - data'!F24<>"",'Solar prot device - data'!F24,"") -> 0.3 | I24: =IF('Solar prot device - data'!G24<>"",'Solar prot device - data'!G24,"") -> 0.3 | J24: 0.4289051095 | K24: 0.3802994652 | L24: 0.2914117647 | M24: 0.1978045113 | N24: 0.2625806452 | O24: 0.5919371508 | P24: 0.5666227356 | Q24: 0.4787623077 | R24: 0.2858845016 | S24: 0.4549642857 | T24: 0.5332784091 | U24: 0.4429640678 | V24: 0.3073057143 | W24: 0.1712702439 | X24: 0.2703684211 | Z24: 0.3401639344 | AA24: 0.2881002088 | AB24: 0.2146768894 | AC24: 0.1182913472 | AD24: 0.2141327623 | AE24: 0.3401639344 | AF24: 0.2881002088 | AG24: 0.2132752992 | AH24: 0.1218961625 | AI24: 0.2148227712 | AK24: 0.08874117506 | AL24: 0.09219925647 | AM24: 0.07673487533 | AN24: 0.07951316407 | AO24: 0.04844788285 | AP24: 0.2517732164 | AQ24: 0.2785225268 | AR24: 0.2654870085 | AS24: 0.1639883391 | AT24: 0.2401415145 | AV24: 0.5045942465 | AW24: 0.5003940332 | AX24: 0.4939182453 | AY24: 0.6181390977 | AZ24: 0.4774193548 | BA24: 0.696396648 | BB24: 0.745556231 | BC24: 0.8114615385 | BD24: 0.8933890675 | BE24: 0.8272077922 | BF24: 0.6273863636 | BG24: 0.5828474576 | BH24: 0.5208571429 | BI24: 0.5352195122 | BJ24: 0.4915789474
B25: ='Solar prot device - data'!B25 -> 11 | C25: =IF('Solar prot device - data'!C25<>"","Glazing"&" + "&'Solar prot device - data'!C25,"") -> Glazing + High translucent - Dark | F25: =IF('Solar prot device - data'!D25<>"",'Solar prot device - data'!D25,"") -> 0.4 | G25: =IF('Solar prot device - data'!E25<>"",'Solar prot device - data'!E25,"") -> 0.2 | H25: =IF('Solar prot device - data'!F25<>"",'Solar prot device - data'!F25,"") -> 0.2 | I25: =IF('Solar prot device - data'!G25<>"",'Solar prot device - data'!G25,"") -> 0.4 | J25: 0.4500729927 | K25: 0.3958074866 | L25: 0.3002352941 | M25: 0.206075188 | N25: 0.2690322581 | O25: 0.6504162011 | P25: 0.6176836474 | Q25: 0.5113030769 | R25: 0.2949926688 | S25: 0.4837857143 | T25: 0.5808977273 | U25: 0.4713545763 | V25: 0.3172514286 | W25: 0.174017561 | X25: 0.2767368421 | Z25: 0.337398374 | AA25: 0.2839506173 | AB25: 0.2080679406 | AC25: 0.1146496815 | AD25: 0.2092050209 | AE25: 0.337398374 | AF25: 0.2839506173 | AG25: 0.2071881607 | AH25: 0.1168831169 | AI25: 0.2096436059 | AK25: 0.1126746187 | AL25: 0.1118568693 | AM25: 0.09216735357 | AN25: 0.09142550644 | AO25: 0.05982723714 | AP25: 0.3130178271 | AQ25: 0.3337330301 | AR25: 0.3041149162 | AS25: 0.1781095519 | AT25: 0.2741421084 | AV25: 0.5294976385 | AW25: 0.5207993245 | AX25: 0.5088733799 | AY25: 0.6439849624 | AZ25: 0.4891495601 | BA25: 0.7651955307 | BB25: 0.8127416413 | BC25: 0.8666153846 | BD25: 0.92185209 | BE25: 0.8796103896 | BF25: 0.6834090909 | BG25: 0.6202033898 | BH25: 0.5377142857 | BI25: 0.543804878 | BJ25: 0.5031578947
B26: ='Solar prot device - data'!B26 -> 12 | C26: =IF('Solar prot device - data'!C26<>"","Glazing"&" + "&'Solar prot device - data'!C26,"") -> Glazing + High translucent - Black | F26: =IF('Solar prot device - data'!D26<>"",'Solar prot device - data'!D26,"") -> 0.4 | G26: =IF('Solar prot device - data'!E26<>"",'Solar prot device - data'!E26,"") -> 0.1 | H26: =IF('Solar prot device - data'!F26<>"",'Solar prot device - data'!F26,"") -> 0.1 | I26: =IF('Solar prot device - data'!G26<>"",'Solar prot device - data'!G26,"") -> 0.5 | J26: 0.4712408759 | K26: 0.411315508 | L26: 0.3090588235 | M26: 0.2143458647 | N26: 0.275483871 | O26: 0.7088952514 | P26: 0.6687445593 | Q26: 0.5438438462 | R26: 0.304100836 | S26: 0.5126071429 | T26: 0.6285170455 | U26: 0.4997450847 | V26: 0.3271971429 | W26: 0.176764878 | X26: 0.2831052632 | Z26: 0.3346774194 | AA26: 0.2799188641 | AB26: 0.201853759 | AC26: 0.1112255407 | AD26: 0.2044989775 | AE26: 0.3346774194 | AF26: 0.2799188641 | AG26: 0.2014388489 | AH26: 0.1122661123 | AI26: 0.2047082907 | AK26: 0.1365634566 | AL26: 0.1313966439 | AM26: 0.1072050645 | AN26: 0.103120324 | AO26: 0.07098489346 | AP26: 0.374217832 | AQ26: 0.3888256952 | AR26: 0.3424049972 | AS26: 0.1918347237 | AT26: 0.3078988522 | AV26: 0.5544010305 | AW26: 0.5412046158 | AX26: 0.5238285145 | AY26: 0.6698308271 | AZ26: 0.5008797654 | BA26: 0.8339944134 | BB26: 0.8799270517 | BC26: 0.9217692308 | BD26: 0.9503151125 | BE26: 0.932012987 | BF26: 0.7394318182 | BG26: 0.657559322 | BH26: 0.5545714286 | BI26: 0.5523902439 | BJ26: 0.5147368421
B27: ='Solar prot device - data'!B27 -> 13 | C27: =IF('Solar prot device - data'!C27<>"","Glazing"&" + "&'Solar prot device - data'!C27,"") ->  | F27: =IF('Solar prot device - data'!D27<>"",'Solar prot device - data'!D27,"") ->  | G27: =IF('Solar prot device - data'!E27<>"",'Solar prot device - data'!E27,"") ->  | H27: =IF('Solar prot device - data'!F27<>"",'Solar prot device - data'!F27,"") ->  | I27: =IF('Solar prot device - data'!G27<>"",'Solar prot device - data'!G27,"") ->  | J27: =IF(AND($F27<>"",$G27<>""),$F27*BM$4+$I27*BM$9/BM$6+$F27*(1-BM$4)*BM$9/BM$5,"") ->  | K27: =IF(AND($F27<>"",$G27<>""),$F27*BN$4+$I27*BN$9/BN$6+$F27*(1-BN$4)*BN$9/BN$5,"") ->  | L27: =IF(AND($F27<>"",$G27<>""),$F27*BO$4+$I27*BO$9/BO$6+$F27*(1-BO$4)*BO$9/BO$5,"") ->  | M27: =IF(AND($F27<>"",$G27<>""),$F27*BP$4+$I27*BP$9/BP$6+$F27*(1-BP$4)*BP$9/BP$5,"") ->  | N27: =IF(AND($F27<>"",$G27<>""),$F27*BQ$4+$I27*BQ$9/BQ$6+$F27*(1-BQ$4)*BQ$9/BQ$5,"") ->  | O27: =IF(AND($F27<>"",$G27<>""),BM$4*(1-BM$4*$G27-$I27*BM$10/BM$7),"") ->  | P27: =IF(AND($F27<>"",$G27<>""),BN$4*(1-BN$4*$G27-$I27*BN$10/BN$7),"") ->  | Q27: =IF(AND($F27<>"",$G27<>""),BO$4*(1-BO$4*$G27-$I27*BO$10/BO$7),"") ->  | R27: =IF(AND($F27<>"",$G27<>""),BP$4*(1-BP$4*$G27-$I27*BP$10/BP$7),"") ->  | S27: =IF(AND($F27<>"",$G27<>""),BQ$4*(1-BQ$4*$G27-$I27*BQ$10/BQ$7),"") ->  | T27: =IF(AND($F27<>"",$G27<>""),BM$4*$F27+BM$4*($I27+(1-BM$4)*$G27)*BM$11/BM$8,"") ->  | U27: =IF(AND($F27<>"",$G27<>""),BN$4*$F27+BN$4*($I27+(1-BN$4)*$G27)*BN$11/BN$8,"") ->  | V27: =IF(AND($F27<>"",$G27<>""),BO$4*$F27+BO$4*($I27+(1-BO$4)*$G27)*BO$11/BO$8,"") ->  | W27: =IF(AND($F27<>"",$G27<>""),BP$4*$F27+BP$4*($I27+(1-BP$4)*$G27)*BP$11/BP$8,"") ->  | X27: =IF(AND($F27<>"",$G27<>""),BQ$4*$F27+BQ$4*($I27+(1-BQ$4)*$G27)*BQ$11/BQ$8,"") ->  | AK27: =IF(AND(J27<>"",Z27<>""),J27-Z27,"") ->  | AL27: =IF(AND(K27<>"",AA27<>""),K27-AA27,"") ->  | AM27: =IF(AND(L27<>"",AB27<>""),L27-AB27,"") ->  | AN27: =IF(AND(M27<>"",AC27<>""),M27-AC27,"") ->  | AO27: =IF(AND(N27<>"",AD27<>""),N27-AD27,"") ->  | AP27: =IF(AND(O27<>"",AE27<>""),O27-AE27,"") ->  | AQ27: =IF(AND(P27<>"",AF27<>""),P27-AF27,"") ->  | AR27: =IF(AND(Q27<>"",AG27<>""),Q27-AG27,"") ->  | AS27: =IF(AND(R27<>"",AH27<>""),R27-AH27,"") ->  | AT27: =IF(AND(S27<>"",AI27<>""),S27-AI27,"") ->  | AV27: =IF(J27<>"", J27/$E$5,"") ->  | AW27: =IF(K27<>"", K27/$E$6,"") ->  | AX27: =IF(L27<>"", L27/$E$7,"") ->  | AY27: =IF(M27<>"", M27/$E$8,"") ->  | AZ27: =IF(N27<>"", N27/$E$9,"") ->  | BA27: =IF(O27<>"", O27/$E$5,"") ->  | BB27: =IF(P27<>"", P27/$E$6,"") ->  | BC27: =IF(Q27<>"", Q27/$E$7,"") ->  | BD27: =IF(R27<>"", R27/$E$8,"") ->  | BE27: =IF(S27<>"", S27/$E$9,"") ->  | BF27: =IF(T27<>"", T27/$E$5,"") ->  | BG27: =IF(U27<>"", U27/$E$6,"") ->  | BH27: =IF(V27<>"", V27/$E$7,"") ->  | BI27: =IF(W27<>"", W27/$E$8,"") ->  | BJ27: =IF(X27<>"", X27/$E$9,"") -> 
B28: ='Solar prot device - data'!B28 -> 14 | C28: =IF('Solar prot device - data'!C28<>"","Glazing"&" + "&'Solar prot device - data'!C28,"") ->  | F28: =IF('Solar prot device - data'!D28<>"",'Solar prot device - data'!D28,"") ->  | G28: =IF('Solar prot device - data'!E28<>"",'Solar prot device - data'!E28,"") ->  | H28: =IF('Solar prot device - data'!F28<>"",'Solar prot device - data'!F28,"") ->  | I28: =IF('Solar prot device - data'!G28<>"",'Solar prot device - data'!G28,"") -> 
B29: ='Solar prot device - data'!B29 -> 15 | C29: =IF('Solar prot device - data'!C29<>"","Glazing"&" + "&'Solar prot device - data'!C29,"") ->  | F29: =IF('Solar prot device - data'!D29<>"",'Solar prot device - data'!D29,"") ->  | G29: =IF('Solar prot device - data'!E29<>"",'Solar prot device - data'!E29,"") ->  | H29: =IF('Solar prot device - data'!F29<>"",'Solar prot device - data'!F29,"") ->  | I29: =IF('Solar prot device - data'!G29<>"",'Solar prot device - data'!G29,"") -> 
B30: ='Solar prot device - data'!B30 -> 16 | C30: =IF('Solar prot device - data'!C30<>"","Glazing"&" + "&'Solar prot device - data'!C30,"") ->  | F30: =IF('Solar prot device - data'!D30<>"",'Solar prot device - data'!D30,"") ->  | G30: =IF('Solar prot device - data'!E30<>"",'Solar prot device - data'!E30,"") ->  | H30: =IF('Solar prot device - data'!F30<>"",'Solar prot device - data'!F30,"") ->  | I30: =IF('Solar prot device - data'!G30<>"",'Solar prot device - data'!G30,"") -> 
B31: ='Solar prot device - data'!B31 -> 17 | C31: =IF('Solar prot device - data'!C31<>"","Glazing"&" + "&'Solar prot device - data'!C31,"") ->  | F31: =IF('Solar prot device - data'!D31<>"",'Solar prot device - data'!D31,"") ->  | G31: =IF('Solar prot device - data'!E31<>"",'Solar prot device - data'!E31,"") ->  | H31: =IF('Solar prot device - data'!F31<>"",'Solar prot device - data'!F31,"") ->  | I31: =IF('Solar prot device - data'!G31<>"",'Solar prot device - data'!G31,"") -> 
B32: ='Solar prot device - data'!B32 -> 18 | C32: =IF('Solar prot device - data'!C32<>"","Glazing"&" + "&'Solar prot device - data'!C32,"") ->  | F32: =IF('Solar prot device - data'!D32<>"",'Solar prot device - data'!D32,"") ->  | G32: =IF('Solar prot device - data'!E32<>"",'Solar prot device - data'!E32,"") ->  | H32: =IF('Solar prot device - data'!F32<>"",'Solar prot device - data'!F32,"") ->  | I32: =IF('Solar prot device - data'!G32<>"",'Solar prot device - data'!G32,"") -> 
B33: ='Solar prot device - data'!B33 -> 19 | C33: =IF('Solar prot device - data'!C33<>"","Glazing"&" + "&'Solar prot device - data'!C33,"") ->  | F33: =IF('Solar prot device - data'!D33<>"",'Solar prot device - data'!D33,"") ->  | G33: =IF('Solar prot device - data'!E33<>"",'Solar prot device - data'!E33,"") ->  | H33: =IF('Solar prot device - data'!F33<>"",'Solar prot device - data'!F33,"") ->  | I33: =IF('Solar prot device - data'!G33<>"",'Solar prot device - data'!G33,"") -> 
B34: ='Solar prot device - data'!B34 -> 20 | C34: =IF('Solar prot device - data'!C34<>"","Glazing"&" + "&'Solar prot device - data'!C34,"") ->  | F34: =IF('Solar prot device - data'!D34<>"",'Solar prot device - data'!D34,"") ->  | G34: =IF('Solar prot device - data'!E34<>"",'Solar prot device - data'!E34,"") ->  | H34: =IF('Solar prot device - data'!F34<>"",'Solar prot device - data'!F34,"") ->  | I34: =IF('Solar prot device - data'!G34<>"",'Solar prot device - data'!G34,"") -> 
B35: ='Solar prot device - data'!B35 -> 21 | C35: =IF('Solar prot device - data'!C35<>"","Glazing"&" + "&'Solar prot device - data'!C35,"") ->  | F35: =IF('Solar prot device - data'!D35<>"",'Solar prot device - data'!D35,"") ->  | G35: =IF('Solar prot device - data'!E35<>"",'Solar prot device - data'!E35,"") ->  | H35: =IF('Solar prot device - data'!F35<>"",'Solar prot device - data'!F35,"") ->  | I35: =IF('Solar prot device - data'!G35<>"",'Solar prot device - data'!G35,"") -> 
B36: ='Solar prot device - data'!B36 -> 22 | C36: =IF('Solar prot device - data'!C36<>"","Glazing"&" + "&'Solar prot device - data'!C36,"") ->  | F36: =IF('Solar prot device - data'!D36<>"",'Solar prot device - data'!D36,"") ->  | G36: =IF('Solar prot device - data'!E36<>"",'Solar prot device - data'!E36,"") ->  | H36: =IF('Solar prot device - data'!F36<>"",'Solar prot device - data'!F36,"") ->  | I36: =IF('Solar prot device - data'!G36<>"",'Solar prot device - data'!G36,"") -> 
B37: ='Solar prot device - data'!B37 -> 23 | C37: =IF('Solar prot device - data'!C37<>"","Glazing"&" + "&'Solar prot device - data'!C37,"") ->  | F37: =IF('Solar prot device - data'!D37<>"",'Solar prot device - data'!D37,"") ->  | G37: =IF('Solar prot device - data'!E37<>"",'Solar prot device - data'!E37,"") ->  | H37: =IF('Solar prot device - data'!F37<>"",'Solar prot device - data'!F37,"") ->  | I37: =IF('Solar prot device - data'!G37<>"",'Solar prot device - data'!G37,"") -> 
B38: ='Solar prot device - data'!B38 -> 24 | C38: =IF('Solar prot device - data'!C38<>"","Glazing"&" + "&'Solar prot device - data'!C38,"") ->  | G38: =IF('Solar prot device - data'!E38<>"",'Solar prot device - data'!E38,"") ->  | H38: =IF('Solar prot device - data'!F38<>"",'Solar prot device - data'!F38,"") ->  | I38: =IF('Solar prot device - data'!G38<>"",'Solar prot device - data'!G38,"") -> 
B39: ='Solar prot device - data'!B39 -> 25 | C39: =IF('Solar prot device - data'!C39<>"","Glazing"&" + "&'Solar prot device - data'!C39,"") ->  | G39: =IF('Solar prot device - data'!E39<>"",'Solar prot device - data'!E39,"") ->  | H39: =IF('Solar prot device - data'!F39<>"",'Solar prot device - data'!F39,"") ->  | I39: =IF('Solar prot device - data'!G39<>"",'Solar prot device - data'!G39,"") -> 
B40: ='Solar prot device - data'!B40 -> 26 | C40: =IF('Solar prot device - data'!C40<>"","Glazing"&" + "&'Solar prot device - data'!C40,"") ->  | F40: =IF('Solar prot device - data'!D40<>"",'Solar prot device - data'!D40,"") ->  | G40: =IF('Solar prot device - data'!E40<>"",'Solar prot device - data'!E40,"") ->  | H40: =IF('Solar prot device - data'!F40<>"",'Solar prot device - data'!F40,"") ->  | I40: =IF('Solar prot device - data'!G40<>"",'Solar prot device - data'!G40,"") -> 
B41: ='Solar prot device - data'!B41 -> 27 | C41: =IF('Solar prot device - data'!C41<>"","Glazing"&" + "&'Solar prot device - data'!C41,"") ->  | F41: =IF('Solar prot device - data'!D41<>"",'Solar prot device - data'!D41,"") ->  | G41: =IF('Solar prot device - data'!E41<>"",'Solar prot device - data'!E41,"") ->  | H41: =IF('Solar prot device - data'!F41<>"",'Solar prot device - data'!F41,"") ->  | I41: =IF('Solar prot device - data'!G41<>"",'Solar prot device - data'!G41,"") -> 
B42: ='Solar prot device - data'!B42 -> 28 | C42: =IF('Solar prot device - data'!C42<>"","Glazing"&" + "&'Solar prot device - data'!C42,"") ->  | F42: =IF('Solar prot device - data'!D42<>"",'Solar prot device - data'!D42,"") ->  | G42: =IF('Solar prot device - data'!E42<>"",'Solar prot device - data'!E42,"") ->  | H42: =IF('Solar prot device - data'!F42<>"",'Solar prot device - data'!F42,"") ->  | I42: =IF('Solar prot device - data'!G42<>"",'Solar prot device - data'!G42,"") -> 
B43: ='Solar prot device - data'!B43 -> 29 | C43: =IF('Solar prot device - data'!C43<>"","Glazing"&" + "&'Solar prot device - data'!C43,"") ->  | F43: =IF('Solar prot device - data'!D43<>"",'Solar prot device - data'!D43,"") ->  | G43: =IF('Solar prot device - data'!E43<>"",'Solar prot device - data'!E43,"") ->  | H43: =IF('Solar prot device - data'!F43<>"",'Solar prot device - data'!F43,"") ->  | I43: =IF('Solar prot device - data'!G43<>"",'Solar prot device - data'!G43,"") -> 
B44: ='Solar prot device - data'!B44 -> 30 | C44: =IF('Solar prot device - data'!C44<>"","Glazing"&" + "&'Solar prot device - data'!C44,"") ->  | F44: =IF('Solar prot device - data'!D44<>"",'Solar prot device - data'!D44,"") ->  | G44: =IF('Solar prot device - data'!E44<>"",'Solar prot device - data'!E44,"") ->  | H44: =IF('Solar prot device - data'!F44<>"",'Solar prot device - data'!F44,"") ->  | I44: =IF('Solar prot device - data'!G44<>"",'Solar prot device - data'!G44,"") -> 
B45: ='Solar prot device - data'!B45 -> 31 | C45: =IF('Solar prot device - data'!C45<>"","Glazing"&" + "&'Solar prot device - data'!C45,"") ->  | F45: =IF('Solar prot device - data'!D45<>"",'Solar prot device - data'!D45,"") ->  | G45: =IF('Solar prot device - data'!E45<>"",'Solar prot device - data'!E45,"") ->  | H45: =IF('Solar prot device - data'!F45<>"",'Solar prot device - data'!F45,"") ->  | I45: =IF('Solar prot device - data'!G45<>"",'Solar prot device - data'!G45,"") -> 
B46: ='Solar prot device - data'!B46 -> 32 | C46: =IF('Solar prot device - data'!C46<>"","Glazing"&" + "&'Solar prot device - data'!C46,"") ->  | F46: =IF('Solar prot device - data'!D46<>"",'Solar prot device - data'!D46,"") ->  | G46: =IF('Solar prot device - data'!E46<>"",'Solar prot device - data'!E46,"") ->  | H46: =IF('Solar prot device - data'!F46<>"",'Solar prot device - data'!F46,"") ->  | I46: =IF('Solar prot device - data'!G46<>"",'Solar prot device - data'!G46,"") -> 
B47: ='Solar prot device - data'!B47 -> 33 | C47: =IF('Solar prot device - data'!C47<>"","Glazing"&" + "&'Solar prot device - data'!C47,"") ->  | F47: =IF('Solar prot device - data'!D47<>"",'Solar prot device - data'!D47,"") ->  | G47: =IF('Solar prot device - data'!E47<>"",'Solar prot device - data'!E47,"") ->  | H47: =IF('Solar prot device - data'!F47<>"",'Solar prot device - data'!F47,"") ->  | I47: =IF('Solar prot device - data'!G47<>"",'Solar prot device - data'!G47,"") -> 
B48: ='Solar prot device - data'!B48 -> 34 | C48: =IF('Solar prot device - data'!C48<>"","Glazing"&" + "&'Solar prot device - data'!C48,"") ->  | F48: =IF('Solar prot device - data'!D48<>"",'Solar prot device - data'!D48,"") ->  | G48: =IF('Solar prot device - data'!E48<>"",'Solar prot device - data'!E48,"") ->  | H48: =IF('Solar prot device - data'!F48<>"",'Solar prot device - data'!F48,"") ->  | I48: =IF('Solar prot device - data'!G48<>"",'Solar prot device - data'!G48,"") -> 
B49: ='Solar prot device - data'!B49 -> 35 | C49: =IF('Solar prot device - data'!C49<>"","Glazing"&" + "&'Solar prot device - data'!C49,"") ->  | F49: =IF('Solar prot device - data'!D49<>"",'Solar prot device - data'!D49,"") ->  | G49: =IF('Solar prot device - data'!E49<>"",'Solar prot device - data'!E49,"") ->  | H49: =IF('Solar prot device - data'!F49<>"",'Solar prot device - data'!F49,"") ->  | I49: =IF('Solar prot device - data'!G49<>"",'Solar prot device - data'!G49,"") -> 
B50: ='Solar prot device - data'!B50 -> 36 | C50: =IF('Solar prot device - data'!C50<>"","Glazing"&" + "&'Solar prot device - data'!C50,"") ->  | F50: =IF('Solar prot device - data'!D50<>"",'Solar prot device - data'!D50,"") ->  | G50: =IF('Solar prot device - data'!E50<>"",'Solar prot device - data'!E50,"") ->  | H50: =IF('Solar prot device - data'!F50<>"",'Solar prot device - data'!F50,"") ->  | I50: =IF('Solar prot device - data'!G50<>"",'Solar prot device - data'!G50,"") -> 
B51: ='Solar prot device - data'!B51 -> 37 | C51: =IF('Solar prot device - data'!C51<>"","Glazing"&" + "&'Solar prot device - data'!C51,"") ->  | F51: =IF('Solar prot device - data'!D51<>"",'Solar prot device - data'!D51,"") ->  | G51: =IF('Solar prot device - data'!E51<>"",'Solar prot device - data'!E51,"") ->  | H51: =IF('Solar prot device - data'!F51<>"",'Solar prot device - data'!F51,"") ->  | I51: =IF('Solar prot device - data'!G51<>"",'Solar prot device - data'!G51,"") -> 
B52: ='Solar prot device - data'!B52 -> 38 | C52: =IF('Solar prot device - data'!C52<>"","Glazing"&" + "&'Solar prot device - data'!C52,"") ->  | F52: =IF('Solar prot device - data'!D52<>"",'Solar prot device - data'!D52,"") ->  | G52: =IF('Solar prot device - data'!E52<>"",'Solar prot device - data'!E52,"") ->  | H52: =IF('Solar prot device - data'!F52<>"",'Solar prot device - data'!F52,"") ->  | I52: =IF('Solar prot device - data'!G52<>"",'Solar prot device - data'!G52,"") -> 
B53: ='Solar prot device - data'!B53 -> 39 | C53: =IF('Solar prot device - data'!C53<>"","Glazing"&" + "&'Solar prot device - data'!C53,"") ->  | F53: =IF('Solar prot device - data'!D53<>"",'Solar prot device - data'!D53,"") ->  | G53: =IF('Solar prot device - data'!E53<>"",'Solar prot device - data'!E53,"") ->  | H53: =IF('Solar prot device - data'!F53<>"",'Solar prot device - data'!F53,"") ->  | I53: =IF('Solar prot device - data'!G53<>"",'Solar prot device - data'!G53,"") -> 
B54: ='Solar prot device - data'!B54 -> 40 | C54: =IF('Solar prot device - data'!C54<>"","Glazing"&" + "&'Solar prot device - data'!C54,"") ->  | F54: =IF('Solar prot device - data'!D54<>"",'Solar prot device - data'!D54,"") ->  | G54: =IF('Solar prot device - data'!E54<>"",'Solar prot device - data'!E54,"") ->  | H54: =IF('Solar prot device - data'!F54<>"",'Solar prot device - data'!F54,"") ->  | I54: =IF('Solar prot device - data'!G54<>"",'Solar prot device - data'!G54,"") -> 
B55: ='Solar prot device - data'!B55 -> 41 | C55: =IF('Solar prot device - data'!C55<>"","Glazing"&" + "&'Solar prot device - data'!C55,"") ->  | F55: =IF('Solar prot device - data'!D55<>"",'Solar prot device - data'!D55,"") ->  | G55: =IF('Solar prot device - data'!E55<>"",'Solar prot device - data'!E55,"") ->  | H55: =IF('Solar prot device - data'!F55<>"",'Solar prot device - data'!F55,"") ->  | I55: =IF('Solar prot device - data'!G55<>"",'Solar prot device - data'!G55,"") -> 
B56: ='Solar prot device - data'!B56 -> 42 | C56: =IF('Solar prot device - data'!C56<>"","Glazing"&" + "&'Solar prot device - data'!C56,"") ->  | F56: =IF('Solar prot device - data'!D56<>"",'Solar prot device - data'!D56,"") ->  | G56: =IF('Solar prot device - data'!E56<>"",'Solar prot device - data'!E56,"") ->  | H56: =IF('Solar prot device - data'!F56<>"",'Solar prot device - data'!F56,"") ->  | I56: =IF('Solar prot device - data'!G56<>"",'Solar prot device - data'!G56,"") -> 
B57: ='Solar prot device - data'!B57 -> 43 | C57: =IF('Solar prot device - data'!C57<>"","Glazing"&" + "&'Solar prot device - data'!C57,"") ->  | F57: =IF('Solar prot device - data'!D57<>"",'Solar prot device - data'!D57,"") ->  | G57: =IF('Solar prot device - data'!E57<>"",'Solar prot device - data'!E57,"") ->  | H57: =IF('Solar prot device - data'!F57<>"",'Solar prot device - data'!F57,"") ->  | I57: =IF('Solar prot device - data'!G57<>"",'Solar prot device - data'!G57,"") -> 
B58: ='Solar prot device - data'!B58 -> 44 | C58: =IF('Solar prot device - data'!C58<>"","Glazing"&" + "&'Solar prot device - data'!C58,"") ->  | F58: =IF('Solar prot device - data'!D58<>"",'Solar prot device - data'!D58,"") ->  | G58: =IF('Solar prot device - data'!E58<>"",'Solar prot device - data'!E58,"") ->  | H58: =IF('Solar prot device - data'!F58<>"",'Solar prot device - data'!F58,"") ->  | I58: =IF('Solar prot device - data'!G58<>"",'Solar prot device - data'!G58,"") -> 
B59: ='Solar prot device - data'!B59 -> 45 | C59: =IF('Solar prot device - data'!C59<>"","Glazing"&" + "&'Solar prot device - data'!C59,"") ->  | F59: =IF('Solar prot device - data'!D59<>"",'Solar prot device - data'!D59,"") ->  | G59: =IF('Solar prot device - data'!E59<>"",'Solar prot device - data'!E59,"") ->  | H59: =IF('Solar prot device - data'!F59<>"",'Solar prot device - data'!F59,"") ->  | I59: =IF('Solar prot device - data'!G59<>"",'Solar prot device - data'!G59,"") -> 
B60: ='Solar prot device - data'!B60 -> 46 | C60: =IF('Solar prot device - data'!C60<>"","Glazing"&" + "&'Solar prot device - data'!C60,"") ->  | F60: =IF('Solar prot device - data'!D60<>"",'Solar prot device - data'!D60,"") ->  | G60: =IF('Solar prot device - data'!E60<>"",'Solar prot device - data'!E60,"") ->  | H60: =IF('Solar prot device - data'!F60<>"",'Solar prot device - data'!F60,"") ->  | I60: =IF('Solar prot device - data'!G60<>"",'Solar prot device - data'!G60,"") -> 
B61: ='Solar prot device - data'!B61 -> 47 | C61: =IF('Solar prot device - data'!C61<>"","Glazing"&" + "&'Solar prot device - data'!C61,"") ->  | F61: =IF('Solar prot device - data'!D61<>"",'Solar prot device - data'!D61,"") ->  | G61: =IF('Solar prot device - data'!E61<>"",'Solar prot device - data'!E61,"") ->  | H61: =IF('Solar prot device - data'!F61<>"",'Solar prot device - data'!F61,"") ->  | I61: =IF('Solar prot device - data'!G61<>"",'Solar prot device - data'!G61,"") -> 
B62: ='Solar prot device - data'!B62 -> 48 | C62: =IF('Solar prot device - data'!C62<>"","Glazing"&" + "&'Solar prot device - data'!C62,"") ->  | F62: =IF('Solar prot device - data'!D62<>"",'Solar prot device - data'!D62,"") ->  | G62: =IF('Solar prot device - data'!E62<>"",'Solar prot device - data'!E62,"") ->  | H62: =IF('Solar prot device - data'!F62<>"",'Solar prot device - data'!F62,"") ->  | I62: =IF('Solar prot device - data'!G62<>"",'Solar prot device - data'!G62,"") -> 
B63: ='Solar prot device - data'!B63 -> 49 | C63: =IF('Solar prot device - data'!C63<>"","Glazing"&" + "&'Solar prot device - data'!C63,"") ->  | F63: =IF('Solar prot device - data'!D63<>"",'Solar prot device - data'!D63,"") ->  | G63: =IF('Solar prot device - data'!E63<>"",'Solar prot device - data'!E63,"") ->  | H63: =IF('Solar prot device - data'!F63<>"",'Solar prot device - data'!F63,"") ->  | I63: =IF('Solar prot device - data'!G63<>"",'Solar prot device - data'!G63,"") -> 
B64: ='Solar prot device - data'!B64 -> 50 | C64: =IF('Solar prot device - data'!C64<>"","Glazing"&" + "&'Solar prot device - data'!C64,"") ->  | F64: =IF('Solar prot device - data'!D64<>"",'Solar prot device - data'!D64,"") ->  | G64: =IF('Solar prot device - data'!E64<>"",'Solar prot device - data'!E64,"") ->  | H64: =IF('Solar prot device - data'!F64<>"",'Solar prot device - data'!F64,"") ->  | I64: =IF('Solar prot device - data'!G64<>"",'Solar prot device - data'!G64,"") -> 
B65: ='Solar prot device - data'!B65 -> 51 | C65: =IF('Solar prot device - data'!C65<>"","Glazing"&" + "&'Solar prot device - data'!C65,"") ->  | F65: =IF('Solar prot device - data'!D65<>"",'Solar prot device - data'!D65,"") ->  | G65: =IF('Solar prot device - data'!E65<>"",'Solar prot device - data'!E65,"") ->  | H65: =IF('Solar prot device - data'!F65<>"",'Solar prot device - data'!F65,"") ->  | I65: =IF('Solar prot device - data'!G65<>"",'Solar prot device - data'!G65,"") -> 
B66: ='Solar prot device - data'!B66 -> 52 | C66: =IF('Solar prot device - data'!C66<>"","Glazing"&" + "&'Solar prot device - data'!C66,"") ->  | F66: =IF('Solar prot device - data'!D66<>"",'Solar prot device - data'!D66,"") ->  | G66: =IF('Solar prot device - data'!E66<>"",'Solar prot device - data'!E66,"") ->  | H66: =IF('Solar prot device - data'!F66<>"",'Solar prot device - data'!F66,"") ->  | I66: =IF('Solar prot device - data'!G66<>"",'Solar prot device - data'!G66,"") -> 
B67: ='Solar prot device - data'!B67 -> 53 | C67: =IF('Solar prot device - data'!C67<>"","Glazing"&" + "&'Solar prot device - data'!C67,"") ->  | F67: =IF('Solar prot device - data'!D67<>"",'Solar prot device - data'!D67,"") ->  | G67: =IF('Solar prot device - data'!E67<>"",'Solar prot device - data'!E67,"") ->  | H67: =IF('Solar prot device - data'!F67<>"",'Solar prot device - data'!F67,"") ->  | I67: =IF('Solar prot device - data'!G67<>"",'Solar prot device - data'!G67,"") -> 
B68: ='Solar prot device - data'!B68 -> 54 | C68: =IF('Solar prot device - data'!C68<>"","Glazing"&" + "&'Solar prot device - data'!C68,"") ->  | F68: =IF('Solar prot device - data'!D68<>"",'Solar prot device - data'!D68,"") ->  | G68: =IF('Solar prot device - data'!E68<>"",'Solar prot device - data'!E68,"") ->  | H68: =IF('Solar prot device - data'!F68<>"",'Solar prot device - data'!F68,"") ->  | I68: =IF('Solar prot device - data'!G68<>"",'Solar prot device - data'!G68,"") -> 
B69: ='Solar prot device - data'!B69 -> 55 | C69: =IF('Solar prot device - data'!C69<>"","Glazing"&" + "&'Solar prot device - data'!C69,"") ->  | F69: =IF('Solar prot device - data'!D69<>"",'Solar prot device - data'!D69,"") ->  | G69: =IF('Solar prot device - data'!E69<>"",'Solar prot device - data'!E69,"") ->  | H69: =IF('Solar prot device - data'!F69<>"",'Solar prot device - data'!F69,"") ->  | I69: =IF('Solar prot device - data'!G69<>"",'Solar prot device - data'!G69,"") -> 
B70: ='Solar prot device - data'!B70 -> 56 | C70: =IF('Solar prot device - data'!C70<>"","Glazing"&" + "&'Solar prot device - data'!C70,"") ->  | F70: =IF('Solar prot device - data'!D70<>"",'Solar prot device - data'!D70,"") ->  | G70: =IF('Solar prot device - data'!E70<>"",'Solar prot device - data'!E70,"") ->  | H70: =IF('Solar prot device - data'!F70<>"",'Solar prot device - data'!F70,"") ->  | I70: =IF('Solar prot device - data'!G70<>"",'Solar prot device - data'!G70,"") -> 
B71: ='Solar prot device - data'!B71 -> 57 | C71: =IF('Solar prot device - data'!C71<>"","Glazing"&" + "&'Solar prot device - data'!C71,"") ->  | F71: =IF('Solar prot device - data'!D71<>"",'Solar prot device - data'!D71,"") ->  | G71: =IF('Solar prot device - data'!E71<>"",'Solar prot device - data'!E71,"") ->  | H71: =IF('Solar prot device - data'!F71<>"",'Solar prot device - data'!F71,"") ->  | I71: =IF('Solar prot device - data'!G71<>"",'Solar prot device - data'!G71,"") -> 
B72: ='Solar prot device - data'!B72 -> 58 | C72: =IF('Solar prot device - data'!C72<>"","Glazing"&" + "&'Solar prot device - data'!C72,"") ->  | F72: =IF('Solar prot device - data'!D72<>"",'Solar prot device - data'!D72,"") ->  | G72: =IF('Solar prot device - data'!E72<>"",'Solar prot device - data'!E72,"") ->  | H72: =IF('Solar prot device - data'!F72<>"",'Solar prot device - data'!F72,"") ->  | I72: =IF('Solar prot device - data'!G72<>"",'Solar prot device - data'!G72,"") -> 
B73: ='Solar prot device - data'!B73 -> 59 | C73: =IF('Solar prot device - data'!C73<>"","Glazing"&" + "&'Solar prot device - data'!C73,"") ->  | F73: =IF('Solar prot device - data'!D73<>"",'Solar prot device - data'!D73,"") ->  | G73: =IF('Solar prot device - data'!E73<>"",'Solar prot device - data'!E73,"") ->  | H73: =IF('Solar prot device - data'!F73<>"",'Solar prot device - data'!F73,"") ->  | I73: =IF('Solar prot device - data'!G73<>"",'Solar prot device - data'!G73,"") -> 
B74: ='Solar prot device - data'!B74 -> 60 | C74: =IF('Solar prot device - data'!C74<>"","Glazing"&" + "&'Solar prot device - data'!C74,"") ->  | F74: =IF('Solar prot device - data'!D74<>"",'Solar prot device - data'!D74,"") ->  | G74: =IF('Solar prot device - data'!E74<>"",'Solar prot device - data'!E74,"") ->  | H74: =IF('Solar prot device - data'!F74<>"",'Solar prot device - data'!F74,"") ->  | I74: =IF('Solar prot device - data'!G74<>"",'Solar prot device - data'!G74,"") -> 
B75: ='Solar prot device - data'!B75 -> 61 | C75: =IF('Solar prot device - data'!C75<>"","Glazing"&" + "&'Solar prot device - data'!C75,"") ->  | F75: =IF('Solar prot device - data'!D75<>"",'Solar prot device - data'!D75,"") ->  | G75: =IF('Solar prot device - data'!E75<>"",'Solar prot device - data'!E75,"") ->  | H75: =IF('Solar prot device - data'!F75<>"",'Solar prot device - data'!F75,"") ->  | I75: =IF('Solar prot device - data'!G75<>"",'Solar prot device - data'!G75,"") -> 
B76: ='Solar prot device - data'!B76 -> 62 | C76: =IF('Solar prot device - data'!C76<>"","Glazing"&" + "&'Solar prot device - data'!C76,"") ->  | F76: =IF('Solar prot device - data'!D76<>"",'Solar prot device - data'!D76,"") ->  | G76: =IF('Solar prot device - data'!E76<>"",'Solar prot device - data'!E76,"") ->  | H76: =IF('Solar prot device - data'!F76<>"",'Solar prot device - data'!F76,"") ->  | I76: =IF('Solar prot device - data'!G76<>"",'Solar prot device - data'!G76,"") -> 
B77: ='Solar prot device - data'!B77 -> 63 | C77: =IF('Solar prot device - data'!C77<>"","Glazing"&" + "&'Solar prot device - data'!C77,"") ->  | F77: =IF('Solar prot device - data'!D77<>"",'Solar prot device - data'!D77,"") ->  | G77: =IF('Solar prot device - data'!E77<>"",'Solar prot device - data'!E77,"") ->  | H77: =IF('Solar prot device - data'!F77<>"",'Solar prot device - data'!F77,"") ->  | I77: =IF('Solar prot device - data'!G77<>"",'Solar prot device - data'!G77,"") -> 
B78: ='Solar prot device - data'!B78 -> 64 | C78: =IF('Solar prot device - data'!C78<>"","Glazing"&" + "&'Solar prot device - data'!C78,"") ->  | F78: =IF('Solar prot device - data'!D78<>"",'Solar prot device - data'!D78,"") ->  | G78: =IF('Solar prot device - data'!E78<>"",'Solar prot device - data'!E78,"") ->  | H78: =IF('Solar prot device - data'!F78<>"",'Solar prot device - data'!F78,"") ->  | I78: =IF('Solar prot device - data'!G78<>"",'Solar prot device - data'!G78,"") -> 
B79: ='Solar prot device - data'!B79 -> 65 | C79: =IF('Solar prot device - data'!C79<>"","Glazing"&" + "&'Solar prot device - data'!C79,"") ->  | F79: =IF('Solar prot device - data'!D79<>"",'Solar prot device - data'!D79,"") ->  | G79: =IF('Solar prot device - data'!E79<>"",'Solar prot device - data'!E79,"") ->  | H79: =IF('Solar prot device - data'!F79<>"",'Solar prot device - data'!F79,"") ->  | I79: =IF('Solar prot device - data'!G79<>"",'Solar prot device - data'!G79,"") -> 
B80: ='Solar prot device - data'!B80 -> 66 | C80: =IF('Solar prot device - data'!C80<>"","Glazing"&" + "&'Solar prot device - data'!C80,"") ->  | F80: =IF('Solar prot device - data'!D80<>"",'Solar prot device - data'!D80,"") ->  | G80: =IF('Solar prot device - data'!E80<>"",'Solar prot device - data'!E80,"") ->  | H80: =IF('Solar prot device - data'!F80<>"",'Solar prot device - data'!F80,"") ->  | I80: =IF('Solar prot device - data'!G80<>"",'Solar prot device - data'!G80,"") ->  | J80: =IF(AND($F80<>"",$G80<>""),$F80*BM$4+$I80*BM$9/BM$6+$F80*(1-BM$4)*BM$9/BM$5,"") ->  | K80: =IF(AND($F80<>"",$G80<>""),$F80*BN$4+$I80*BN$9/BN$6+$F80*(1-BN$4)*BN$9/BN$5,"") ->  | L80: =IF(AND($F80<>"",$G80<>""),$F80*BO$4+$I80*BO$9/BO$6+$F80*(1-BO$4)*BO$9/BO$5,"") ->  | M80: =IF(AND($F80<>"",$G80<>""),$F80*BP$4+$I80*BP$9/BP$6+$F80*(1-BP$4)*BP$9/BP$5,"") ->  | N80: =IF(AND($F80<>"",$G80<>""),$F80*BQ$4+$I80*BQ$9/BQ$6+$F80*(1-BQ$4)*BQ$9/BQ$5,"") ->  | O80: =IF(AND($F80<>"",$G80<>""),BM$4*(1-BM$4*$G80-$I80*BM$10/BM$7),"") ->  | P80: =IF(AND($F80<>"",$G80<>""),BN$4*(1-BN$4*$G80-$I80*BN$10/BN$7),"") ->  | Q80: =IF(AND($F80<>"",$G80<>""),BO$4*(1-BO$4*$G80-$I80*BO$10/BO$7),"") ->  | R80: =IF(AND($F80<>"",$G80<>""),BP$4*(1-BP$4*$G80-$I80*BP$10/BP$7),"") ->  | S80: =IF(AND($F80<>"",$G80<>""),BQ$4*(1-BQ$4*$G80-$I80*BQ$10/BQ$7),"") ->  | T80: =IF(AND($F80<>"",$G80<>""),BM$4*$F80+BM$4*($I80+(1-BM$4)*$G80)*BM$11/BM$8,"") ->  | U80: =IF(AND($F80<>"",$G80<>""),BN$4*$F80+BN$4*($I80+(1-BN$4)*$G80)*BN$11/BN$8,"") ->  | V80: =IF(AND($F80<>"",$G80<>""),BO$4*$F80+BO$4*($I80+(1-BO$4)*$G80)*BO$11/BO$8,"") ->  | W80: =IF(AND($F80<>"",$G80<>""),BP$4*$F80+BP$4*($I80+(1-BP$4)*$G80)*BP$11/BP$8,"") ->  | X80: =IF(AND($F80<>"",$G80<>""),BQ$4*$F80+BQ$4*($I80+(1-BQ$4)*$G80)*BQ$11/BQ$8,"") ->  | Z80: =IF(AND($F80<>"",$H80<>""),$F$5*$F80/(1-$G$5*$H80),"") ->  | AA80: =IF(AND($F80<>"",$H80<>""),$F$6*$F80/(1-$G$6*$H80),"") ->  | AB80: =IF(AND($F80<>"",$H80<>""),$F$7*$F80/(1-$G$7*$H80),"") ->  | AC80: =IF(AND($F80<>"",$H80<>""),$F$8*$F80/(1-$G$8*$H80),"") ->  | AD80: =IF(AND($F80<>"",$H80<>""),$F$9*$F80/(1-$G$9*$H80),"") ->  | AE80: =IF(AND($F80<>"",$G80<>""),$F$5*$F80/(1-$H$5*$G80),"") ->  | AF80: =IF(AND($F80<>"",$G80<>""),$F$6*$F80/(1-$H$6*$G80),"") ->  | AG80: =IF(AND($F80<>"",$G80<>""),$F$7*$F80/(1-$H$7*$G80),"") ->  | AH80: =IF(AND($F80<>"",$G80<>""),$F$8*$F80/(1-$H$8*$G80),"") ->  | AI80: =IF(AND($F80<>"",$G80<>""),$F$9*$F80/(1-$H$9*$G80),"") ->  | AK80: =IF(AND(J80<>"",Z80<>""),J80-Z80,"") ->  | AL80: =IF(AND(K80<>"",AA80<>""),K80-AA80,"") ->  | AM80: =IF(AND(L80<>"",AB80<>""),L80-AB80,"") ->  | AN80: =IF(AND(M80<>"",AC80<>""),M80-AC80,"") ->  | AO80: =IF(AND(N80<>"",AD80<>""),N80-AD80,"") ->  | AP80: =IF(AND(O80<>"",AE80<>""),O80-AE80,"") ->  | AQ80: =IF(AND(P80<>"",AF80<>""),P80-AF80,"") ->  | AR80: =IF(AND(Q80<>"",AG80<>""),Q80-AG80,"") ->  | AS80: =IF(AND(R80<>"",AH80<>""),R80-AH80,"") ->  | AT80: =IF(AND(S80<>"",AI80<>""),S80-AI80,"") ->  | AV80: =IF(J80<>"", J80/$E$5,"") ->  | AW80: =IF(K80<>"", K80/$E$6,"") ->  | AX80: =IF(L80<>"", L80/$E$7,"") ->  | AY80: =IF(M80<>"", M80/$E$8,"") ->  | AZ80: =IF(N80<>"", N80/$E$9,"") ->  | BA80: =IF(O80<>"", O80/$E$5,"") ->  | BB80: =IF(P80<>"", P80/$E$6,"") ->  | BC80: =IF(Q80<>"", Q80/$E$7,"") ->  | BD80: =IF(R80<>"", R80/$E$8,"") ->  | BE80: =IF(S80<>"", S80/$E$9,"") ->  | BF80: =IF(T80<>"", T80/$E$5,"") ->  | BG80: =IF(U80<>"", U80/$E$6,"") ->  | BH80: =IF(V80<>"", V80/$E$7,"") ->  | BI80: =IF(W80<>"", W80/$E$8,"") ->  | BJ80: =IF(X80<>"", X80/$E$9,"") -> 
B81: ='Solar prot device - data'!B81 -> 67 | C81: =IF('Solar prot device - data'!C81<>"","Glazing"&" + "&'Solar prot device - data'!C81,"") ->  | F81: =IF('Solar prot device - data'!D81<>"",'Solar prot device - data'!D81,"") ->  | G81: =IF('Solar prot device - data'!E81<>"",'Solar prot device - data'!E81,"") ->  | H81: =IF('Solar prot device - data'!F81<>"",'Solar prot device - data'!F81,"") ->  | I81: =IF('Solar prot device - data'!G81<>"",'Solar prot device - data'!G81,"") -> 
B82: ='Solar prot device - data'!B82 -> 68 | C82: =IF('Solar prot device - data'!C82<>"","Glazing"&" + "&'Solar prot device - data'!C82,"") ->  | F82: =IF('Solar prot device - data'!D82<>"",'Solar prot device - data'!D82,"") ->  | G82: =IF('Solar prot device - data'!E82<>"",'Solar prot device - data'!E82,"") ->  | H82: =IF('Solar prot device - data'!F82<>"",'Solar prot device - data'!F82,"") ->  | I82: =IF('Solar prot device - data'!G82<>"",'Solar prot device - data'!G82,"") -> 
B83: ='Solar prot device - data'!B83 -> 69 | C83: =IF('Solar prot device - data'!C83<>"","Glazing"&" + "&'Solar prot device - data'!C83,"") ->  | F83: =IF('Solar prot device - data'!D83<>"",'Solar prot device - data'!D83,"") ->  | G83: =IF('Solar prot device - data'!E83<>"",'Solar prot device - data'!E83,"") ->  | H83: =IF('Solar prot device - data'!F83<>"",'Solar prot device - data'!F83,"") ->  | I83: =IF('Solar prot device - data'!G83<>"",'Solar prot device - data'!G83,"") -> 
B84: ='Solar prot device - data'!B84 -> 70 | C84: =IF('Solar prot device - data'!C84<>"","Glazing"&" + "&'Solar prot device - data'!C84,"") ->  | F84: =IF('Solar prot device - data'!D84<>"",'Solar prot device - data'!D84,"") ->  | G84: =IF('Solar prot device - data'!E84<>"",'Solar prot device - data'!E84,"") ->  | H84: =IF('Solar prot device - data'!F84<>"",'Solar prot device - data'!F84,"") ->  | I84: =IF('Solar prot device - data'!G84<>"",'Solar prot device - data'!G84,"") -> 
B85: ='Solar prot device - data'!B85 -> 71 | C85: =IF('Solar prot device - data'!C85<>"","Glazing"&" + "&'Solar prot device - data'!C85,"") ->  | F85: =IF('Solar prot device - data'!D85<>"",'Solar prot device - data'!D85,"") ->  | G85: =IF('Solar prot device - data'!E85<>"",'Solar prot device - data'!E85,"") ->  | H85: =IF('Solar prot device - data'!F85<>"",'Solar prot device - data'!F85,"") ->  | I85: =IF('Solar prot device - data'!G85<>"",'Solar prot device - data'!G85,"") -> 
B86: ='Solar prot device - data'!B86 -> 72 | C86: =IF('Solar prot device - data'!C86<>"","Glazing"&" + "&'Solar prot device - data'!C86,"") ->  | F86: =IF('Solar prot device - data'!D86<>"",'Solar prot device - data'!D86,"") ->  | G86: =IF('Solar prot device - data'!E86<>"",'Solar prot device - data'!E86,"") ->  | H86: =IF('Solar prot device - data'!F86<>"",'Solar prot device - data'!F86,"") ->  | I86: =IF('Solar prot device - data'!G86<>"",'Solar prot device - data'!G86,"") -> 
B87: ='Solar prot device - data'!B87 -> 73 | C87: =IF('Solar prot device - data'!C87<>"","Glazing"&" + "&'Solar prot device - data'!C87,"") ->  | F87: =IF('Solar prot device - data'!D87<>"",'Solar prot device - data'!D87,"") ->  | G87: =IF('Solar prot device - data'!E87<>"",'Solar prot device - data'!E87,"") ->  | H87: =IF('Solar prot device - data'!F87<>"",'Solar prot device - data'!F87,"") ->  | I87: =IF('Solar prot device - data'!G87<>"",'Solar prot device - data'!G87,"") -> 
B88: ='Solar prot device - data'!B88 -> 74 | C88: =IF('Solar prot device - data'!C88<>"","Glazing"&" + "&'Solar prot device - data'!C88,"") ->  | F88: =IF('Solar prot device - data'!D88<>"",'Solar prot device - data'!D88,"") ->  | G88: =IF('Solar prot device - data'!E88<>"",'Solar prot device - data'!E88,"") ->  | H88: =IF('Solar prot device - data'!F88<>"",'Solar prot device - data'!F88,"") ->  | I88: =IF('Solar prot device - data'!G88<>"",'Solar prot device - data'!G88,"") -> 
B89: ='Solar prot device - data'!B89 -> 75 | C89: =IF('Solar prot device - data'!C89<>"","Glazing"&" + "&'Solar prot device - data'!C89,"") ->  | F89: =IF('Solar prot device - data'!D89<>"",'Solar prot device - data'!D89,"") ->  | G89: =IF('Solar prot device - data'!E89<>"",'Solar prot device - data'!E89,"") ->  | H89: =IF('Solar prot device - data'!F89<>"",'Solar prot device - data'!F89,"") ->  | I89: =IF('Solar prot device - data'!G89<>"",'Solar prot device - data'!G89,"") -> 
B90: ='Solar prot device - data'!B90 -> 76 | C90: =IF('Solar prot device - data'!C90<>"","Glazing"&" + "&'Solar prot device - data'!C90,"") ->  | F90: =IF('Solar prot device - data'!D90<>"",'Solar prot device - data'!D90,"") ->  | G90: =IF('Solar prot device - data'!E90<>"",'Solar prot device - data'!E90,"") ->  | H90: =IF('Solar prot device - data'!F90<>"",'Solar prot device - data'!F90,"") ->  | I90: =IF('Solar prot device - data'!G90<>"",'Solar prot device - data'!G90,"") -> 
B91: ='Solar prot device - data'!B91 -> 77 | C91: =IF('Solar prot device - data'!C91<>"","Glazing"&" + "&'Solar prot device - data'!C91,"") ->  | F91: =IF('Solar prot device - data'!D91<>"",'Solar prot device - data'!D91,"") ->  | G91: =IF('Solar prot device - data'!E91<>"",'Solar prot device - data'!E91,"") ->  | H91: =IF('Solar prot device - data'!F91<>"",'Solar prot device - data'!F91,"") ->  | I91: =IF('Solar prot device - data'!G91<>"",'Solar prot device - data'!G91,"") -> 
B92: ='Solar prot device - data'!B92 -> 78 | C92: =IF('Solar prot device - data'!C92<>"","Glazing"&" + "&'Solar prot device - data'!C92,"") ->  | F92: =IF('Solar prot device - data'!D92<>"",'Solar prot device - data'!D92,"") ->  | G92: =IF('Solar prot device - data'!E92<>"",'Solar prot device - data'!E92,"") ->  | H92: =IF('Solar prot device - data'!F92<>"",'Solar prot device - data'!F92,"") ->  | I92: =IF('Solar prot device - data'!G92<>"",'Solar prot device - data'!G92,"") -> 
B93: ='Solar prot device - data'!B93 -> 79 | C93: =IF('Solar prot device - data'!C93<>"","Glazing"&" + "&'Solar prot device - data'!C93,"") ->  | F93: =IF('Solar prot device - data'!D93<>"",'Solar prot device - data'!D93,"") ->  | G93: =IF('Solar prot device - data'!E93<>"",'Solar prot device - data'!E93,"") ->  | H93: =IF('Solar prot device - data'!F93<>"",'Solar prot device - data'!F93,"") ->  | I93: =IF('Solar prot device - data'!G93<>"",'Solar prot device - data'!G93,"") -> 
B94: ='Solar prot device - data'!B94 -> 80 | C94: =IF('Solar prot device - data'!C94<>"","Glazing"&" + "&'Solar prot device - data'!C94,"") ->  | F94: =IF('Solar prot device - data'!D94<>"",'Solar prot device - data'!D94,"") ->  | G94: =IF('Solar prot device - data'!E94<>"",'Solar prot device - data'!E94,"") ->  | H94: =IF('Solar prot device - data'!F94<>"",'Solar prot device - data'!F94,"") ->  | I94: =IF('Solar prot device - data'!G94<>"",'Solar prot device - data'!G94,"") -> 
B95: ='Solar prot device - data'!B95 -> 81 | C95: =IF('Solar prot device - data'!C95<>"","Glazing"&" + "&'Solar prot device - data'!C95,"") ->  | F95: =IF('Solar prot device - data'!D95<>"",'Solar prot device - data'!D95,"") ->  | G95: =IF('Solar prot device - data'!E95<>"",'Solar prot device - data'!E95,"") ->  | H95: =IF('Solar prot device - data'!F95<>"",'Solar prot device - data'!F95,"") ->  | I95: =IF('Solar prot device - data'!G95<>"",'Solar prot device - data'!G95,"") -> 
B96: ='Solar prot device - data'!B96 -> 82 | C96: =IF('Solar prot device - data'!C96<>"","Glazing"&" + "&'Solar prot device - data'!C96,"") ->  | F96: =IF('Solar prot device - data'!D96<>"",'Solar prot device - data'!D96,"") ->  | G96: =IF('Solar prot device - data'!E96<>"",'Solar prot device - data'!E96,"") ->  | H96: =IF('Solar prot device - data'!F96<>"",'Solar prot device - data'!F96,"") ->  | I96: =IF('Solar prot device - data'!G96<>"",'Solar prot device - data'!G96,"") -> 
B97: ='Solar prot device - data'!B97 -> 83 | C97: =IF('Solar prot device - data'!C97<>"","Glazing"&" + "&'Solar prot device - data'!C97,"") ->  | F97: =IF('Solar prot device - data'!D97<>"",'Solar prot device - data'!D97,"") ->  | G97: =IF('Solar prot device - data'!E97<>"",'Solar prot device - data'!E97,"") ->  | H97: =IF('Solar prot device - data'!F97<>"",'Solar prot device - data'!F97,"") ->  | I97: =IF('Solar prot device - data'!G97<>"",'Solar prot device - data'!G97,"") -> 
B98: ='Solar prot device - data'!B98 -> 84 | C98: =IF('Solar prot device - data'!C98<>"","Glazing"&" + "&'Solar prot device - data'!C98,"") ->  | F98: =IF('Solar prot device - data'!D98<>"",'Solar prot device - data'!D98,"") ->  | G98: =IF('Solar prot device - data'!E98<>"",'Solar prot device - data'!E98,"") ->  | H98: =IF('Solar prot device - data'!F98<>"",'Solar prot device - data'!F98,"") ->  | I98: =IF('Solar prot device - data'!G98<>"",'Solar prot device - data'!G98,"") -> 
B99: ='Solar prot device - data'!B99 -> 85 | C99: =IF('Solar prot device - data'!C99<>"","Glazing"&" + "&'Solar prot device - data'!C99,"") ->  | F99: =IF('Solar prot device - data'!D99<>"",'Solar prot device - data'!D99,"") ->  | G99: =IF('Solar prot device - data'!E99<>"",'Solar prot device - data'!E99,"") ->  | H99: =IF('Solar prot device - data'!F99<>"",'Solar prot device - data'!F99,"") ->  | I99: =IF('Solar prot device - data'!G99<>"",'Solar prot device - data'!G99,"") -> 
B100: ='Solar prot device - data'!B100 -> 86 | C100: =IF('Solar prot device - data'!C100<>"","Glazing"&" + "&'Solar prot device - data'!C100,"") ->  | F100: =IF('Solar prot device - data'!D100<>"",'Solar prot device - data'!D100,"") ->  | G100: =IF('Solar prot device - data'!E100<>"",'Solar prot device - data'!E100,"") ->  | H100: =IF('Solar prot device - data'!F100<>"",'Solar prot device - data'!F100,"") ->  | I100: =IF('Solar prot device - data'!G100<>"",'Solar prot device - data'!G100,"") -> 
B101: ='Solar prot device - data'!B101 -> 87 | C101: =IF('Solar prot device - data'!C101<>"","Glazing"&" + "&'Solar prot device - data'!C101,"") ->  | F101: =IF('Solar prot device - data'!D101<>"",'Solar prot device - data'!D101,"") ->  | G101: =IF('Solar prot device - data'!E101<>"",'Solar prot device - data'!E101,"") ->  | H101: =IF('Solar prot device - data'!F101<>"",'Solar prot device - data'!F101,"") ->  | I101: =IF('Solar prot device - data'!G101<>"",'Solar prot device - data'!G101,"") -> 
B102: ='Solar prot device - data'!B102 -> 88 | C102: =IF('Solar prot device - data'!C102<>"","Glazing"&" + "&'Solar prot device - data'!C102,"") ->  | F102: =IF('Solar prot device - data'!D102<>"",'Solar prot device - data'!D102,"") ->  | G102: =IF('Solar prot device - data'!E102<>"",'Solar prot device - data'!E102,"") ->  | H102: =IF('Solar prot device - data'!F102<>"",'Solar prot device - data'!F102,"") ->  | I102: =IF('Solar prot device - data'!G102<>"",'Solar prot device - data'!G102,"") -> 
B103: ='Solar prot device - data'!B103 -> 89 | C103: =IF('Solar prot device - data'!C103<>"","Glazing"&" + "&'Solar prot device - data'!C103,"") ->  | F103: =IF('Solar prot device - data'!D103<>"",'Solar prot device - data'!D103,"") ->  | G103: =IF('Solar prot device - data'!E103<>"",'Solar prot device - data'!E103,"") ->  | H103: =IF('Solar prot device - data'!F103<>"",'Solar prot device - data'!F103,"") ->  | I103: =IF('Solar prot device - data'!G103<>"",'Solar prot device - data'!G103,"") -> 
B104: ='Solar prot device - data'!B104 -> 90 | C104: =IF('Solar prot device - data'!C104<>"","Glazing"&" + "&'Solar prot device - data'!C104,"") ->  | F104: =IF('Solar prot device - data'!D104<>"",'Solar prot device - data'!D104,"") ->  | G104: =IF('Solar prot device - data'!E104<>"",'Solar prot device - data'!E104,"") ->  | H104: =IF('Solar prot device - data'!F104<>"",'Solar prot device - data'!F104,"") ->  | I104: =IF('Solar prot device - data'!G104<>"",'Solar prot device - data'!G104,"") -> 
B105: ='Solar prot device - data'!B105 -> 91 | C105: =IF('Solar prot device - data'!C105<>"","Glazing"&" + "&'Solar prot device - data'!C105,"") ->  | F105: =IF('Solar prot device - data'!D105<>"",'Solar prot device - data'!D105,"") ->  | G105: =IF('Solar prot device - data'!E105<>"",'Solar prot device - data'!E105,"") ->  | H105: =IF('Solar prot device - data'!F105<>"",'Solar prot device - data'!F105,"") ->  | I105: =IF('Solar prot device - data'!G105<>"",'Solar prot device - data'!G105,"") -> 
B106: ='Solar prot device - data'!B106 -> 92 | C106: =IF('Solar prot device - data'!C106<>"","Glazing"&" + "&'Solar prot device - data'!C106,"") ->  | F106: =IF('Solar prot device - data'!D106<>"",'Solar prot device - data'!D106,"") ->  | G106: =IF('Solar prot device - data'!E106<>"",'Solar prot device - data'!E106,"") ->  | H106: =IF('Solar prot device - data'!F106<>"",'Solar prot device - data'!F106,"") ->  | I106: =IF('Solar prot device - data'!G106<>"",'Solar prot device - data'!G106,"") -> 
B107: ='Solar prot device - data'!B107 -> 93 | C107: =IF('Solar prot device - data'!C107<>"","Glazing"&" + "&'Solar prot device - data'!C107,"") ->  | F107: =IF('Solar prot device - data'!D107<>"",'Solar prot device - data'!D107,"") ->  | G107: =IF('Solar prot device - data'!E107<>"",'Solar prot device - data'!E107,"") ->  | H107: =IF('Solar prot device - data'!F107<>"",'Solar prot device - data'!F107,"") ->  | I107: =IF('Solar prot device - data'!G107<>"",'Solar prot device - data'!G107,"") -> 
B108: ='Solar prot device - data'!B108 -> 94 | C108: =IF('Solar prot device - data'!C108<>"","Glazing"&" + "&'Solar prot device - data'!C108,"") ->  | F108: =IF('Solar prot device - data'!D108<>"",'Solar prot device - data'!D108,"") ->  | G108: =IF('Solar prot device - data'!E108<>"",'Solar prot device - data'!E108,"") ->  | H108: =IF('Solar prot device - data'!F108<>"",'Solar prot device - data'!F108,"") ->  | I108: =IF('Solar prot device - data'!G108<>"",'Solar prot device - data'!G108,"") -> 
B109: ='Solar prot device - data'!B109 -> 95 | C109: =IF('Solar prot device - data'!C109<>"","Glazing"&" + "&'Solar prot device - data'!C109,"") ->  | F109: =IF('Solar prot device - data'!D109<>"",'Solar prot device - data'!D109,"") ->  | G109: =IF('Solar prot device - data'!E109<>"",'Solar prot device - data'!E109,"") ->  | H109: =IF('Solar prot device - data'!F109<>"",'Solar prot device - data'!F109,"") ->  | I109: =IF('Solar prot device - data'!G109<>"",'Solar prot device - data'!G109,"") -> 
B110: ='Solar prot device - data'!B110 -> 96 | C110: =IF('Solar prot device - data'!C110<>"","Glazing"&" + "&'Solar prot device - data'!C110,"") ->  | F110: =IF('Solar prot device - data'!D110<>"",'Solar prot device - data'!D110,"") ->  | G110: =IF('Solar prot device - data'!E110<>"",'Solar prot device - data'!E110,"") ->  | H110: =IF('Solar prot device - data'!F110<>"",'Solar prot device - data'!F110,"") ->  | I110: =IF('Solar prot device - data'!G110<>"",'Solar prot device - data'!G110,"") -> 
B111: ='Solar prot device - data'!B111 -> 97 | C111: =IF('Solar prot device - data'!C111<>"","Glazing"&" + "&'Solar prot device - data'!C111,"") ->  | F111: =IF('Solar prot device - data'!D111<>"",'Solar prot device - data'!D111,"") ->  | G111: =IF('Solar prot device - data'!E111<>"",'Solar prot device - data'!E111,"") ->  | H111: =IF('Solar prot device - data'!F111<>"",'Solar prot device - data'!F111,"") ->  | I111: =IF('Solar prot device - data'!G111<>"",'Solar prot device - data'!G111,"") -> 
B112: ='Solar prot device - data'!B112 -> 98 | C112: =IF('Solar prot device - data'!C112<>"","Glazing"&" + "&'Solar prot device - data'!C112,"") ->  | F112: =IF('Solar prot device - data'!D112<>"",'Solar prot device - data'!D112,"") ->  | G112: =IF('Solar prot device - data'!E112<>"",'Solar prot device - data'!E112,"") ->  | H112: =IF('Solar prot device - data'!F112<>"",'Solar prot device - data'!F112,"") ->  | I112: =IF('Solar prot device - data'!G112<>"",'Solar prot device - data'!G112,"") -> 
B113: ='Solar prot device - data'!B113 -> 99 | C113: =IF('Solar prot device - data'!C113<>"","Glazing"&" + "&'Solar prot device - data'!C113,"") ->  | F113: =IF('Solar prot device - data'!D113<>"",'Solar prot device - data'!D113,"") ->  | G113: =IF('Solar prot device - data'!E113<>"",'Solar prot device - data'!E113,"") ->  | H113: =IF('Solar prot device - data'!F113<>"",'Solar prot device - data'!F113,"") ->  | I113: =IF('Solar prot device - data'!G113<>"",'Solar prot device - data'!G113,"") -> 
B114: ='Solar prot device - data'!B114 -> 100 | C114: =IF('Solar prot device - data'!C114<>"","Glazing"&" + "&'Solar prot device - data'!C114,"") ->  | F114: =IF('Solar prot device - data'!D114<>"",'Solar prot device - data'!D114,"") ->  | G114: =IF('Solar prot device - data'!E114<>"",'Solar prot device - data'!E114,"") ->  | H114: =IF('Solar prot device - data'!F114<>"",'Solar prot device - data'!F114,"") ->  | I114: =IF('Solar prot device - data'!G114<>"",'Solar prot device - data'!G114,"") -> 

Sheet Update
B2: Version # | C2: Date | D2: Main updates
B3: Version 5 | C3: 2007-12-12 | D3: correction cel E18 of the sheet 'Results-2'
B4: Version 6 | C4: 2008-05-15 | D4: Adaptations of the formulae in order to be conform with the new version of the standard EN13363-1 (2007)
B5: Version 7 | C5: 2008-07-24 | D5: The calculation of the 'shading factor' Fc has been added
B6: Version 7.1 | C6: 2021-10-22 | D6: Sends statistical data to BBRI
B7: Version 7.2 | C7: 2022-05-12 | D7: GDPR compliant popup
B8: Version 8.1 | C8: 2022-10-10 | D8: Update to be in line with last versions of standards + layout change

Sheet GA_cookies (hidden)
A1: Google Analytics ID
A2: Sum of openings
A3: Cookies accepted
